{"text_format":"1","workbook":"xlsx","n_sheets":15,"sheets":["Summary of scores (2)","Introdução","Instruções","Perguntas Frequentes","Guiao para RMAJ","Gestão do Programa","Implementação do Programa","Todos -Independ. da Incidencia","Incidencia Moderada","Alta Incidencia","Resultados do Programa","Resumo da Pontuação","Próximos Passos","Bibliografia","Acrónimos"],"not_rendered":{"charts":12,"images":1,"macros":1,"external_links":0,"defined_names":37,"comments":1,"pivot_tables":0},"unopened":[],"bounds":{"document_bytes":16777216,"sheet_cells":100000,"rows_first":2000,"rows_last":500,"rows_between":2000,"halvings":0,"cell_chars":16384,"cell_head_chars":4096},"cells_cut":0,"cells_raw":0,"read":"whole","date_system":"1900"}

{"sheet":"Summary of scores (2)","index":0,"n_rows":142,"n_cols":6,"rows_kept":142,"cut":false,"hidden":true,"merged":[[74,3,75,3],[2,2,67,2],[2,3,23,3],[24,3,45,3],[46,3,67,3],[109,2,141,2],[109,3,136,3],[137,3,141,3],[1,2,1,6],[68,2,74,2],[68,3,71,3],[72,3,73,3],[76,2,108,2],[93,3,97,3],[99,3,100,3],[101,3,108,3],[76,3,79,3],[80,3,82,3],[83,3,86,3],[87,3,89,3],[90,3,92,3]]}
[]
[null,null,"Summary of scores"]
[null,null,"Prevention\nPackages","AGYW Prevention Package\n(HIGH Incidence Locations)",null,"Risk Assessment / Profiling"]
[null,null,null,null,null,"Male and female condoms and lubricants "]
[null,null,null,null,null,"HIV testing, treatment, counselling and support"]
[null,null,null,null,null,"Pre-exposure Prophylaxis"]
[null,null,null,null,null,"STI diagnosis & service integration"]
[null,null,null,null,null,"SRH services incl. contraceptive mix"]
[null,null,null,null,null,"GBV services, post-rape care "]
[null,null,null,null,null,"Antenatal care (ANC) including PMTCT"]
[null,null,null,null,null,"Clinical service package for sex partners of AGYW"]
[null,null,null,null,null,"Accessible services"]
[null,null,null,null,null,"Youth-friendly/Acceptable services"]
[null,null,null,null,null,"Sensitisation"]
[null,null,null,null,null,"School-based prevention campaigns"]
[null,null,null,null,null,"Comprehensive sexuality education"]
[null,null,null,null,null,"Keeping girls in school"]
[null,null,null,null,null,"Community Mobilisation & demand generation"]
[null,null,null,null,null,"Increasing access to justice (policy and legal) "]
[null,null,null,null,null,"Gender-based violence prevention and management "]
[null,null,null,null,null,"Social protection & Social Asset Building"]
[null,null,null,null,null,"Economic Empowerment & Incentives"]
[null,null,null,null,null,"Increasing access to education for young women "]
[null,null,null,null,null,"Transforming harmful cultural and gender norms through community platforms"]
[null,null,null,"AGYW Prevention Package\n(VERY HIGH Incidence Locations)",null,"Risk Assessment / Profiling"]
[null,null,null,null,null,"Male and female condoms and lubricants "]
[null,null,null,null,null,"HIV testing, treatment, counselling and support"]
[null,null,null,null,null,"Pre-exposure Prophylaxis"]
[null,null,null,null,null,"STI diagnosis & service integration"]
[null,null,null,null,null,"SRH services incl. contraceptive mix"]
[null,null,null,null,null,"GBV services, post-rape care "]
[null,null,null,null,null,"Antenatal care (ANC) including PMTCT"]
[null,null,null,null,null,"Clinical service package for sex partners of AGYW"]
[null,null,null,null,null,"Accessible services"]
[null,null,null,null,null,"Youth-friendly/Acceptable services"]
[null,null,null,null,null,"Sensitisation"]
[null,null,null,null,null,"School-based prevention campaigns"]
[null,null,null,null,null,"Comprehensive sexuality education"]
[null,null,null,null,null,"Keeping girls in school"]
[null,null,null,null,null,"Community Mobilisation & demand generation"]
[null,null,null,null,null,"Increasing access to justice (policy and legal) "]
[null,null,null,null,null,"Gender-based violence prevention and management "]
[null,null,null,null,null,"Social protection & Social Asset Building"]
[null,null,null,null,null,"Economic Empowerment & Incentives"]
[null,null,null,null,null,"Increasing access to education for young women "]
[null,null,null,null,null,"Transforming harmful cultural and gender norms through community platforms"]
[null,null,null,"AGYW Prevention Package\n(EXTREMELY HIGH Incidence Locations)",null,"Risk Assessment / Profiling"]
[null,null,null,null,null,"Male and female condoms and lubricants "]
[null,null,null,null,null,"HIV testing, treatment, counselling and support"]
[null,null,null,null,null,"Pre-exposure Prophylaxis"]
[null,null,null,null,null,"STI diagnosis & service integration"]
[null,null,null,null,null,"SRH services incl. contraceptive mix"]
[null,null,null,null,null,"GBV services, post-rape care "]
[null,null,null,null,null,"Antenatal care (ANC) including PMTCT"]
[null,null,null,null,null,"Clinical service package for sex partners of AGYW"]
[null,null,null,null,null,"Accessible services"]
[null,null,null,null,null,"Youth-friendly/Acceptable services"]
[null,null,null,null,null,"Sensitisation"]
[null,null,null,null,null,"School-based prevention campaigns"]
[null,null,null,null,null,"Comprehensive sexuality education"]
[null,null,null,null,null,"Keeping girls in school"]
[null,null,null,null,null,"Community Mobilisation & demand generation"]
[null,null,null,null,null,"Increasing access to justice (policy and legal) "]
[null,null,null,null,null,"Gender-based violence prevention and management "]
[null,null,null,null,null,"Social protection & Social Asset Building"]
[null,null,null,null,null,"Economic Empowerment & Incentives"]
[null,null,null,null,null,"Increasing access to education for young women "]
[null,null,null,null,null,"Transforming harmful cultural and gender norms through community platforms"]
[null,null,"Programme Management","1. Leadership & coordination",null,"National Strategy and Strategic Plan"]
[null,null,null,null,null,"National Technical working group (TWG) for AGYW/Youth Prevention"]
[null,null,null,null,null,"Accountability"]
[null,null,null,null,null,"National and Sub-National plans"]
[null,null,null,"2. Strategy, Policy & regulation",null,"Policies"]
[null,null,null,null,null,"Guidelines"]
[null,null,null,"3. Financing",null,"Costing"]
[null,null,null,null,null,"Budget planning"]
[null,null,"Programme Implementation","4. Step One: Targeting & planning",null,"Demographic assessment & disaggregation"]
[null,null,null,null,null,"Needs assessment"]
[null,null,null,null,null,"Characterisation of male partners of AGYW"]
[null,null,null,null,null,"Target setting"]
[null,null,null,"5. Step Two: Population size estimation by HIV Incidence Level",null,"AGYW PSE - high incidence settings"]
[null,null,null,null,null,"AGYW PSE - very high incidence settings"]
[null,null,null,null,null,"AGYW PSE - extremely incidence settings"]
[null,null,null,"6. Step Three: Identify the groups \"most vulnerable\" or \"most in need\"",null,"Epidemiological assessment (sero-prevalence survey & determinants of risk)"]
[null,null,null,null,null,"Behavoural risk factors"]
[null,null,null,null,null,"Biological risk factors"]
[null,null,null,null,null,"Structural risk factors"]
[null,null,null,"7. Step Four: Review available programme elements and their coverage",null,"Health sector platforms (facilities, service delivery points)"]
[null,null,null,null,null,"Education platforms (schools, universities)"]
[null,null,null,null,null,"Community platforms (NGOs, CSOs)"]
[null,null,null,"8. Step Five: Develop a Results Framework (Theory of Change)",null,"Define & prioritise HIV prevention packages per applicable incidence category"]
[null,null,null,null,null,"Include Programmatic coverage targets"]
[null,null,null,null,null,"Include Cross-cutting activities & complementary action"]
[null,null,null,"9. Step Six: Define/Develop Delivery Systems",null,"Develop/ensure health platforms"]
[null,null,null,null,null,"Develop/ensure education platforms"]
[null,null,null,null,null,"Develop/ensure Community platforms"]
[null,null,null,null,null,"Peer outreach educators (POE), Peer testers and Community Health Workers (CHWs)"]
[null,null,null,null,null,"Meaningful engagement of affected communities in leadership & coordination"]
[null,null,null,"10. Step Seven: Define Management Mechanism",null,"National & Sub National Management systems"]
[null,null,null,"11. Step Eight: Develop Costed Operational Plan",null,"Operational plan"]
[null,null,null,null,null,"Available Resources"]
[null,null,null,"12. Step Nine: Develop M&E Plan",null,"Routine monitoring"]
[null,null,null,null,null,"Referral system tracking"]
[null,null,null,null,null,"Quality assessment"]
[null,null,null,null,null,"Surveillance "]
[null,null,null,null,null,"Data flow"]
[null,null,null,null,null,"Data for decision making"]
[null,null,null,null,null,"The use of Unique Identifier Code for program monitoring"]
[null,null,null,null,null,"Budget monitoring"]
[null,null,"Programme Outcomes","13. Outcomes for AGYW Prevention",null,"Number of new HIV infections per 1000 uninfected population"]
[null,null,null,null,null,"Number and % of people living with HIV "]
[null,null,null,null,null,"Number of AIDS related deaths per 100,000 population"]
[null,null,null,null,null,"Percentage of (estimated) people living with HIV who have been tested HIV-positive"]
[null,null,null,null,null,"Percentage of adults and children with HIV, known to be on treatment 12 months after initiation of antiretroviral therapy"]
[null,null,null,null,null,"Percentage of people living with HIV and on ART who are virologically suppressed"]
[null,null,null,null,null,"Percentage of ever-married or partnered women aged 15-49 who experienced physical or sexual violence from a male intimate partner in the past 12 months"]
[null,null,null,null,null,"Percentage of sexually active young women age 15 - 24 who had multiple sexual partners."]
[null,null,null,null,null,"Percentage of sexually active men age 15-49 who had multiple sexual partners."]
[null,null,null,null,null,"Knows a formal source for condoms (young women 15-24)"]
[null,null,null,null,null,"Knows a formal source for condoms (young men 15-24)"]
[null,null,null,null,null,"Condom use with non-regular partners (young women, 15-24)"]
[null,null,null,null,null,"Condom use with non regular partners (young men, 15-24)"]
[null,null,null,null,null,"Percentage of females age 15-24 who report unintended pregnancy of of current pregnancy or most recent births (teen pregnancy)"]
[null,null,null,null,null,"Percentage of youth neither in employment nor in education or training (NEET)"]
[null,null,null,null,null,"Percentage of females aged 15 - 24 who dropped out of school in the last year"]
[null,null,null,null,null,"Percentage of young people aged 10–24 years reached by life skills–based HIV education in schools"]
[null,null,null,null,null,"Percentage of priority districts (administrative areas) with dedicated programs for young women & male partners (full package) "]
[null,null,null,null,null,"Percentage of adolescent girls and young women in high-HIV incidence communities reached with two interventions in the past three months"]
[null,null,null,null,null,"Percentage of adolescent girls and young women (AGYW) who received PEP"]
[null,null,null,null,null,"PrEP Indicator - tbc"]
[null,null,null,null,null,"SRHR access indicator(s) - tbc"]
[null,null,null,null,null,"Number of AGYW who received GBV related services (e.g. referral for legal or medical care e.g. PEP, post violence care & support services)"]
[null,null,null,null,null,"Percentage of AGYW who received livelihood support (cash transfer or other economic empowerment approaches)"]
[null,null,null,null,null,"Percentage of AGYW who reached with \"keeping girls in school\" initiatives (including education subsidy and others)"]
[null,null,null,null,null,"Number of medical male circumcisions performed according to national standards"]
[null,null,null,null,null,"Percentage of people living with HIV that initiated ART with a CD4 count of <200 cells/mm3"]
[null,null,null,null,null,"Percentage of people living with HIV and on antiretroviral therapy who have a suppressed viral load at 12 months (<1000 copies/ml)"]
[null,null,null,"14. Sustainability",null,"Resource mobilisation and financing"]
[null,null,null,null,null,"Domestic resourcing"]
[null,null,null,null,null,"Social contracting"]
[null,null,null,null,null,"Capacity building and TA Plan"]
[null,null,null,null,null,"Sustainability plan and transition roadmap"]

{"sheet":"Introdução","index":1,"n_rows":2,"n_cols":3,"rows_kept":2,"cut":false,"hidden":false,"merged":[[1,2,1,22]]}
[]
[null,null,"O que são Ferramentas de Auto-avaliação para a Prevenção do HIV (PSAT)?"]

{"sheet":"Instruções","index":2,"n_rows":3,"n_cols":3,"rows_kept":3,"cut":false,"hidden":false,"merged":[[2,2,2,17]]}
[]
[]
[null,null,"Como preencher a Ferramenta de Auto-avaliação para a Prevenção (PSAT)"]

{"sheet":"Perguntas Frequentes","index":3,"n_rows":2,"n_cols":3,"rows_kept":2,"cut":false,"hidden":false,"merged":[[1,2,1,22]]}
[]
[null,null,"Perguntas Frequentes"]

{"sheet":"Guiao para RMAJ","index":4,"n_rows":2,"n_cols":3,"rows_kept":2,"cut":false,"hidden":false,"merged":[[1,2,1,22]]}
[]
[null,null,"Combinação de prevenção para raparigas adolescentes e mulheres jovens e os seus parceiros masculinos em locais de prevalência elevada"]

{"sheet":"Gestão do Programa","index":5,"n_rows":90,"n_cols":16,"rows_kept":90,"cut":false,"hidden":false,"merged":[[82,2,85,2],[18,3,18,4],[19,2,29,2],[19,3,19,4],[1,2,1,9],[3,3,3,4],[5,2,17,2],[5,3,5,4],[5,9,17,9],[19,9,29,9],[5,5,5,8],[19,5,19,8],[4,2,4,11],[82,3,82,4],[82,9,84,9],[52,2,63,2],[52,9,63,9],[64,3,64,4],[75,9,77,9],[82,5,82,8],[52,6,52,8],[64,6,64,8],[80,2,81,2],[80,9,81,9],[75,2,77,2],[30,3,30,4],[30,9,37,9],[75,3,75,4],[30,2,38,2],[30,5,30,8],[39,9,46,9],[47,9,50,9],[64,2,73,2],[64,9,73,9],[51,2,51,11],[74,2,74,11],[39,2,50,2],[52,3,52,4]]}
[]
[null,null,"Gestão do Programa"]
[]
[null,null,"Elemento","Critérios",null,"N/A","Ausente","Presente mas não ideal","Presente e a funcionar bem","Média do elemento","Comentários (se existentes)","Absent","Present","Optimal","Average","Sustainability Single Figure"]
[null,null,"Liderança e Coordenação"]
[null,null,"Estratégia Nacional e Plano Estratégico","Existe uma estratégia/política nacional e um plano estratégico para a prevenção do HIV para RAMJ ou estão bem incluídos noutro plano de prevenção do HIV e:",null,null,null,null,null,{"$f":"IFERROR(O6,\"-\")","v":"-"},null,null,null,null,{"$f":"IFERROR(ROUND(AVERAGEIF(L7:N18,\"<>0\",L7:N18),0),\"-\")","v":"-"}]
[null,null,null,"○","As RAMJ foram consultadas para a elaboração de estratégias/planos de prevenção do HIV para RAMJ",null,null,null,null,null,null,{"$f":"IF(ISBLANK(G7),0,1)","v":0},{"$f":"IF(ISBLANK(H7),0,3)","v":0},{"$f":"IF(ISBLANK(I7),0,5)","v":0}]
[null,null,null,"○","Os objectivos e metas foram claramente definidos e articulados para o programa de prevenção do HIV para RAMJ (e os seus parceiros masculinos)",null,null,null,null,null,null,0,0,0]
[null,null,null,"○","Os programas de prevenção do HIV para RAMJ reconhecem vulnerabilidades específicas de RAMJ devido ao sexo, idade, estatuto socioeconómico, localização e grau de escolaridade, entre outros",null,null,null,null,null,null,0,0,0]
[null,null,null,"○","Um modelo lógico claro ou teoria de mudança é apresentado na estratégia/plano para orientar os programas de prevenção do HIV para RAMJ",null,null,null,null,null,null,0,0,0]
[null,null,null,"○","A estratégia/plano inclui um pacote abrangente de intervenções e actividades, alinhado com as evidências disponíveis e a actual orientação global",null,null,null,null,null,null,0,0,0]
[null,null,null,"○","Um pacote abrangente e diferenciado de intervenções é definido por bairro/distrito/região/província com base na avaliação epidemiológica da incidência/prevalência do HIV, bem como uma compreensão dos subgrupos de RAMJ em toda a sua diversidade.\n\n\n",null,null,null,null,null,null,0,0,0]
[null,null,null,"○","Foram definidos planos claros de expansão com responsabilidades determinadas",null,null,null,null,null,null,0,0,0]
[null,null,null,"○","Está incluído um quadro de monitoria e avaliação, com indicadores e objectivos centrais para a prevenção do HIV para RAMJ",null,null,null,null,null,null,0,0,0]
[null,null,null,"○","Os mecanismos de implementação & sistemas de gestão/coordenação estão claramente definidos a nível nacional, provincial e distrital relevante",null,null,null,null,null,null,0,0,0]
[null,null,null,"○","Os ciclos de planificação são claramente definidos e apoiados por rigorosas avaliações de impacto",null,null,null,null,null,null,0,0,0]
[null,null,null,"○","As recomendações de outras avaliações/estratégias/processos ligados às RAMJ (por exemplo, índice de estigma, avaliação de género, etc.) estão incluídas na Estratégia Nacional e no Plano Estratégico",null,null,null,null,null,null,{"$f":"IF(ISBLANK(G17),0,1)","v":0},{"$f":"IF(ISBLANK(H17),0,3)","v":0},{"$f":"IF(ISBLANK(I17),0,5)","v":0}]
[null,null,null,"○","Inclui ou está ligado a um plano multi-sectorial que cumpre os requisitos de participação, adesão e contribuição de todos os grupos de partes interessadas (Governo, agências, implementadores, financiadores, RAMJ) que são necessários para o sucesso de uma abordagem multi-sectorial para os programas de prevenção do HIV para RAMJ\n",null,null,null,null,null,null,0,0,0]
[null,null,"Planos nacionais, provinciais e distritais","Pacotes de intervenção baseados em evidências para a prevenção do HIV entre RAMJ com base na incidência da infecção pelo HIV de cada distrito/país/região/estado foram incluídos nos planos de desempenho anuais nacionais e provinciais",null,null,null,null,null,{"$f":"IFERROR(O19,\"-\")","v":"-"},null,{"$f":"IF(ISBLANK(G19),0,1)","v":0},{"$f":"IF(ISBLANK(H19),0,3)","v":0},{"$f":"IF(ISBLANK(I19),0,5)","v":0},{"$f":"IFERROR(IF(ISBLANK(G19),ROUND(AVERAGEIF(L19:N19,\"<>0\",L19:N19),0),L19),\"-\")","v":"-"}]
[null,null,"Grupo Técnico de Trabalho (GTT) nacional sobre prevenção do HIV *para RAMJ","Um grupo de trabalho técnico foi estabelecido a nível nacional e comités consultivos provinciais e distritais foram criados a nível provincial/distrital:",null,null,null,null,null,{"$f":"IFERROR(O20,\"-\")","v":"-"},null,null,null,null,{"$f":"IFERROR(ROUND(AVERAGEIF(L21:N30,\"<>0\",L21:N30),0),\"-\")","v":"-"}]
[null,null,null,"○","O GTT nacional e/ou comités consultivos têm TdR ou um Âmbito de Trabalho definido - que também descreve a ligação com outros processos e grupos de HIV que lidam com a prevenção do HIV e jovens",null,null,null,null,null,null,0,0,0]
[null,null,null,"○","Os Termos de Referência/Âmbito de Trabalho para os comités nacionais são priorizados e estão alinhados com os planos nacionais - objectivos e metas",null,null,null,null,null,null,0,0,0]
[null,null,null,"○","O GTT nacional e/ou comités consultivos reúnem-se, pelo menos, trimestralmente",null,null,null,null,null,null,0,0,0]
[null,null,null,"○","O GTT nacional e/ou comités consultivos estão completos e incluem Organizações da Sociedade Civil (OSCs), parceiros de implementação, membros de redes de RAMJ, órgãos bilaterais e representantes do Governo",null,null,null,null,null,null,0,0,0]
[null,null,null,"○","Têm mecanismos de comunicação internos e externos em vigor",null,null,null,null,null,null,0,0,0]
[null,null,null,"○","Representantes de grupos de RAMJ estão incluídos no GTT nacional e/ou comités consultivos",null,null,null,null,null,null,0,0,0]
[null,null,null,"○","As RAMJ são apoiadas e sua capacidade é fortalecida para garantir a sua participação em condições de igualdade com os outros membros.",null,null,null,null,null,null,0,0,0]
[null,null,null,"○","O grupo técnico de trabalho utiliza dados de actividades de monitoria para informar a tomada de decisão",null,null,null,null,null,null,0,0,0]
[null,null,null,"○","As prioridades foram bem definidas e a maioria dos pontos de acção são normalmente alcançados",null,null,null,null,null,null,0,0,0]
[null,null,null,"○","Os GTTs provinciais e distritais e/ou comités consultivos estão estabelecidos e activos",null,null,null,null,null,null,{"$f":"IF(ISBLANK(G30),0,1)","v":0},{"$f":"IF(ISBLANK(H30),0,3)","v":0},{"$f":"IF(ISBLANK(I30),0,5)","v":0}]
[null,null,"Prestação de contas","O principal departamento/ministério responsável pelo sucesso dos programas de prevenção do HIV para RAMJ foi identificado e tem forte uma liderança/autoridade:",null,null,null,null,null,{"$f":"IFERROR(O31,\"-\")","v":"-"},null,null,null,null,{"$f":"IFERROR(ROUND(AVERAGEIF(L32:N39,\"<>0\",L32:N39),0),\"-\")","v":"-"}]
[null,null,null,"○","Todos os programas de prevenção do HIV para RAMJ no país apresentam regularmente dados ao governo a nível nacional, provincial e distrital, utilizando indicadores comuns que estão alinhados com as estratégias nacionais e referências globais de prevenção do HIV",null,null,null,null,null,null,0,0,0]
[null,null,null,"○","Os dados são apresentados de forma anónima e com a devida protecção para proteger a identidade das RAMJ",null,null,null,null,null,null,0,0,0]
[null,null,null,"○","Existem avaliações regulares que utilizam os dados de monitoria do programa para RAMJ",null,null,null,null,null,null,0,0,0]
[null,null,null,"○","Um representante do Governo designado do principal departamento/ministério é responsável por representar o programa para RAMJ nas reuniões multi-sectoriais convocadas regularmente .",null,null,null,null,null,null,0,0,0]
[null,null,null,"○","O grupo técnico de trabalho do programa para RAMJ está envolvido em garantir a prestação de contas, incluindo através da recolha de dados.",null,null,null,null,null,null,0,0,0]
[null,null,null,"○","Foram estabelecidos a avaliação de desempenho anual e ciclo de feedback para responsabilizar os pontos focais (pode ser coordenado pelo grupo técnico de trabalho)",null,null,null,null,null,null,0,0,0]
[null,null,null,"○","Os membros de grupos de interesse activos da sociedade civil estão envolvidos nos diálogos nacionais, processos políticos, planificação/avaliações de programas e processos de planificação estratégica relacionados com a prevenção do HIV para RAMJ",null,null,null,null,null,null,0,0,0]
[null,null,null,"○","Os grupos comunitários de RAMJ estão envolvidos na monitoria liderada pela comunidade de acordo com as directrizes do ONUSIDA, e na recolha de dados liderada pela comunidade.",null,null,null,null,null,null,{"$f":"IF(ISBLANK(G39),0,1)","v":0},{"$f":"IF(ISBLANK(H39),0,3)","v":0},{"$f":"IF(ISBLANK(I39),0,5)","v":0}]
[null,null,"Plano de reforço de capacidades e assistência técnica","○","Está em vigor um plano de assistência técnica e:",null,null,null,null,{"$f":"IFERROR(O40,\"-\")","v":"-"},null,null,null,0,{"$f":"IFERROR(ROUND(AVERAGEIF(L41:N47,\"<>0\",L41:N47),0),\"-\")","v":"-"}]
[null,null,null,"○","Foi desenvolvido com base em alguma avaliação",null,null,null,null,null,null,0,0,0,null,{"$f":"IF(MAX(L41:N41)=0,\"\",MAX(L41:N41))","v":""}]
[null,null,null,"○","Faz o uso de peritos técnicos nacionais e internacionais, incluindo o desenvolvimento da capacidades de pares e a assistência técnica ",null,null,null,null,null,null,0,0,0,null,""]
[null,null,null,"○","Prioriza componentes de programas e questões políticas",null,null,null,null,null,null,0,0,0,null,""]
[null,null,null,"○","Facilita o estabelecimento e o reforço das redes de implementadores ",null,null,null,null,null,null,0,0,0,null,""]
[null,null,null,"○","Identifica lacunas e desenvolve pedidos consolidados de assistência em caso de falta de conhecimentos especializados no país",null,null,null,null,null,null,0,0,0,null,""]
[null,null,null,"○","Facilita o desenvolvimento da capacidade da comunidade RAMJ para se apropriar dos programas RAMJ",null,null,null,null,null,null,0,0,0,null,""]
[null,null,null,"○","Inclui assistência técnica interna",null,null,null,null,null,null,0,0,0,null,""]
[null,null,null,"○","Está em vigor um plano completo de sustentabilidade e roteiro de transição, delineando a transição dos países de intervenções apoiadas por doadores para intervenções apoiadas internamente, e considera todos os recursos, incluindo: ",null,null,null,null,{"$f":"IFERROR(O48,\"-\")","v":"-"},null,null,null,0,{"$f":"IFERROR(ROUND(AVERAGEIF(L49:N51,\"<>0\",L49:N51),0),\"-\")","v":"-"}]
[null,null,null,"○","Recursos financeiros",null,null,null,null,null,null,0,0,0,null,{"$f":"IF(MAX(L49:N49)=0,\"\",MAX(L49:N49))","v":""}]
[null,null,null,"○","Recursos humanos, e",null,null,null,null,null,null,0,0,0,null,{"$f":"IF(MAX(L50:N50)=0,\"\",MAX(L50:N50))","v":""}]
[null,null,null,"○","Infraestrutura",null,null,null,null,null,null,0,0,0,null,{"$f":"IF(MAX(L51:N51)=0,\"\",MAX(L51:N51))","v":""}]
[null,null,"Estratégia, Política e Regulamento"]
[null,null,"Políticas e Leis","As políticas promovem activamente o funcionamento eficaz do programa de prevenção do HIV para RAMJ: ",null,null,null,null,null,{"$f":"IFERROR(O53,\"-\")","v":"-"},null,null,null,null,{"$f":"IFERROR(ROUND(AVERAGEIF(L54:N64,\"<>0\",L54:N64),0),\"-\")","v":"-"}]
[null,null,null,"○","O apoio fiscal e administrativo para a impulsionar a implementação dos instrumentos de política relevantes é consistente",null,null,null,null,null,null,{"$f":"IF(ISBLANK(G54),0,1)","v":0},{"$f":"IF(ISBLANK(H54),0,3)","v":0},{"$f":"IF(ISBLANK(I54),0,5)","v":0}]
[null,null,null,"○","As políticas promovem activamente o acesso das RAMJ aos serviços, incluindo adolescentes, e consideram as barreiras financeiras",null,null,null,null,null,null,0,0,0]
[null,null,null,"○","Foram adoptads a política e as leis sobre serviços amigos de jovens e adolescentes, que abordam a vulnerabilidades relativa à idade e permitem a confidencialidade e consentimento dos adolescentes",null,null,null,null,null,null,0,0,0]
[null,null,null,"○","A união prematura é crime",null,null,null,null,null,null,0,0,0]
[null,null,null,"○","Idade de consentimento e/ou consentimento dos pais não apresenta barreiras na implementação de serviços para as RAMJ",null,null,null,null,null,null,0,0,0]
[null,null,null,"○","Foram adoptadas políticas contra a violência doméstica ou violência baseada no género",null,null,null,null,null,null,0,0,0]
[null,null,null,"○","Foram adoptadas políticas para garantir o acesso universal ao ensino básico e médio",null,null,null,null,null,null,0,0,0]
[null,null,null,"○","○ Foi adoptada a educação sexual abrangente, tendo sido desenvolvido um currículo nacional",null,null,null,null,null,null,0,0,0]
[null,null,null,"○","Foram adoptadas políticas para reintegrar adolescentes grávidas de volta à escola",null,null,null,null,null,null,{"$f":"IF(ISBLANK(G62),0,1)","v":0},{"$f":"IF(ISBLANK(H62),0,3)","v":0},{"$f":"IF(ISBLANK(I62),0,5)","v":0}]
[null,null,null,"○","Foram adoptadas políticas para abordar/reduzir a separação conjugal",null,null,null,null,null,null,{"$f":"IF(ISBLANK(G63),0,1)","v":0},{"$f":"IF(ISBLANK(H63),0,3)","v":0},{"$f":"IF(ISBLANK(I63),0,5)","v":0}]
[null,null,null,"○","São eliminadas as leis que discriminam as RAMJ de grupos de população chave e existem leis que protegem contra a discriminação baseada na idade, sexo, identidade de género, orientação sexual e estado civil.",null,null,null,null,null,null,0,0,0]
[null,null,"Directrizes","Estão em vigor os seguintes padrões ou directrizes nacionais do programa e indicam claramente os passos necessários para a implementação bem-sucedida do programa de prevenção do HIV para RAMJ, em alinhamento com a prática baseada em evidências:",null,null,null,null,null,{"$f":"IFERROR(O65,\"-\")","v":"-"},null,null,null,null,{"$f":"IFERROR(ROUND(AVERAGEIF(L66:N74,\"<>0\",L66:N73),0),\"-\")","v":"-"}]
[null,null,null,"○","Existem directrizes nacionais para cada uma das intervenções e serviços biomédicos, comportamentais e estruturais e atendem às necessidades específicas RAMJ; ou na ausência de directrizes nacionais, todas as políticas e documentos estratégicos fazem referência à orientação internacional actualmente disponível para as intervenções do programa de prevenção para RAMJ",null,null,null,null,null,null,0,0,0]
[null,null,null,"○","As directrizes foram desenvolvidas em consulta com as raparigas adolescentes e mulheres jovens\n",null,null,null,null,null,null,0,0,0]
[null,null,null,"○","Foram desenvolvidas directrizes nacionais para a testagem e tratamento do HIV, infecções de transmissão sexual (ITSs), profilaxia pré-exposição (PrEP) que consideram especificamente as RAMJ",null,null,null,null,null,null,0,0,0]
[null,null,null,"○","As directrizes nacionais para a redução de danos, assim como procedimentos operacionais padrão para tratamento médico assistido para pessoas que injectam drogas, consideram as RAMJ como uma sub-população específica",null,null,null,null,null,null,0,0,0]
[null,null,null,"○","○ As directrizes sobre saúde sexual e reprodutiva e direitos (SSRD) indicam claramente a ligação/integração da prevenção do HIV",null,null,null,null,null,null,0,0,0]
[null,null,null,"○","As directrizes de Educação Sexual Abrangente (ESA) incluem currículos, materiais de apoio e planos de formação.",null,null,null,null,null,null,0,0,0]
[null,null,null,"○","A idade de consentimento foi harmonizada em todas as directrizes",null,null,null,null,null,null,0,0,0]
[null,null,null,"○","Não há em vigor directrizes contraditórias",null,null,null,null,null,null,0,0,0]
[null,null,null,"○","As medidas de prevenção e controle de infecção por COVID-19 são incorporadas a todas as estratégias, planos e diretrizes de prevenção do HIV/AGYW.",null,null,null,null,null,null,{"$f":"IF(ISBLANK(G74),0,1)","v":0},{"$f":"IF(ISBLANK(H74),0,3)","v":0},{"$f":"IF(ISBLANK(I74),0,5)","v":0}]
[null,null,"Financiamento"]
[null,null,"Custos","O país é transparente e tem um entendimento detalhado sobre as necessidades totais estimadas de recursos para o país - informadas por custos e modelação de um pacote padrão de serviços de prevenção do VIH para a RAMJ",null,null,null,null,null,{"$f":"IFERROR(O76,\"-\")","v":"-"},null,null,null,null,{"$f":"IFERROR(ROUND(AVERAGEIF(L77:N78,\"<>0\",L77:N78),0),\"-\")","v":"-"}]
[null,null,null,"○","Foi realizado um recente exercício nacional sobre custos para estimar o custo do pacote padrão de serviços de acordo com as orientações e o total de recursos necessários para a implementação, tendo em conta os objetivos de cobertura",null,null,null,null,null,null,{"$f":"IF(ISBLANK(G77),0,1)","v":0},{"$f":"IF(ISBLANK(H77),0,3)","v":0},{"$f":"IF(ISBLANK(I77),0,5)","v":0}]
[null,null,null,"○","Os custos são coordenados e padronizados em diferentes sectores e parceiros financiando e implementando um pacote padrão de serviços de prevenção do HIV para RAMJ",null,null,null,null,null,null,0,0,0]
[null,null,"Mobilização e financiamento de recursos","○","Há fundos suficientes para responder às necessidades de programação definidas e o financiamento nacional está disponível",null,null,null,null,{"$f":"IFERROR(O79,\"-\")","v":"-"},null,{"$f":"IF(ISBLANK(G79),0,1)","v":0},{"$f":"IF(ISBLANK(H79),0,3)","v":0},{"$f":"IF(ISBLANK(I79),0,5)","v":0},{"$f":"IFERROR(IF(ISBLANK(G79),ROUND(AVERAGEIF(L79:N79,\"<>0\",L79:N79),0),L79),\"-\")","v":"-"},{"$f":"IF(MAX(L79:N79)=0,\"\",MAX(L79:N79))","v":""}]
[null,null,"Reabastecimento doméstico","○","Mais de 20% (países de baixa renda) e 50% (países de renda Média) de recursos necessários para apoiar o programa, humanos e financeiros, são de fontes nacionais",null,null,null,null,{"$f":"IFERROR(O80,\"-\")","v":"-"},null,{"$f":"IF(ISBLANK(G80),0,1)","v":0},{"$f":"IF(ISBLANK(H80),0,3)","v":0},{"$f":"IF(ISBLANK(I80),0,5)","v":0},{"$f":"IFERROR(IF(ISBLANK(G80),ROUND(AVERAGEIF(L80:N80,\"<>0\",L80:N80),0),L80),\"-\")","v":"-"},{"$f":"IF(MAX(L80:N80)=0,\"\",MAX(L80:N80))","v":""}]
[null,null,"Contratação social","○","Os mecanismos de contratação social foram bem desenvolvidos e estão a ser implementados e financiados a partir de fontes nacionais",null,null,null,null,{"$f":"IFERROR(O81,\"-\")","v":"-"},null,0,0,0,{"$f":"IFERROR(ROUND(AVERAGEIF(L81:N82,\"<>0\",L81:N82),0),\"-\")","v":"-"},{"$f":"IF(MAX(L81:N81)=0,\"\",MAX(L81:N81))","v":""}]
[null,null,null,"○","As oportunidades de financiamento são amplamente divulgadas para permitir que os parceiros de implementação locais e organizações lideradas pelas RAMJ tenham acesso ao financiamento. As OSCs são apoiadas para aceder ao financiamento.",null,null,null,null,null,null,0,0,0,null,{"$f":"IF(MAX(L82:N82)=0,\"\",MAX(L82:N82))","v":""}]
[null,null,"Planificação orçamental","Existe um processo de planificação orçamental intersectorial bem gerido para os programas de prevenção do HIV para RAMJ e está em curso uma avaliação dos recursos disponíveis para procurar identificar lacunas e alocar orçamento ao programa para RAMJ: ",null,null,null,null,null,{"$f":"IFERROR(O83,\"-\")","v":"-"},null,null,null,null,{"$f":"IFERROR(ROUND(AVERAGEIF(L84:N86,\"<>0\",L84:N86),0),\"-\")","v":"-"}]
[null,null,null,"○","Os ciclos de planificação orçamental para os programas de prevenção do HIV para RAMJ estão sistemática e cuidadosamente alinhados com os ciclos orçamentais nacionais, provinciais e distritais e com os processos de tomada de decisões fiscais",null,null,null,null,null,null,0,0,0]
[null,null,null,"○","A planificação orçamental distingue os tipos de financiamento/orçamento disponíveis para uma resposta abrangente de prevenção para RAMJ",null,null,null,null,null,null,0,0,0]
[null,null,null,"○","Foi realizada uma análise da lacuna financeira do programa nacional de prevenção do HIV para RAMJ",null,null,null,null,null,null,0,0,0,null,{"$f":"IF(MAX(L86:N86)=0,\"\",MAX(L86:N86))","v":""}]
[]
[null,null,null,null,null,null,null,null,null,null,null,null,{"$f":"COUNTIF(O6:O87,\"-\")","v":13}]
[null,null,null,null,null,null,null,null,null,null,null,null,{"$f":"COUNTIF(O6:O87,\">0\")","v":0}]
[null,null,null,null,null,null,null,null,null,null,null,"Preenchimento de folha",{"$f":"M89/(M88+M89)","v":0},{"$f":"1-M90","v":1}]

{"sheet":"Implementação do Programa","index":6,"n_rows":237,"n_cols":16,"rows_kept":237,"cut":false,"hidden":false,"merged":[[226,9,229,9],[212,2,220,2],[212,3,212,4],[212,9,220,9],[221,2,225,2],[221,3,221,4],[221,9,225,9],[177,9,177,10],[201,9,205,9],[206,2,211,2],[206,3,206,4],[206,9,211,9],[178,2,187,2],[178,3,178,4],[178,9,187,9],[188,2,194,2],[188,3,188,4],[188,9,194,9],[195,2,200,2],[195,3,195,4],[195,9,200,9],[178,5,178,8],[188,5,188,8],[195,5,195,8],[133,2,136,2],[133,3,133,4],[133,9,136,9],[137,2,145,2],[137,3,137,4],[137,9,145,9],[146,2,149,2],[146,3,146,4],[146,9,149,9],[133,5,133,8],[137,5,137,8],[146,5,146,8],[151,5,151,8],[166,5,166,8],[170,5,170,8],[150,9,150,10],[151,2,164,2],[151,3,151,4],[151,9,164,9],[166,2,169,2],[166,3,166,4],[170,2,176,2],[170,3,170,4],[170,9,176,9],[166,9,169,9],[150,2,150,4],[165,2,165,10],[106,2,116,2],[106,3,106,4],[106,9,116,9],[117,2,124,2],[117,3,117,4],[117,9,124,9],[125,2,132,2],[125,3,125,4],[125,9,132,9],[106,5,106,8],[117,5,117,8],[125,5,125,8],[82,2,90,2],[82,3,82,4],[82,9,90,9],[92,2,100,2],[92,3,92,4],[92,9,100,9],[101,2,105,2],[101,3,101,4],[101,9,105,9],[82,5,82,8],[92,5,92,8],[101,5,101,8],[91,2,91,10],[77,3,77,4],[77,2,81,2],[77,9,81,9],[47,2,57,2],[47,3,47,4],[47,9,57,9],[58,2,62,2],[58,3,58,4],[58,9,62,9],[63,2,74,2],[63,3,63,4],[63,9,74,9],[77,5,77,8],[75,2,75,10],[32,2,35,2],[32,3,32,4],[32,9,35,9],[37,2,46,2],[37,3,37,4],[37,9,46,9],[41,3,41,4],[76,3,76,4],[36,2,36,10],[32,5,32,8],[37,5,37,8],[41,5,41,8],[47,5,47,8],[58,5,58,8],[63,5,63,8],[15,2,18,2],[15,3,15,4],[15,9,18,9],[19,2,26,2],[19,3,19,4],[19,9,26,9],[28,2,31,2],[28,3,28,4],[28,9,31,9],[27,2,27,10],[15,5,15,8],[19,5,19,8],[28,5,28,8],[1,2,1,9],[3,3,3,4],[5,2,10,2],[5,3,5,4],[5,9,10,9],[11,2,14,2],[11,3,11,4],[11,9,14,9],[4,2,4,10],[5,5,5,8],[11,5,11,8],[201,5,201,8],[206,5,206,8],[212,5,212,8],[221,5,221,8],[226,5,226,8],[226,2,229,2],[226,3,226,4],[201,2,205,2],[201,3,201,4]]}
[]
[null,null,"Implementação do Programa"]
[]
[null,null,"Elemento","Critérios",null,"N/A","Ausente","Presente mas não ideal","Presente e a funcionar bem","Média do elemento","Comentários (se existentes)","Absent","Present","Optimal","Average","Sustainability Single Figure"]
[null,null,"Definição de metas e planificação"]
[null,null,"Avaliação demográfica e disagregação","Os dados nacionais sobre a incidência do HIV estão disponíveis em fontes apropriadas e modelos matemáticos (isto é, estimativas provinciais e distritais do ONUSIDA) ",null,null,null,null,null,{"$f":"IFERROR(O6,\"-\")","v":"-"},null,null,null,null,{"$f":"IFERROR(ROUND(AVERAGEIF(L7:N11,\"<>0\",L7:N11),0),\"-\")","v":"-"}]
[null,null,null,"○","Os dados são desagregados por idade, sexo e localização",null,null,null,null,null,null,{"$f":"IF(ISBLANK(G7),0,1)","v":0},{"$f":"IF(ISBLANK(H7),0,3)","v":0},{"$f":"IF(ISBLANK(I7),0,5)","v":0}]
[null,null,null,"○","São identificados e analisados os padrões de incidência/transmissão a nível do país - incluindo possíveis interacções entre RAMJ e outros grupos etários de mulheres/homens. ",null,null,null,null,null,null,{"$f":"IF(ISBLANK(G8),0,1)","v":0},{"$f":"IF(ISBLANK(H8),0,3)","v":0},{"$f":"IF(ISBLANK(I8),0,5)","v":0}]
[null,null,null,"○","A informação é utilizada para informar a necessidade de prestação de serviços através de plataformas de saúde, de educação e da comunidade",null,null,null,null,null,null,{"$f":"IF(ISBLANK(G9),0,1)","v":0},{"$f":"IF(ISBLANK(H9),0,3)","v":0},{"$f":"IF(ISBLANK(I9),0,5)","v":0}]
[null,null,null,"○","Esta informação é utilizada para estimar as necessidades de financiamento e definir objectivos",null,null,null,null,null,null,{"$f":"IF(ISBLANK(G10),0,1)","v":0},{"$f":"IF(ISBLANK(H10),0,3)","v":0},{"$f":"IF(ISBLANK(I10),0,5)","v":0}]
[null,null,null,"○","Esta informação é utilizada para determinar que pacote de intervenções é implementado em que distrito/país/região/estado",null,null,null,null,null,null,{"$f":"IF(ISBLANK(G11),0,1)","v":0},{"$f":"IF(ISBLANK(H11),0,3)","v":0},{"$f":"IF(ISBLANK(I11),0,5)","v":0}]
[null,null,"Avaliação de necessidades","Foi concluída uma avaliação das necessidades das RAMJ:",null,null,null,null,null,{"$f":"IFERROR(O12,\"-\")","v":"-"},null,null,null,null,{"$f":"IFERROR(ROUND(AVERAGEIF(L13:N15,\"<>0\",L13:N15),0),\"-\")","v":"-"}]
[null,null,null,"○","Envolvimento adequado com organizações ou redes lideradas pelas RAMJ sobre as necessidades",null,null,null,null,null,null,{"$f":"IF(ISBLANK(G13),0,1)","v":0},{"$f":"IF(ISBLANK(H13),0,3)","v":0},{"$f":"IF(ISBLANK(I13),0,5)","v":0}]
[null,null,null,"○","Informação suficiente sobre quais são os serviços de que as RAMJ necessitam, como preferem ter acesso aos serviços, e quem deve prestar os serviços. ",null,null,null,null,null,null,{"$f":"IF(ISBLANK(G14),0,1)","v":0},{"$f":"IF(ISBLANK(H14),0,3)","v":0},{"$f":"IF(ISBLANK(I14),0,5)","v":0}]
[null,null,null,"○","Existe informação suficiente para a segmentação (BASEADA NAS NECESSIDADES/PSICOGRÁFICA), segundo \"risco mais elevado\" & \"mais vulnerável\" para RAMJ",null,null,null,null,null,null,{"$f":"IF(ISBLANK(G15),0,1)","v":0},{"$f":"IF(ISBLANK(H15),0,3)","v":0},{"$f":"IF(ISBLANK(I15),0,5)","v":0}]
[null,null,"Características dos parceiros masculinos de RAMJ","O programa caracterizou os parceiros sexuais das RAMJ para que possam beneficiar de serviços de HIV altamente eficazes: ",null,null,null,null,null,{"$f":"IFERROR(O16,\"-\")","v":"-"},null,null,null,null,{"$f":"IFERROR(ROUND(AVERAGEIF(L17:N19,\"<>0\",L17:N19),0),\"-\")","v":"-"}]
[null,null,null,"○","Análise abrangente de inquéritos e avaliações para compreender as características dos parceiros sexuais masculinos das RAMJ, especialmente nas áreas de alta incidência.",null,null,null,null,null,null,{"$f":"IF(ISBLANK(G17),0,1)","v":0},{"$f":"IF(ISBLANK(H17),0,3)","v":0},{"$f":"IF(ISBLANK(I17),0,5)","v":0}]
[null,null,null,"○","As características dos parceiros masculinos foram segmentadas para ajudar na concepção e focalização adequada das intervenções.",null,null,null,null,null,null,{"$f":"IF(ISBLANK(G18),0,1)","v":0},{"$f":"IF(ISBLANK(H18),0,3)","v":0},{"$f":"IF(ISBLANK(I18),0,5)","v":0}]
[null,null,null,"○","As RAMJ e os seus parceiros masculinos foram consultados durante os exercícios de segmentação.",null,null,null,null,null,null,{"$f":"IF(ISBLANK(G19),0,1)","v":0},{"$f":"IF(ISBLANK(H19),0,3)","v":0},{"$f":"IF(ISBLANK(I19),0,5)","v":0}]
[null,null,"Definição de metas","Os objectivos de cobertura de serviços para RAMJ e seus parceiros masculinos foram claramente definidos e:",null,null,null,null,null,{"$f":"IFERROR(O20,\"-\")","v":"-"},null,null,null,null,{"$f":"IFERROR(ROUND(AVERAGEIF(L21:N27,\"<>0\",L21:N27),0),\"-\")","v":"-"}]
[null,null,null,"○","baseiam-se na estimativa do tamanho, avaliação de risco e dados de seroprevalência",null,null,null,null,null,null,{"$f":"IF(ISBLANK(G21),0,1)","v":0},{"$f":"IF(ISBLANK(H21),0,3)","v":0},{"$f":"IF(ISBLANK(I21),0,5)","v":0}]
[null,null,null,"○","delineados para RAMJ segundo faixas etárias (15-19; 20-24; 25-29)",null,null,null,null,null,null,0,0,0]
[null,null,null,"○","especificados a nível nacional, provincial e distrital",null,null,null,null,null,null,0,0,0]
[null,null,null,"○","incluem realizações tanto intermédias como finais",null,null,null,null,null,null,0,0,0]
[null,null,null,"○","desenvolvidos em consulta com os implementadores para garantir que sejam realistas",null,null,null,null,null,null,0,0,0]
[null,null,null,"○","combinam orçamentos e acordos formais com implementadores locais",null,null,null,null,null,null,0,0,0]
[null,null,null,"○","incluem metas para parceiros masculinos das RAMJ, incluindo para circuncisões médicas masculinas voluntárias, preservativos e serviços de testagem do HIV",null,null,null,null,null,null,0,0,0]
[null,null,"Estimativa do tamanho da população por Níveis de Incidência do HIV"]
[null,null,"Estimativa do tamanho da população - incidência moderada","Estimativa do tamanho da população concluída para grau de incidência > 0.3 e:",null,null,null,null,null,{"$f":"IFERROR(O29,\"-\")","v":"-"},null,null,null,null,{"$f":"IFERROR(ROUND(AVERAGEIF(L30:N32,\"<>0\",L30:N32),0),\"-\")","v":"-"}]
[null,null,null,"○","Está desagregado em faixas etárias para RAMJ (15-19; 20-24; 25-29)",null,null,null,null,null,null,{"$f":"IF(ISBLANK(G30),0,1)","v":0},{"$f":"IF(ISBLANK(H30),0,3)","v":0},{"$f":"IF(ISBLANK(I30),0,5)","v":0}]
[null,null,null,"○","Está baseado no site (nível local em vez de nacional ou provincial)",null,null,null,null,null,null,{"$f":"IF(ISBLANK(G31),0,1)","v":0},{"$f":"IF(ISBLANK(H31),0,3)","v":0},{"$f":"IF(ISBLANK(I31),0,5)","v":0}]
[null,null,null,"○","É actualizado anualmente ou aquando da conclusão de um inquérito bio-comportamental",null,null,null,null,null,null,{"$f":"IF(ISBLANK(G32),0,1)","v":0},{"$f":"IF(ISBLANK(H32),0,3)","v":0},{"$f":"IF(ISBLANK(I32),0,5)","v":0}]
[null,null,"Estimativa do tamanho da população - incidência elevada","Estimativa do tamanho da população concluída para um graus de incidência > 1.0 e:",null,null,null,null,null,{"$f":"IFERROR(O33,\"-\")","v":"-"},null,null,null,null,{"$f":"IFERROR(ROUND(AVERAGEIF(L34:N36,\"<>0\",L34:N36),0),\"-\")","v":"-"}]
[null,null,null,"○",{"$f":"E30","v":"Está desagregado em faixas etárias para RAMJ (15-19; 20-24; 25-29)"},null,null,null,null,null,null,{"$f":"IF(ISBLANK(G34),0,1)","v":0},{"$f":"IF(ISBLANK(H34),0,3)","v":0},{"$f":"IF(ISBLANK(I34),0,5)","v":0}]
[null,null,null,"○","Está baseado no site (nível local em vez de nacional ou provincial)",null,null,null,null,null,null,{"$f":"IF(ISBLANK(G35),0,1)","v":0},{"$f":"IF(ISBLANK(H35),0,3)","v":0},{"$f":"IF(ISBLANK(I35),0,5)","v":0}]
[null,null,null,"○","É actualizado anualmente ou aquando da conclusão de um inquérito bio-comportamental",null,null,null,null,null,null,{"$f":"IF(ISBLANK(G36),0,1)","v":0},{"$f":"IF(ISBLANK(H36),0,3)","v":0},{"$f":"IF(ISBLANK(I36),0,5)","v":0}]
[null,null,"Identificas os grupos \"mais vulneráveis\" ou \"de maior risco\""]
[null,null,"Avaliação epidemiológica (inquérito de soroprevalência e determinantes de risco)","As estimativas de soroprevalência estão disponíveis e:",null,null,null,null,null,{"$f":"IFERROR(O38,\"-\")","v":"-"},null,null,null,null,{"$f":"IFERROR(ROUND(AVERAGEIF(L39:N47,\"<>0\",L39:N47),0),\"-\")","v":"-"}]
[null,null,null,"○","Baseadas em vigilância recente e/ou contínua (estimativas modeladas actualizadas anualmente ou dados de inquérito actualizados a cada 3-5 anos)",null,null,null,null,null,null,{"$f":"IF(ISBLANK(G39),0,1)","v":0},{"$f":"IF(ISBLANK(H39),0,3)","v":0},{"$f":"IF(ISBLANK(I39),0,5)","v":0}]
[null,null,null,"○","Podem ser desagregadas por faixas etárias de RAMJ (15-19; 20-24; 25-29)",null,null,null,null,null,null,0,0,0]
[null,null,null,"○","Os resultados são precisos; tamanho de amostra estatisticamente representativo (devidamente alimentado) e método de amostragem apropriado para RAMJ.",null,null,null,null,null,null,0,0,0]
[null,null,null,"As avaliações sobre os determinantes de risco têm sido realizadas regularmente para raparigas adolescentes e mulheres jovens para informar o programa e:",null,null,null,null,null,null,null,0,0,0]
[null,null,null,"○","incluem uma análise abrangente de Inquéritos Demográficas e de Saúde, Inquérito Nacional sobre o Impacto do HIV na População e Inquéritos sobre Violência contra a Criança",null,null,null,null,null,null,0,0,0]
[null,null,null,"○","são específicos às RAMJ e tomam em consideração comportamentos específicos de idade e género",null,null,null,null,null,null,0,0,0]
[null,null,null,"○","os estudos são de boa qualidade e fornecem informações abrangentes",null,null,null,null,null,null,0,0,0]
[null,null,null,"○","os resultados são precisos; tamanho de amostra estatisticamente representativo (devidamente alimentado) e método de amostragem apropriado para RAMJ.",null,null,null,null,null,null,0,0,0]
[null,null,null,"○","Esta informação também é utilizada para determinar qual pacote de intervenções é implementado em qual distrito/país/região/estado e informa as mudanças no programa/intervenções conforme as vulnerabilidades vão mudando ao longo do tempo",null,null,null,null,null,null,0,0,0]
[null,null,"Factores comportamentais de risco","Para entender quais estratégias de prevenção são mais/menos importantes, estão disponíveis os dados sobre os factores comportamentais que contribuem para a infecção pelo HIV por raparigas adolescentes e mulheres jovens no país e/ou área(s) provincial(ais) e distrital(ais), incluindo:",null,null,null,null,null,{"$f":"IFERROR(O48,\"-\")","v":"-"},null,null,null,null,{"$f":"IFERROR(ROUND(AVERAGEIF(L49:N58,\"<>0\",L49:N58),0),\"-\")","v":"-"}]
[null,null,null,"○","Sexo por idade",null,null,null,null,null,null,{"$f":"IF(ISBLANK(G49),0,1)","v":0},{"$f":"IF(ISBLANK(H49),0,3)","v":0},{"$f":"IF(ISBLANK(I49),0,5)","v":0}]
[null,null,null,"○","Vários parceiros",null,null,null,null,null,null,0,0,0]
[null,null,null,"○","Trabalho sexual",null,null,null,null,null,null,0,0,0]
[null,null,null,"○","Exploração sexual",null,null,null,null,null,null,0,0,0]
[null,null,null,"○","Sexo transacional",null,null,null,null,null,null,0,0,0]
[null,null,null,"○","Início precoce da actividade sexual",null,null,null,null,null,null,0,0,0]
[null,null,null,"○","Lacunas de conhecimento",null,null,null,null,null,null,0,0,0]
[null,null,null,"○","Percepção limitada do risco",null,null,null,null,null,null,0,0,0]
[null,null,null,"○","Consumo de álcool",null,null,null,null,null,null,0,0,0]
[null,null,null,"○","Consumo de drogas ílicitas",null,null,null,null,null,null,0,0,0]
[null,null,"Factores biológicos de risco","Para compreender que estratégias de prevenção são mais/menos importantes, estão disponíveis dados sobre os factores biológicos que contribuem para a infecção pelo HIV por RAMJ no país e/ou área(s) provincial(ais) e distrital(ais) priorizada(s), incluindo:",null,null,null,null,null,{"$f":"IFERROR(O59,\"-\")","v":"-"},null,null,null,null,{"$f":"IFERROR(ROUND(AVERAGEIF(L60:N63,\"<>0\",L60:N63),0),\"-\")","v":"-"}]
[null,null,null,"○","Susceptibilidade biológica das RAMJ",null,null,null,null,null,null,{"$f":"IF(ISBLANK(G60),0,1)","v":0},{"$f":"IF(ISBLANK(H60),0,3)","v":0},{"$f":"IF(ISBLANK(I60),0,5)","v":0}]
[null,null,null,"○","Carga viral do HIV entre parceiros masculinos (por faixa etária)",null,null,null,null,null,null,{"$f":"IF(ISBLANK(G61),0,1)","v":0},{"$f":"IF(ISBLANK(H61),0,3)","v":0},{"$f":"IF(ISBLANK(I61),0,5)","v":0}]
[null,null,null,"○","Prevalência baixa da circuncisão masculina",null,null,null,null,null,null,{"$f":"IF(ISBLANK(G62),0,1)","v":0},{"$f":"IF(ISBLANK(H62),0,3)","v":0},{"$f":"IF(ISBLANK(I62),0,5)","v":0}]
[null,null,null,"○","Prevalência de infecções de transmissão sexual e outras co-infecções",null,null,null,null,null,null,{"$f":"IF(ISBLANK(G63),0,1)","v":0},{"$f":"IF(ISBLANK(H63),0,3)","v":0},{"$f":"IF(ISBLANK(I63),0,5)","v":0}]
[null,null,"Factores estruturais de risco","Para compreender que estratégias de prevenção são mais/menos importantes, estão disponíveis dados sobre os factores estruturais de infecção pelo HIV por raparigas adolescentes e mulheres jovens no país e/ou área(s) provincial(ais) priorizada(s), incluindo:",null,null,null,null,null,{"$f":"IFERROR(O64,\"-\")","v":"-"},null,null,null,null,{"$f":"IFERROR(ROUND(AVERAGEIF(L65:N75,\"<>0\",L65:N75),0),\"-\")","v":"-"}]
[null,null,null,"○","Normas sociais e de género nocivas",null,null,null,null,null,null,{"$f":"IF(ISBLANK(G65),0,1)","v":0},{"$f":"IF(ISBLANK(H65),0,3)","v":0},{"$f":"IF(ISBLANK(I65),0,5)","v":0}]
[null,null,null,"○","Desigualdade de género e dinâmicas de poder desiguais",null,null,null,null,null,null,0,0,0]
[null,null,null,"○","Baixa frequência do ensino secundário/elevadas taxas de abandono escolar",null,null,null,null,null,null,0,0,0]
[null,null,null,"○","Falta de empoderamento económico / elevada taxa de desemprego",null,null,null,null,null,null,0,0,0]
[null,null,null,"○","Migração laboral e separação conjugal",null,null,null,null,null,null,0,0,0]
[null,null,null,"○","Barreiras ao acesso aos serviços de saúde sexual e reprodutiva e HIV",null,null,null,null,null,null,0,0,0]
[null,null,null,"○","Orfandade",null,null,null,null,null,null,0,0,0]
[null,null,null,"○","Abuso sexual da criança",null,null,null,null,null,null,0,0,0]
[null,null,null,"○","Violência baseada no género",null,null,null,null,null,null,0,0,0]
[null,null,null,"○"," Criminalização da actividade sexual entre pessoas do mesmo sexo, diversidade de género, trabalho sexual e consumo de drogas",null,null,null,null,null,null,{"$f":"IF(ISBLANK(G74),0,1)","v":0},{"$f":"IF(ISBLANK(H74),0,3)","v":0},{"$f":"IF(ISBLANK(I74),0,5)","v":0}]
[null,null,null,"○","Padrões de casamento",null,null,null,null,null,null,{"$f":"IF(ISBLANK(G75),0,1)","v":0},{"$f":"IF(ISBLANK(H75),0,3)","v":0},{"$f":"IF(ISBLANK(I75),0,5)","v":0}]
[null,null,"Desenvolver um Quadro de Resultados (Teoria da Mudança)"]
[null,null,"Definir e priorizar pacotes de prevenção do HIV por categoria de incidência aplicável\n","Foram utilizadas a matriz de priorização e investimento e a directriz de tomada de decisão para orientar quais pacotes de prevenção do HIV foram implementados em diferentes locais, dado o nível de risco",null,null,null,null,null,{"$f":"IFERROR(O77,\"-\")","v":"-"},null,{"$f":"IF(ISBLANK(G77),0,1)","v":0},{"$f":"IF(ISBLANK(H77),0,3)","v":0},{"$f":"IF(ISBLANK(I77),0,5)","v":0},{"$f":"IFERROR(ROUND(AVERAGEIF(L77:N77,\"<>0\",L77:N77),0),\"-\")","v":"-"}]
[null,null,"Quadro de Resultados /Teoria da Mudança Inclui Metas de Cobertura Programática","São definidas metas programáticas para a prevenção do HIV em locais de incidência moderada e elevada",null,null,null,null,null,{"$f":"IFERROR(O78,\"-\")","v":"-"},null,null,null,null,{"$f":"IFERROR(ROUND(AVERAGEIF(L79:N82,\"<>0\",L79:N82),0),\"-\")","v":"-"}]
[null,null,null,"○","Metas de resultados definidas e formuladas de forma que afecta directamente a incidência do HIV em RAMJ",null,null,null,null,null,null,{"$f":"IF(ISBLANK(G79),0,1)","v":0},{"$f":"IF(ISBLANK(H79),0,3)","v":0},{"$f":"IF(ISBLANK(I79),0,5)","v":0}]
[null,null,null,"○","São claramente definidos os resultados intermediários que contribuem para os resultados de nível mais alto, e que, por sua vez, afectam a incidência do HIV",null,null,null,null,null,null,{"$f":"IF(ISBLANK(G80),0,1)","v":0},{"$f":"IF(ISBLANK(H80),0,3)","v":0},{"$f":"IF(ISBLANK(I80),0,5)","v":0}]
[null,null,null,"○","São definidas metas de cobertura e são adequadas em termos de escala e âmbito para atingir as metas do resultado",null,null,null,null,null,null,{"$f":"IF(ISBLANK(G81),0,1)","v":0},{"$f":"IF(ISBLANK(H81),0,3)","v":0},{"$f":"IF(ISBLANK(I81),0,5)","v":0}]
[null,null,null,"○","As metas são desagregadas e rastreadas por grupos de diferentes idades (15-19; 20-24; 25-29)",null,null,null,null,null,null,{"$f":"IF(ISBLANK(G82),0,1)","v":0},{"$f":"IF(ISBLANK(H82),0,3)","v":0},{"$f":"IF(ISBLANK(I82),0,5)","v":0}]
[null,null,"Quadro de Resultados /Teoria da Mudança Inclui Actividades Transversais e Acção Complementar","O Quadro de Resultados/Teoria da Mudança para RAMJ está ligado aos esforços mais amplos nas áreas de:",null,null,null,null,null,{"$f":"IFERROR(O83,\"-\")","v":"-"},null,null,null,null,{"$f":"IFERROR(ROUND(AVERAGEIF(L84:N91,\"<>0\",L84:N91),0),\"-\")","v":"-"}]
[null,null,null,"○","HIV prevention",null,null,null,null,null,null,{"$f":"IF(ISBLANK(G84),0,1)","v":0},{"$f":"IF(ISBLANK(H84),0,3)","v":0},{"$f":"IF(ISBLANK(I84),0,5)","v":0}]
[null,null,null,"○","Serviços de testagem do HIV e referências",null,null,null,null,null,null,0,0,0]
[null,null,null,"○","Saúde sexual e reprodutiva",null,null,null,null,null,null,0,0,0]
[null,null,null,"○","Saúde e bem-estar da adolescente e da mulher",null,null,null,null,null,null,0,0,0]
[null,null,null,"○","Prevenção e resposta à violência baseada no género",null,null,null,null,null,null,0,0,0]
[null,null,null,"○","Protecção social",null,null,null,null,null,null,0,0,0]
[null,null,null,"○","Educação",null,null,null,null,null,null,0,0,0]
[null,null,null,"○","Outras actividades de desenvolvimento",null,null,null,null,null,null,0,0,0]
[null,null,"Definir/Desenvolver Sistemas de Prestação de Serviços"]
[null,null,"Desenvolver/assegurar plataformas de saúde","Plataformas do sector da saúde equipadas para oferecer regularmente intervenções básicas em todos os locais.",null,null,null,null,null,{"$f":"IFERROR(O93,\"-\")","v":"-"},null,null,null,null,{"$f":"IFERROR(ROUND(AVERAGEIF(L94:N101,\"<>0\",L94:N101),0),\"-\")","v":"-"}]
[null,null,null,"○","Claramente definido o papel das plataformas de saúde na prevenção para RAMJ (através das políticas, directrizes e planos operacionais aplicáveis)",null,null,null,null,null,null,{"$f":"IF(ISBLANK(G94),0,1)","v":0},{"$f":"IF(ISBLANK(H94),0,3)","v":0},{"$f":"IF(ISBLANK(I94),0,5)","v":0}]
[null,null,null,"○","Alocação e supervisão adequadas do pessoal",null,null,null,null,null,null,0,0,0]
[null,null,null,"○","Plataforma não estigmatizante",null,null,null,null,null,null,0,0,0]
[null,null,null,"○","Os provedores sensibilizados iniciam o aconselhamento sobre prevenção, oferecendo preservativos, lubrificantes, saúde sexual e reprodutiva, profilaxia pré-exposição (PrEP) e outros serviços orientados para a prevenção do HIV",null,null,null,null,null,null,0,0,0]
[null,null,null,"○","Fornece serviços de prevenção do HIV baseados na comunidade e de sensibilização",null,null,null,null,null,null,0,0,0]
[null,null,null,"○","Proporciona criação activa de demanda por PrEP para mulheres jovens em maior risco",null,null,null,null,null,null,0,0,0]
[null,null,null,"○","Existem sistemas/recursos de monitoria baseados na comunidade para obter feedback sobre a qualidade dos serviços prestados através desta plataforma",null,null,null,null,null,null,0,0,0]
[null,null,null,"○","Existem vias de referência activas entre esta plataforma e outras (educação, comunidade)",null,null,null,null,null,null,0,0,0]
[null,null,"Desenvolver/assegurar plataformas de educação","Plataformas de educação equipadas para oferecer regularmente intervenções básicas em todos os locais.",null,null,null,null,null,{"$f":"IFERROR(O102,\"-\")","v":"-"},null,null,null,null,{"$f":"IFERROR(ROUND(AVERAGEIF(L103:N106,\"<>0\",L103:N106),0),\"-\")","v":"-"}]
[null,null,null,"○","Implementados sistemas para assegurar que RAMJ sejam matriculadas no ensino secundário",null,null,null,null,null,null,{"$f":"IF(ISBLANK(G103),0,1)","v":0},{"$f":"IF(ISBLANK(H103),0,3)","v":0},{"$f":"IF(ISBLANK(I103),0,5)","v":0}]
[null,null,null,"○","Claramente definido o papel das plataformas de educação na prevenção para RAMJ (através das políticas, directrizes e planos operacionais aplicáveis)",null,null,null,null,null,null,{"$f":"IF(ISBLANK(G104),0,1)","v":0},{"$f":"IF(ISBLANK(H104),0,3)","v":0},{"$f":"IF(ISBLANK(I104),0,5)","v":0}]
[null,null,null,"○","Campanhas de prevenção do HIV definidas e implementadas nas escolas e instituições terciárias ",null,null,null,null,null,null,{"$f":"IF(ISBLANK(G105),0,1)","v":0},{"$f":"IF(ISBLANK(H105),0,3)","v":0},{"$f":"IF(ISBLANK(I105),0,5)","v":0}]
[null,null,null,null,"Ligações à prestação de serviços dentro ou perto da escola (aconselhamento e testagem, distribuição e promoção de preservativos e lubrificantes, referência a outros serviços de prevenção, etc.), claramente definidas.",null,null,null,null,null,null,{"$f":"IF(ISBLANK(G106),0,1)","v":0},{"$f":"IF(ISBLANK(H106),0,3)","v":0},{"$f":"IF(ISBLANK(I106),0,5)","v":0}]
[null,null,"Desenvolver/assegurar plataformas comunitárias (principais organizações não governamentais (ONG)/organizações da sociedade civil (OSC)) ","Plataformas comunitárias equipadas para oferecer regularmente intervenções básicas em todos os locais",null,null,null,null,null,{"$f":"IFERROR(O107,\"-\")","v":"-"},null,null,null,null,{"$f":"IFERROR(ROUND(AVERAGEIF(L108:N117,\"<>0\",L108:N117),0),\"-\")","v":"-"}]
[null,null,null,"○","Claramente definido o papel das plataformas comunitárias na prevenção para RAMJ (através das políticas, directrizes e planos operacionais aplicáveis)",null,null,null,null,null,null,{"$f":"IF(ISBLANK(G108),0,1)","v":0},{"$f":"IF(ISBLANK(H108),0,3)","v":0},{"$f":"IF(ISBLANK(I108),0,5)","v":0}]
[null,null,null,"○","Alocação e supervisão adequadas do pessoal",null,null,null,null,null,null,0,0,0]
[null,null,null,"○","Plataformas comunitárias relativas a estratégias de criação de demanda por programas de prevenção do HIV para RAMJ, claramente definidas.",null,null,null,null,null,null,0,0,0]
[null,null,null,"○","Está implantado e em vigor um sistema de implementação para ONGs/OSCs que está alinhado ao plano de expansão e de execução de intervenções específicas de prevenção do HIV para RAMJ com base na compreensão do risco",null,null,null,null,null,null,0,0,0]
[null,null,null,"○","Claramente definido o papel das ONGs/OSCs no que diz respeito à prestação de serviços de prevenção do HIV para RAMJ - incluindo ligações com as plataformas de saúde e educação",null,null,null,null,null,null,null,0]
[null,null,null,"○","Fornece mobilização da comunidade e comunicação interpessoal sobre conhecimentos básicos de prevenção do HIV, percepção de risco e sobre transformação da comunidade em ralação ao HIV e normas de género",null,null,null,null,null,null,0,0,0]
[null,null,null,"○","Implantado e em vigor um sistema de implementação comunitário e de divisão de trabalho entre ONGs/OSCs para permitir expansão",null,null,null,null,null,null,0,0,0]
[null,null,null,"○","Implantados sistemas/recursos de monitoria baseada na comunidade para obter feedback sobre a qualidade dos serviços prestados através desta plataforma",null,null,null,null,null,null,0,0,0]
[null,null,null,"○","Trabalha em estreita colaboração com os líderes comunitários",null,null,null,null,null,null,0,0,0]
[null,null,null,"○","Faz uso de Educadores de Pares e agentes comunitários de saúde",null,null,null,null,null,null,0,0,0]
[null,null,"Serviços acessíveis","Os serviços são acessíveis às comunidades de RAMJ e:",null,null,null,null,null,{"$f":"IFERROR(O118,\"-\")","v":"-"},null,null,null,null,{"$f":"IFERROR(ROUND(AVERAGEIF(L119:N125,\"<>0\",L119:N125),0),\"-\")","v":"-"}]
[null,null,null,"○","São concebidos e desenvolvidos com base na pesquisa formativa realizada na avaliação de necessidades",null,null,null,null,null,null,{"$f":"IF(ISBLANK(G119),0,1)","v":0},{"$f":"IF(ISBLANK(H119),0,3)","v":0},{"$f":"IF(ISBLANK(I119),0,5)","v":0}]
[null,null,null,"○","Incluem  modelos de prestação de serviços diferenciados para atender às necessidades de RAMJ na sua diversidade",null,null,null,null,null,null,0,0,0]
[null,null,null,"○","O horário de funcionamento é apropriado às RAMJ que os serviços têm como alvo",null,null,null,null,null,null,0,0,0]
[null,null,null,"○","Estão integrados ao sistema geral de saúde e fornecem pacotes de cuidados abrangentes",null,null,null,null,null,null,0,0,0]
[null,null,null,"○","A sua prestação e produtos são consistentes",null,null,null,null,null,null,0,0,0]
[null,null,null,"○","Os serviços são fornecidos da forma mais acessível (por exemplo, idade de consentimento para os serviços, com envolvimento dos pais sempre que possível)",null,null,null,null,null,null,0,0,0]
[null,null,null,"○","As RAMJ estão cientes de onde podem obter os serviços de saúde de que precisam e podem e estão dispostas a procurá-los quando necessário",null,null,null,null,null,null,0,0,0]
[null,null,"Serviço amigos do jovem/aceitáveis","Os serviços são aceitáveis ​​para as raparigas adolescentes e mulheres jovens e:",null,null,null,null,null,{"$f":"IFERROR(O126,\"-\")","v":"-"},null,null,null,null,{"$f":"IFERROR(ROUND(AVERAGEIF(L127:N133,\"<>0\",L127:N133),0),\"-\")","v":"-"}]
[null,null,null,"○","São confidenciais (mesmo para as adolescentes)",null,null,null,null,null,null,{"$f":"IF(ISBLANK(G127),0,1)","v":0},{"$f":"IF(ISBLANK(H127),0,3)","v":0},{"$f":"IF(ISBLANK(I127),0,5)","v":0}]
[null,null,null,"○","Os provedores são sensíveis às necessidades das RAMJ na sua diversidade, sem julgamento e sem estigmatização",null,null,null,null,null,null,0,0,0]
[null,null,null,"○","Os provedores são formados para serem capazes de oferecer um pacote abrangente de intervenção específica para as RAMJ",null,null,null,null,null,null,0,0,0]
[null,null,null,"○","Os provedores garantem ligações para atender às necessidades específicas de jovens grávidas, jovens com deficiência, mulheres jovens que usam drogas e outros grupos particularmente vulneráveis ​​das RAMJ",null,null,null,null,null,null,0,0,0]
[null,null,null,"○","Criam um ambiente seguro e de apoio",null,null,null,null,null,null,0,0,0]
[null,null,null,"○","Os provedores dirigem grupos de apoio às RAMJ",null,null,null,null,null,null,0,0,0]
[null,null,null,"○","As intervenções on-line são realizadas de forma ética, respeitando a privacidade e a confidencialidade dos utentes",null,null,null,null,null,null,0,0,0]
[null,null,"Serviços Personalizados/Apropriados","A oferta de serviços aborda os riscos e os níveis de soroprevalência de raparigas adolescentes e mulheres jovens:",null,null,null,null,null,{"$f":"IFERROR(O134,\"-\")","v":"-"},null,null,null,null,{"$f":"IFERROR(ROUND(AVERAGEIF(L135:N137,\"<>0\",L135:N137),0),\"-\")","v":"-"}]
[null,null,null,"○","Os provedores de serviços utilizam ferramentas de avaliação de risco para oferecer serviços apropriados e prioritários para RAMJ e seus parceiros nos contextos mais adequados",null,null,null,null,null,null,{"$f":"IF(ISBLANK(G135),0,1)","v":0},{"$f":"IF(ISBLANK(H135),0,3)","v":0},{"$f":"IF(ISBLANK(I135),0,5)","v":0}]
[null,null,null,"○","O pacote de serviço disponível está alinhado com o nível de incidência do contexto (moderada, elevada)",null,null,null,null,null,null,{"$f":"IF(ISBLANK(G136),0,1)","v":0},{"$f":"IF(ISBLANK(H136),0,3)","v":0},{"$f":"IF(ISBLANK(I136),0,5)","v":0}]
[null,null,null,"○","A oferta de serviços é ajustada aos riscos e necessidades das RAMJ ao longo do tempo.",null,null,null,null,null,null,{"$f":"IF(ISBLANK(G137),0,1)","v":0},{"$f":"IF(ISBLANK(H137),0,3)","v":0},{"$f":"IF(ISBLANK(I137),0,5)","v":0}]
[null,null,"Educadores de pares (POE), agentes comunitários de saúde e outros quadros relevantes para programas para RAMJ","Educadores comunitários de pares, agentes comunitários de saúde e outros quadros relevantes para os programas para RAMJ são utilizados ​​de forma eficaz no programa:",null,null,null,null,null,{"$f":"IFERROR(O138,\"-\")","v":"-"},null,null,null,null,{"$f":"IFERROR(ROUND(AVERAGEIF(L139:N146,\"<>0\",L139:N146),0),\"-\")","v":"-"}]
[null,null,null,"○","São provenientes da comunidade das RAMJ que representam ou servem",null,null,null,null,null,null,{"$f":"IF(ISBLANK(G139),0,1)","v":0},{"$f":"IF(ISBLANK(H139),0,3)","v":0},{"$f":"IF(ISBLANK(I139),0,5)","v":0}]
[null,null,null,"○","Currículo de formação disponível, abrangente, apropriado e actualizado",null,null,null,null,null,null,0,0,0]
[null,null,null,"○","Implantado e em vigor o plano de formação persolizada para melhorar as habilidades, confiança e liderança dos educadores de pares",null,null,null,null,null,null,0,0,0]
[null,null,null,"○","Educadores de pares são remunerados",null,null,null,null,null,null,0,0,0]
[null,null,null,"○","Ferramentas de sensibilização disponíveis para mobilização comunitária para a promoção do acesso aos serviços",null,null,null,null,null,null,0,0,0]
[null,null,null,"○","Utiliza mensagens e materiais de comunicação baseados em evidências",null,null,null,null,null,null,0,0,0]
[null,null,null,"○","Fornece informações sobre os serviços disponíveis e encaminha e liga os beneficiários a outros serviços",null,null,null,null,null,null,0,0,0]
[null,null,null,"○","Fornece aconselhamento e apoio emocional para sustentar o tratamento, continuação da PrEP, planeamento familiar e outros serviços aos quais os beneficiários estão ligados",null,null,null,null,null,null,0,0,0]
[null,null,"Envolvimento significativo das comunidades afectadas na liderança e coordenação","As RAMJ estão representadas nos órgãos de coordenação nacionais, provinciais e distritais e GTTs\n",null,null,null,null,null,{"$f":"IFERROR(O147,\"-\")","v":"-"},null,null,null,null,{"$f":"IFERROR(ROUND(AVERAGEIF(L148:N150,\"<>0\",L148:N150),0),\"-\")","v":"-"}]
[null,null,null,"○","Participam activamente nos processos de tomada de decisão como parceiros iguais",null,null,null,null,null,null,{"$f":"IF(ISBLANK(G148),0,1)","v":0},{"$f":"IF(ISBLANK(H148),0,3)","v":0},{"$f":"IF(ISBLANK(I148),0,5)","v":0}]
[null,null,null,"○","Recebem apoio para solicitar feedback e comunicar as principais decisões aos constituintes que representam",null,null,null,null,null,null,{"$f":"IF(ISBLANK(G149),0,1)","v":0},{"$f":"IF(ISBLANK(H149),0,3)","v":0},{"$f":"IF(ISBLANK(I149),0,5)","v":0}]
[null,null,null,"○","Há evidências de que o feedback, contribuições e conselhos de especialistas fornecidos pela organização liderada pelas RAMJ são levados em consideração",null,null,null,null,null,null,{"$f":"IF(ISBLANK(G150),0,1)","v":0},{"$f":"IF(ISBLANK(H150),0,3)","v":0},{"$f":"IF(ISBLANK(I150),0,5)","v":0}]
[null,null,"Definir Mecanismo de Gestão"]
[null,null,"Sistemas nacionais, provinciais e distritais de gestão","Sistemas, processos e planos nacionais, provinciais e distritais gerem e contribuem activamente para uma resposta programática de impacto e adequada. ",null,null,null,null,null,{"$f":"IFERROR(O152,\"-\")","v":"-"},null,null,null,null,{"$f":"IFERROR(ROUND(AVERAGEIF(L153:N165,\"<>0\",L153:N165),0),\"-\")","v":"-"}]
[null,null,null,"○","Foi alcançada a coordenação entre parceiros de financiamento (a nível nacional), programas locais, representantes das RAMJ, parceiros de implementação, ministérios/direcções provinciais/serviços distritais (a nível nacional, provincial e distrital)",null,null,null,null,null,null,{"$f":"IF(ISBLANK(G153),0,1)","v":0},{"$f":"IF(ISBLANK(H153),0,3)","v":0},{"$f":"IF(ISBLANK(I153),0,5)","v":0}]
[null,null,null,"○","Foi alcançada a coordenação multi-sectorial com todos os outros ministérios/direcções provinciais/serviços distritais (por exemplo, finanças e aplicação da lei) e todos os departamentos governamentais estão envolvidos.",null,null,null,null,null,null,0,0,0]
[null,null,null,"○","É utilizada uma abordagem rigorosa, justa e documentada para seleccionar e contratar parceiros de organizações não governamentais locais e outros provedores de serviços externos responsáveis pela implementação provincial e distrital.",null,null,null,null,null,null,0,0,0]
[null,null,null,"○","A liderança dos organismos nacionais, provinciais e distritais do CNCS interagem regularmente com as organizações não-governamentais parceiras/provedores de serviço.",null,null,null,null,null,null,0,0,0]
[null,null,null,"○","Os sistemas de gestão empregam uma abordagem estruturada (ligada aos planos estratégicos e operacionais nacionais) com flexibilidade para a adaptação local e o estabelecimento de prioridades.",null,null,null,null,null,null,0,0,0]
[null,null,null,"○","Existem fóruns estabelecidos para a revisão trimestral pelos pares dos programas a nível provincial e distrital, bem como um de revisão anual tanto a nível provincial e distrital como nacional.",null,null,null,null,null,null,0,0,0]
[null,null,null,"○","Os representantes dos grupos de RAMJ estão incluídos",null,null,null,null,null,null,0,0,0]
[null,null,null,"○","A planificação com líderes locais e avaliações distritais participativas são levadas a cabo regularmente.",null,null,null,null,null,null,0,0,0]
[null,null,null,"○","Os objectivos de cobertura são estabelecidos, revistos regularmente e os programas implementados em conformidade.",null,null,null,null,null,null,0,0,0]
[null,null,null,"○"," Implantados sistemas governamentais de gestão de dados e informação para monitoria e comunicação de resultados/indicadores de prevenção para RAMJ",null,null,null,null,null,null,0,0,0]
[null,null,null,"○","Prioridades bem definidas e a maioria dos objectivos são regularmente atingidos",null,null,null,null,null,null,0,0,0]
[null,null,null,"○","São realizadas avaliações bienais ao nível dos resultados",null,null,null,null,null,null,0,0,0]
[null,null,null,"○","São realizadas avaliações rigorosas de impacto, conforme exigido pelos ciclos de planificação nacionais.",null,null,null,null,null,null,0,0,0]
[null,null,"Desenvolver Plano Operacional e Orçamental"]
[null,null,"Plano Operacional","Implementado plano operacional e orçamental claro com os respectivos prazos",null,null,null,null,null,{"$f":"IFERROR(O167,\"-\")","v":"-"},null,null,null,null,{"$f":"IFERROR(ROUND(AVERAGEIF(L168:N170,\"<>0\",L168:N170),0),\"-\")","v":"-"}]
[null,null,null,"○","Plano actualizado regularmente",null,null,null,null,null,null,{"$f":"IF(ISBLANK(G168),0,1)","v":0},{"$f":"IF(ISBLANK(H168),0,3)","v":0},{"$f":"IF(ISBLANK(I168),0,5)","v":0}]
[null,null,null,"○","Plano operacional partilhado com parceiros de implementação/direcções provinciais e serviços distritais",null,null,null,null,null,null,{"$f":"IF(ISBLANK(G169),0,1)","v":0},{"$f":"IF(ISBLANK(H169),0,3)","v":0},{"$f":"IF(ISBLANK(I169),0,5)","v":0}]
[null,null,null,"○","RAMJ envolvidas nos processos de planificação operacional",null,null,null,null,null,null,{"$f":"IF(ISBLANK(G170),0,1)","v":0},{"$f":"IF(ISBLANK(H170),0,3)","v":0},{"$f":"IF(ISBLANK(I170),0,5)","v":0}]
[null,null,"Orçamentação e Recursos Disponíveis","Implementado plano de financiamento",null,null,null,null,null,{"$f":"IFERROR(O171,\"-\")","v":"-"},null,null,null,null,{"$f":"IFERROR(ROUND(AVERAGEIF(L172:N177,\"<>0\",L172:N177),0),\"-\")","v":"-"}]
[null,null,null,"○","Alocação de recursos priorizada com base no impacto esperado do programa",null,null,null,null,null,null,{"$f":"IF(ISBLANK(G172),0,1)","v":0},{"$f":"IF(ISBLANK(H172),0,3)","v":0},{"$f":"IF(ISBLANK(I172),0,5)","v":0}]
[null,null,null,"○","A prevenção para RAMJ assenta adequadamente sobre várias fontes de financiamento (financiamento da prevenção do HIV, outros financiamentos para HIV, outros financiamentos para a saúde pública e desenvolvimento",null,null,null,null,null,null,0,0,0]
[null,null,null,"○","Custos unitários para todos os elementos do programa disponíveis",null,null,null,null,null,null,0,0,0]
[null,null,null,"○","Mapeado o panorama de financiamento interno e externo",null,null,null,null,null,null,0,0,0]
[null,null,null,"○","Desenvolvida uma estratégia para colmatar as lacunas de financiamento",null,null,null,null,null,null,0,0,0]
[null,null,null,"○","Orçamentos ligados às necessidades de recursos dos planos operacionais para objectivos nacionais, provinciais e distritais",null,null,null,null,null,null,0,0,0]
[null,null,"Elaborar Plano de M&A"]
[null,null,"Monitoria regular","Os indicadores do programa são definidos pelo Governo e os parceiros de implementação apresentam resultados em relação a estes indicadores:",null,null,null,null,null,{"$f":"IFERROR(O179,\"-\")","v":"-"},null,null,null,null,{"$f":"IFERROR(ROUND(AVERAGEIF(L180:N188,\"<>0\",L180:N188),0),\"-\")","v":"-"}]
[null,null,null,"○","São apresentados dados abrangentes",null,null,null,null,null,null,{"$f":"IF(ISBLANK(G180),0,1)","v":0},{"$f":"IF(ISBLANK(H180),0,3)","v":0},{"$f":"IF(ISBLANK(H180),0,5)","v":0}]
[null,null,null,null,"> Regularmente (mensal e trimestralmente)",null,null,null,null,null,null,0,0,{"$f":"IF(ISBLANK(H181),0,5)","v":0}]
[null,null,null,null,"> Na íntegra",null,null,null,null,null,null,0,0,{"$f":"IF(ISBLANK(I182),0,5)","v":0}]
[null,null,null,null,"> A todos os níveis",null,null,null,null,null,null,0,0,0]
[null,null,null,null,"> Por todos os parceiros de implementação",null,null,null,null,null,null,0,0,0]
[null,null,null,"○","Os dados são regularmente analisados por todas as partes interessadas (Governo, sociedade civil, comunidade de RAMJ, parceiros de implementação, doadores) e utilizados para melhorar os programas",null,null,null,null,null,null,0,0,0]
[null,null,null,"○","Incluem feedback regular dos beneficiários",null,null,null,null,null,null,0,0,0]
[null,null,null,"○","Incluem dados dos sistemas de saúde",null,null,null,null,null,null,0,0,0]
[null,null,null,"○","Monitoram as camadas de serviços",null,null,null,null,null,null,0,0,{"$f":"IF(ISBLANK(H188),0,5)","v":0}]
[null,null,"Sistemas de rastreio de referências","Estão em vigor sistemas de rastreio de referências e incluem:",null,null,null,null,null,{"$f":"IFERROR(O189,\"-\")","v":"-"},null,null,null,null,{"$f":"IFERROR(ROUND(AVERAGEIF(L190:N195,\"<>0\",L190:N195),0),\"-\")","v":"-"}]
[null,null,null,"○","Sustentabilidade definida e monitorada rotineiramente",null,null,null,null,null,null,{"$f":"IF(ISBLANK(G190),0,1)","v":0},{"$f":"IF(ISBLANK(H190),0,3)","v":0},{"$f":"IF(ISBLANK(I190),0,5)","v":0},null,{"$f":"IF(MAX(L190:N190)=0,\"\",MAX(L190:N190))","v":""}]
[null,null,null,"○","Uma ferramenta de referência altamente disponível, incluindo Procedimentos Opercaionais Padrão (POPs) claros",null,null,null,null,null,null,0,0,0]
[null,null,null,"○","Um directório de referência na unidades sanitária e nas organizações de educadores de pares, avaliadores de pares ou agentes comunitários de saúde",null,null,null,null,null,null,0,0,0]
[null,null,null,"○","Registo dos resultados ",null,null,null,null,null,null,0,0,0]
[null,null,null,"○","Mecanismos de feedback entre doentes e prestadores (de encaminhamento)",null,null,null,null,null,null,0,0,0]
[null,null,null,"○","Apresentação de relatórios de referência (numa base mensal) para monitorar a eficácia do sistema de referência",null,null,null,null,null,null,0,0,0]
[null,null,"Avaliação de Qualidade","Foram definidos sistemas de recolha de dados sobre a qualidade do programa e respectivos indicadores e:\n",null,null,null,null,null,{"$f":"IFERROR(O196,\"-\")","v":"-"},null,null,null,null,{"$f":"IFERROR(ROUND(AVERAGEIF(L197:N201,\"<>0\",L197:N201),0),\"-\")","v":"-"}]
[null,null,null,"○","São recolhidos dados precisos",null,null,null,null,null,null,{"$f":"IF(ISBLANK(G197),0,1)","v":0},{"$f":"IF(ISBLANK(H197),0,3)","v":0},{"$f":"IF(ISBLANK(I197),0,5)","v":0}]
[null,null,null,"○","Actua-se sobre os dados",null,null,null,null,null,null,{"$f":"IF(ISBLANK(G198),0,1)","v":0},{"$f":"IF(ISBLANK(H198),0,3)","v":0},{"$f":"IF(ISBLANK(I198),0,5)","v":0}]
[null,null,null,"○","Os mecanismos de feedback permitem às RAMJ avaliar os serviços que receberam como um mecanismo para monitorar a qualidade do programa",null,null,null,null,null,null,{"$f":"IF(ISBLANK(G199),0,1)","v":0},{"$f":"IF(ISBLANK(H199),0,3)","v":0},{"$f":"IF(ISBLANK(I199),0,5)","v":0}]
[null,null,null,"○","Dados regularmente auditados",null,null,null,null,null,null,{"$f":"IF(ISBLANK(G200),0,1)","v":0},{"$f":"IF(ISBLANK(H200),0,3)","v":0},{"$f":"IF(ISBLANK(I200),0,5)","v":0}]
[null,null,null,"○","Estão em vigor mecanismos de garantia de qualidade",null,null,null,null,null,null,{"$f":"IF(ISBLANK(G201),0,1)","v":0},{"$f":"IF(ISBLANK(H201),0,3)","v":0},{"$f":"IF(ISBLANK(I201),0,5)","v":0}]
[null,null,"Vigilância","A vigilância permite uma descrição precisa do contexto e dos resultados/impacto do programa de prevenção do HIV para raparigas adolescentes e mulheres jovens:",null,null,null,null,null,{"$f":"IFERROR(O202,\"-\")","v":"-"},null,null,null,null,{"$f":"IFERROR(ROUND(AVERAGEIF(L203:N206,\"<>0\",L203:N206),0),\"-\")","v":"-"}]
[null,null,null,"○","Resultados dos estudos utilizados para informar a tomada de decisões e áreas a corrigir ",null,null,null,null,null,null,{"$f":"IF(ISBLANK(G203),0,1)","v":0},{"$f":"IF(ISBLANK(H203),0,3)","v":0},{"$f":"IF(ISBLANK(I203),0,5)","v":0}]
[null,null,null,"○","Envolve a análise e interpretação de dados a intervalos regulares",null,null,null,null,null,null,{"$f":"IF(ISBLANK(G204),0,1)","v":0},{"$f":"IF(ISBLANK(H204),0,3)","v":0},{"$f":"IF(ISBLANK(I204),0,5)","v":0}]
[null,null,null,"○","Envolve a divulgação regular de informação para satisfazer as necessidades locais, provinciais e nacionais",null,null,null,null,null,null,{"$f":"IF(ISBLANK(G205),0,1)","v":0},{"$f":"IF(ISBLANK(H205),0,3)","v":0},{"$f":"IF(ISBLANK(I205),0,5)","v":0}]
[null,null,null,"○","Inclui inquéritos biológicos e comportamentais, inquéritos sentinela e outros estudos de investigação que analisam indicadores para RAMJs",null,null,null,null,null,null,{"$f":"IF(ISBLANK(G206),0,1)","v":0},{"$f":"IF(ISBLANK(H206),0,3)","v":0},{"$f":"IF(ISBLANK(I206),0,5)","v":0}]
[null,null,"Fluxo de dados","Definidos fluxos de dados a cada nível e:",null,null,null,null,null,{"$f":"IFERROR(O207,\"-\")","v":"-"},null,null,null,null,{"$f":"IFERROR(ROUND(AVERAGEIF(L208:N212,\"<>0\",L208:N212),0),\"-\")","v":"-"}]
[null,null,null,"○","Desenvolvidos para CADA DIRECÇÃO/MINISTÉRIO RELEVANTE (OU SEJA, SAÚDE, EDUCAÇÃO, ETC.)",null,null,null,null,null,null,{"$f":"IF(ISBLANK(G208),0,1)","v":0},{"$f":"IF(ISBLANK(H208),0,3)","v":0},{"$f":"IF(ISBLANK(I208),0,5)","v":0}]
[null,null,null,"○","Definida a utilização de dados a cada nível",null,null,null,null,null,null,{"$f":"IF(ISBLANK(G209),0,1)","v":0},{"$f":"IF(ISBLANK(H209),0,3)","v":0},{"$f":"IF(ISBLANK(I209),0,5)","v":0}]
[null,null,null,"○","Implementado o plano de Acesso Livre",null,null,null,null,null,null,{"$f":"IF(ISBLANK(G210),0,1)","v":0},{"$f":"IF(ISBLANK(H210),0,3)","v":0},{"$f":"IF(ISBLANK(I210),0,5)","v":0}]
[null,null,null,"○","Desenvolvido sistema de código identificador exclusivo",null,null,null,null,null,null,{"$f":"IF(ISBLANK(G211),0,1)","v":0},{"$f":"IF(ISBLANK(H211),0,3)","v":0},{"$f":"IF(ISBLANK(I211),0,5)","v":0}]
[null,null,null,"○","Incorporados dados no Sistema Distrital de Informação de Saúde (DHIS):",null,null,null,null,null,null,{"$f":"IF(ISBLANK(G212),0,1)","v":0},{"$f":"IF(ISBLANK(H212),0,3)","v":0},{"$f":"IF(ISBLANK(I212),0,5)","v":0}]
[null,null,"Dados para tomada de decisão","O Programa Nacional, unidade de monitoria e avaliação do Ministério da Saúde, ou organismo de coordenação similar, supervisiona/coordena a monitoria, o inquérito e a recolha de dados de vigilância e:",null,null,null,null,null,{"$f":"IFERROR(O213,\"-\")","v":"-"},null,null,null,null,{"$f":"IFERROR(ROUND(AVERAGEIF(L214:N221,\"<>0\",L214:N221),0),\"-\")","v":"-"}]
[null,null,null,"○","Partilha dados com o GTT de RAMJ",null,null,null,null,null,null,{"$f":"IF(ISBLANK(G214),0,1)","v":0},{"$f":"IF(ISBLANK(H214),0,3)","v":0},{"$f":"IF(ISBLANK(I214),0,5)","v":0}]
[null,null,null,"○","O GTT de RAMJ analisa trimestralmente os dados dos programas existentes e identifica áreas a corrigir",null,null,null,null,null,null,0,0,0]
[null,null,null,"○","O GTT de RAMJ ajuda no desenvolvimento de estratégias para colmatar as lacunas6",null,null,null,null,null,null,0,0,0]
[null,null,null,"○","São recolhidos dados de alta qualidade (válidos, fidedignos, consistentes, precisos, actualizados, relevantes) e são satisfeitas a maioria das necessidades de informação, e caso não sejam satisfeitas, são compreendidas as lacunas",null,null,null,null,null,null,0,0,0]
[null,null,null,"○","Dados utilizados de forma consistente e adequada pelos membros do GTT para informar as decisões",null,null,null,null,null,null,0,0,0]
[null,null,null,"○","Dados distribuídos pelos parceiros de implementação e as duplicações são mínimas, se é que existem",null,null,null,null,null,null,0,0,0]
[null,null,null,"○","Dados agregados centralmente mas podem ser desagregados por localidade, sexo e idade",null,null,null,null,null,null,0,0,0]
[null,null,null,"○","Plano de monitoria e avaliação ligado ao quadro de resultados e assente em sistemas nacionais de informação de saúde mais amplos - para ajudar a acompanhar e rever regularmente os progressos rumo aos resultados",null,null,null,null,null,null,0,0,0]
[null,null,"Utilização dos Códigos Identificadores Exclusivos para monitoria do programa","Sistema utilizado para monitorar o programa em pleno funcionamento e adequado para monitorar o desempenho do programa ",null,null,null,null,null,{"$f":"IFERROR(O222,\"-\")","v":"-"},null,null,null,null,{"$f":"IFERROR(ROUND(AVERAGEIF(L223:N226,\"<>0\",L223:N226),0),\"-\")","v":"-"}]
[null,null,null,"○","Harmonizados os códigos identificadores exclusivos",null,null,null,null,null,null,{"$f":"IF(ISBLANK(G223),0,1)","v":0},{"$f":"IF(ISBLANK(H223),0,3)","v":0},{"$f":"IF(ISBLANK(I223),0,5)","v":0}]
[null,null,null,"○","O programa nacional utiliza dados agregados do código identificador exclusivo",null,null,null,null,null,null,{"$f":"IF(ISBLANK(G224),0,1)","v":0},{"$f":"IF(ISBLANK(H224),0,3)","v":0},{"$f":"IF(ISBLANK(I224),0,5)","v":0}]
[null,null,null,"○","Código identificador exclusivo capaz de distinguir contacto/alcance, tendo em vista a sua desduplicação",null,null,null,null,null,null,{"$f":"IF(ISBLANK(G225),0,1)","v":0},{"$f":"IF(ISBLANK(H225),0,3)","v":0},{"$f":"IF(ISBLANK(I225),0,5)","v":0}]
[null,null,null,"○","Código identificador exclusivo electronicamente baseado",null,null,null,null,null,null,{"$f":"IF(ISBLANK(G226),0,1)","v":0},{"$f":"IF(ISBLANK(H226),0,3)","v":0},{"$f":"IF(ISBLANK(I226),0,5)","v":0}]
[null,null,"Monitoria do orçamento","Integrada a monitoria do desempenho financeiro e não financeiro do programa para RAMJ e devidamente gerados os relatórios regulares: ",null,null,null,null,null,{"$f":"IFERROR(O227,\"-\")","v":"-"},null,null,null,null,{"$f":"IFERROR(ROUND(AVERAGEIF(L228:N230,\"<>0\",L228:N230),0),\"-\")","v":"-"}]
[null,null,null,"○","Dados relativos às despesas com intervenções ligadas às RAMJ facilmente acessíveis e alocados a intervenção.",null,null,null,null,null,null,{"$f":"IF(ISBLANK(G228),0,1)","v":0},{"$f":"IF(ISBLANK(H228),0,3)","v":0},{"$f":"IF(ISBLANK(I228),0,5)","v":0}]
[null,null,null,"○","Implantados mecanismos de responsabilização por baixa e alta execução orçamental.",null,null,null,null,null,null,{"$f":"IF(ISBLANK(G229),0,1)","v":0},{"$f":"IF(ISBLANK(H229),0,3)","v":0},{"$f":"IF(ISBLANK(I229),0,5)","v":0}]
[null,null,null,"○","Dados financeiros e não financeiros utilizados para medir a relação custo-benefício.",null,null,null,null,null,null,{"$f":"IF(ISBLANK(G230),0,1)","v":0},{"$f":"IF(ISBLANK(H230),0,3)","v":0},{"$f":"IF(ISBLANK(I230),0,5)","v":0}]
[]
[]
[null,null,null,null,""]
[]
[null,null,null,null,null,null,null,null,null,null,null,null,{"$f":"COUNTIF(O5:O234,\"-\")","v":32}]
[null,null,null,null,null,null,null,null,null,null,null,null,{"$f":"COUNTIF(O6:O234,\">0\")","v":0}]
[null,null,null,null,null,null,null,null,null,null,null,"Preenchimento de folha",{"$f":"M236/(M235+M236)","v":0},{"$f":"1-M237","v":1}]

{"sheet":"Todos -Independ. da Incidencia","index":7,"n_rows":147,"n_cols":16,"rows_kept":147,"cut":false,"hidden":false,"merged":[[31,5,31,8],[4,2,4,10],[1,2,1,9],[3,3,3,4],[5,2,13,2],[5,3,5,4],[5,9,13,9],[13,3,13,4],[5,5,5,8],[37,2,49,2],[37,3,37,4],[14,2,29,2],[14,3,14,4],[37,9,49,9],[44,3,44,4],[49,3,49,4],[44,5,44,8],[37,5,37,8],[14,9,30,9],[30,3,30,4],[31,2,35,2],[31,3,31,4],[31,9,36,9],[36,3,36,4],[14,5,14,8],[67,3,67,4],[68,3,68,4],[78,2,88,2],[78,3,78,4],[78,9,89,9],[89,3,89,4],[50,2,67,2],[50,3,50,4],[50,9,67,9],[55,3,55,4],[62,3,62,4],[68,2,77,2],[77,3,77,4],[68,9,77,9],[50,5,50,8],[62,5,62,8],[90,9,96,9],[96,3,96,4],[97,2,101,2],[97,3,97,4],[97,9,102,9],[102,3,102,4],[103,9,109,9],[109,3,109,4],[110,2,117,2],[110,3,110,4],[110,9,117,9],[110,5,110,8],[142,2,143,2],[135,9,141,9],[141,3,141,4],[118,3,118,4],[119,2,120,2],[119,3,119,4],[119,9,121,9],[121,3,121,4],[122,2,133,2],[122,3,122,4],[122,9,134,9],[134,3,134,4],[119,5,119,8],[122,5,122,8],[135,5,135,8],[142,9,143,9],[135,2,141,2],[135,3,135,4],[103,2,109,2],[103,3,103,4],[90,2,96,2],[90,3,90,4],[68,5,68,8],[78,5,78,8],[90,5,90,8],[97,5,97,8],[103,5,103,8]]}
[]
[null,null,"Implementação do Programa"]
[]
[null,null,"Elemento","Critérios",null,"N/A","Ausente","Presente mas não ideal","Presente e a funcionar bem","Média do elemento","Commentários (se aplicavél)","Absent","Present","Optimal","Average"]
[null,null,"Facilitadores do Programa Nacional de Prevenção do HIV em TODOS os locais"]
[null,null,"Accesso à educação primária e secundária","Esforços para aumentar o acesso à educação de RAMJ implementados com sucesso e incluem:  ",null,null,null,null,null,{"$f":"IFERROR(O6,\"-\")","v":"-"},null,null,null,null,{"$f":"IFERROR(ROUND(AVERAGEIF(L7:N14,\"<>0\",L7:N14),0),\"-\")","v":"-"}]
[null,null,null,"○","Tornar obrigatório o ensino primário e secundário",null,null,null,null,null,null,{"$f":"IF(ISBLANK(G7),0,1)","v":0},{"$f":"IF(ISBLANK(H7),0,3)","v":0},{"$f":"IF(ISBLANK(I7),0,5)","v":0}]
[null,null,null,"○","Isenção de taxa de matrícula para famílias desfavorecidas nos países onde a matrícula é baixa",null,null,null,null,null,null,0,0,0]
[null,null,null,"○","Construção de escolas nas zonas rurais para reduzir distâncias para RAMJ",null,null,null,null,null,null,0,0,0]
[null,null,null,"○","Acesso a uniformes escolares e programas de alimentação",null,null,null,null,null,null,0,0,0]
[null,null,null,"○","Acesso a produtos de higiene menstrual",null,null,null,null,null,null,0,0,0]
[null,null,null,"○","Proibição de expulsão de RAMJ grávidas",null,null,null,null,null,null,0,0,0]
[null,null,null,"○","Reinserção de jovens mães em associação com mecanismos de apoio financeiro",null,null,null,null,null,null,0,0,0]
[null,null,null,"Apoiados com outros financiamentos de saúde pública e desenvolvimento.",null,null,null,null,null,null,null,0,0,0]
[null,null,"Introdução universal de programas abrangentes de educação sexual e saúde escolar ","Plenamente implementados modelos informados por evidências que abordam normas sociais e de género, percepção de risco e criação de demanda: ",null,null,null,null,null,{"$f":"IFERROR(O15,\"-\")","v":"-"},null,null,null,null,{"$f":"IFERROR(ROUND(AVERAGEIF(L16:N31,\"<>0\",L16:N31),0),\"-\")","v":"-"}]
[null,null,null,"○","Inclui formação de professores",null,null,null,null,null,null,{"$f":"IF(ISBLANK(H16),0,1)","v":0},{"$f":"IF(ISBLANK(H16),0,3)","v":0},0]
[null,null,null,"○","Não inclui a formação sobre \"abstinência como único métedo de prevenção\"",null,null,null,null,null,null,0,0,0]
[null,null,null,"○","Inclui o envolvimento juvenil, cívico e parental",null,null,null,null,null,null,0,0,0]
[null,null,null,"○","Inclui intervenções para abordar a redução do risco de HIV em relacionamentos díspares de idade",null,null,null,null,null,null,0,0,0]
[null,null,null,"○","Fornece referências para centros de saúde para serviços não oferecidos na escola",null,null,null,null,null,null,0,0,0]
[null,null,null,"○","Educação sexual abrangente realizada de acordo com as Directrizes Internacionais:",null,null,null,null,null,null,0,0,0]
[null,null,null,null,"> Fundamentada nos direitos humanos",null,null,null,null,null,null,0,0,0]
[null,null,null,null,"> Com enfoque no género e na equidade de género",null,null,null,null,null,null,0,0,0]
[null,null,null,null,"> Com informação completa e cientificamente correcta",null,null,null,null,null,null,0,0,0]
[null,null,null,null,"> Fornecida num ambiente de aprendizagem seguro e saudável, livre de intimidação e discriminação",null,null,null,null,null,null,0,0,0]
[null,null,null,null,"> Com ligações aos serviços de saúde sexual e reprodutiva e outras iniciativas que abordam a desigualdade de género e o empoderamento",null,null,null,null,null,null,0,0,0]
[null,null,null,null,"> Realizada através de métodos de ensino participativo",null,null,null,null,null,null,0,0,0]
[null,null,null,null,"> Com lições sobre competências básicas para o envolvimento cívico e advocacia",null,null,null,null,null,null,0,0,0]
[null,null,null,null,"> Conteúdo especificamente adaptado ao contexto cultural e às necessidades dos jovens",null,null,null,null,null,null,0,0,0]
[null,null,null,null,"> Conteúdo apropriado para o desenvolvimento mas consistente em todos os grupos etários e inclui tanto na escola como em programas fora da escola",null,null,null,null,null,null,0,0,0]
[null,null,null,"Apoiados com outros financiamentos de saúde pública e desenvolvimento.",null,null,null,null,null,null,null,0,0,0]
[null,null,"Apoio social e empoderamento económico de adolescentes vulneráveis","Apoio social específico de cada país e incentivos ao empoderamento económico acessíveis às RAMJ com vulnerabilidades específicas.",null,null,null,null,null,{"$f":"IFERROR(O32,\"-\")","v":"-"},null,null,null,null,{"$f":"IFERROR(ROUND(AVERAGEIF(L33:N37,\"<>0\",L33:N37),0),\"-\")","v":"-"}]
[null,null,null,"○","RAMJ tem acesso à protecção social sob a forma de iniciativas de microfinanciamento, implementadas juntamente com outras intervenções de empoderamento social.",null,null,null,null,null,null,0,0,0]
[null,null,null,"○","Prioridade às RAMJ dos 13 aos 22 anos de idade com riscos e vulnerabilidades que podem ser eficazmente abordados com incentivos económicos.",null,null,null,null,null,null,0,0,0]
[null,null,null,"○","Transferências de dinheiro complementadas com outros programas de prevenção do HIV.",null,null,null,null,null,null,0,0,0]
[null,null,null,"○","Análise nacional concluída para assegurar que a concepção do programa de transferência de dinheiro é adequada e que o seu efeito/impacto pode ser medido",null,null,null,null,null,null,0,0,0]
[null,null,null,"Apoiado com outros financiamentos de saúde pública e desenvolvimento.",null,null,null,null,null,null,null,0,0,0]
[null,null,"\nAcesso à saúde sexual e reprodutiva integrada","Todas as RAMJ têm acesso ao planeamento familiar e a outros serviços de saúde sexual e reprodutiva e:",null,null,null,null,null,{"$f":"IFERROR(O38,\"-\")","v":"-"},null,null,null,null,{"$f":"IFERROR(ROUND(AVERAGEIF(L39:N44,\"<>0\",L39:N44),0),\"-\")","v":"-"},{"$f":"IFERROR(IF(ISBLANK(G38),ROUND(AVERAGEIF(O38:O50,\"<>0\",O38:O50),0),O38),\"-\")","v":"-"}]
[null,null,null,"○","Incluem o acesso à vacinação contra o papilomavírus humano (HPV) e ao rastreio do cancro do colo do útero",null,null,null,null,null,null,{"$f":"IF(ISBLANK(G39),0,1)","v":0},{"$f":"IF(ISBLANK(H39),0,3)","v":0},{"$f":"IF(ISBLANK(I39),0,5)","v":0}]
[null,null,null,"○","Métodos contraceptivos largamente distribuídos em quantidade suficiente",null,null,null,null,null,null,0,0,0]
[null,null,null,"○","Workshops de demonstração regularmente agendados",null,null,null,null,null,null,0,0,0]
[null,null,null,"○","Incluem o acesso a uma mistura de opções contraceptivas",null,null,null,null,null,null,0,0,0]
[null,null,null,"○","Serviços integrados com a prevenção do HIV",null,null,null,null,null,null,0,0,0]
[null,null,null,"○","Fornecidos juntamente com serviços abrangentes de infecção de transmissão sexual",null,null,null,null,null,null,0,0,0]
[null,null,null,"RAMJ expostas à violência, incluindo violência sexual, e / ou expostas ao HIV têm acesso a serviços abrangentes de violência contra as mulheres, incluindo a prevenção do HIV que:",null,null,null,null,null,null,null,null,null,null,{"$f":"IFERROR(ROUND(AVERAGEIF(L46:N50,\"<>0\",L46:N50),0),\"-\")","v":"-"}]
[null,null,null,"○","Estão integrados nos serviços de saúde existentes",null,null,null,null,null,null,0,0,0]
[null,null,null,"○","São fornecidos por profissionais de saúde que formados para oferecer apoio às mulheres que sofreram violência baseada no género",null,null,null,null,null,null,0,0,0]
[null,null,null,"○","Incluem apoio de primeira linha de provedores de cuidados de saúde formados (escutam com empatia, agem sem julgamento, demonstram privacidade, confidencialidade, e fazem ligação a outros serviços)",null,null,null,null,null,null,0,0,0]
[null,null,null,"○","Incluem contracepção de emergência, profilaxia de infecção de transmissão sexual, incluindo profilaxia pós-exposição (PEP) no prazo de 72 horas, e ligação ao apoio, aconselhamento e outras intervenções quando apropriado, conforme determinado por um historial completo",null,null,null,null,null,null,0,0,0]
[null,null,null,"Apoiado com outros financiamentos na área da saúde",null,null,null,null,null,null,null,0,0,0]
[null,null,"Acesso à SSR e direitos, incluindo apoio jurídico e político ","Implementados e bem divulgados esforços para aumentar o conhecimento sobre saúde sexual e reprodutiva e direitos entre RAMJ, e incluem:",null,null,null,null,null,{"$f":"IFERROR(O51,\"-\")","v":"-"},null,null,null,null,{"$f":"IFERROR(ROUND(AVERAGEIF(L52:N68,\"<>0\",L52:N55),0),\"-\")","v":"-"}]
[null,null,null,"○","Aplicação de legislação que impeça a discriminação ou estigma em relação ao acesso a serviços de saúde sexual e reprodutiva",null,null,null,null,null,null,0,0,0]
[null,null,null,"○","Informar a RAMJ sobre seus direitos de acesso a serviços de saúde sexual e reprodutiva",null,null,null,null,null,null,0,0,0]
[null,null,null,"○","Intervenções que integram justiça e saúde por meio da colaboração (ou seja, entrada em centros e mecanismos de denúncia de violações de direitos)",null,null,null,null,null,null,0,0,0]
[null,null,null,"○","Grupos que defendem activamente programas e financiamento para RAMJ",null,null,null,null,null,null,0,0,0]
[null,null,null,"Implantados mecanismos para prevenir a violência contra RAMJ que incluem:",null,null,null,null,null,null,null,0,null,null,{"$f":"IFERROR(ROUND(AVERAGEIF(L57:N62,\"<>0\",L57:N62),0),\"-\")","v":"-"}]
[null,null,null,"○","Informações sobre segurança",null,null,null,null,null,null,0,0,0]
[null,null,null,"○","Espaços seguros (incluindo entrada em centros)",null,null,null,null,null,null,0,0,0]
[null,null,null,"○","Programas escolares para prevenir a violência no namoro",null,null,null,null,null,null,0,0,0]
[null,null,null,"○","Formação baseada na escola para ajudar as crianças a reconhecer e evitar situações potencialmente abusivas sexualmente",null,null,null,null,null,null,0,{"$f":"IF(ISBLANK(H60),0,3)","v":0},{"$f":"IF(ISBLANK(H60),0,5)","v":0}]
[null,null,null,"○","Mobilização da comunidade sobre VBG",null,null,null,null,null,null,0,{"$f":"IF(ISBLANK(H61),0,3)","v":0},{"$f":"IF(ISBLANK(H61),0,5)","v":0}]
[null,null,null,"○","Trabalhar com homens e rapazes em grupos para promover atitudes equitativas de género em áreas de alta incidência",null,null,null,null,null,null,0,0,0]
[null,null,null,"Violência contra RAMJ tratada de forma consistente e inclui:",null,null,null,null,null,null,null,null,null,null,{"$f":"IFERROR(ROUND(AVERAGEIF(L64:N68,\"<>0\",L64:N68),0),\"-\")","v":"-"}]
[null,null,null,"○","Mecanismos para referir mulheres jovens que sofreram Violência Baseada no Género para programas activos de Violência Baseada no Género",null,null,null,null,null,null,0,0,0]
[null,null,null,"○","Mecanismos para referir crianças para serviços apropriados de proteção à criança",null,null,null,null,null,null,0,0,0]
[null,null,null,"○","Mecanismos para monitorar e coordenar respostas a nível comunitário",null,null,null,null,null,null,0,0,0]
[null,null,null,"○","Mecanismos funcionais para denunciar experiências de VBG que vão além da polícia e podem incluir apoio paralegal de organizações",null,null,null,null,null,null,0,0,0]
[null,null,null,"Apoiado com outro financiamento de saúde",null,null,null,null,null,null,null,0,0,0]
[null,null,"Sistemas de saúde amigos do jovem","Criação de sistemas de saúde amigos dos jovens (incluindo provedores formados, horários favoráveis, etc.) priorizada e apoiada com outros financiamentos de saúde.",null,null,null,null,null,{"$f":"IFERROR(O69,\"-\")","v":"-"},null,null,null,null,{"$f":"IFERROR(ROUND(AVERAGEIF(L70:N78,\"<>0\",L70:N78),0),\"-\")","v":"-"}]
[null,null,null,"○","Equitativos: todos os adolescentes, e não apenas certos grupos, são capazes de obter os serviços de saúde de que necessitam.  ",null,null,null,null,null,null,{"$f":"IF(ISBLANK(G70),0,1)","v":0},{"$f":"IF(ISBLANK(H70),0,3)","v":0},{"$f":"IF(ISBLANK(I70),0,5)","v":0}]
[null,null,null,"○","Acessíveis: os adolescentes são capazes de obter os serviços que lhes são prestados.",null,null,null,null,null,null,0,0,0]
[null,null,null,"○","Aceitáveis: os serviços de saúde são prestados de forma a satisfazer as expectativas dos utentes adolescentes.",null,null,null,null,null,null,0,0,0]
[null,null,null,"○","Apropriados: fornecidos serviços de saúde adequados de que os adolescentes necessitam.",null,null,null,null,null,null,0,0,0]
[null,null,null,"○","Eficazes: os serviços de saúde adequados são prestados da forma correcta e contribuem positivamente para a saúde dos adolescentes.",null,null,null,null,null,null,0,0,0]
[null,null,null,null,null,null,null,null,null,null,null,0,0,0]
[null,null,null,null,null,null,null,null,null,null,null,0,0,0]
[null,null,null,null,null,null,null,null,null,null,null,0,0,0]
[null,null,null,"Apoiados com outros financiamentos de saúde ",null,null,null,null,null,null,null,0,0,0]
[null,null,"Serviços de testagem e tratamento do HIV","Disponível testagem, tratamento, aconselhamento e apoio orientados para o HIV para RAMJ e seus parceiros sexuais e:",null,null,null,null,null,{"$f":"IFERROR(O79,\"-\")","v":"-"},null,null,null,null,{"$f":"IFERROR(ROUND(AVERAGEIF(L80:N90,\"<>0\",L80:N90),0),\"-\")","v":"-"}]
[null,null,null,"○","Implementados padrões da Organização Mundial de Saúde para os serviços de testagem do HIV",null,null,null,null,null,null,{"$f":"IF(ISBLANK(G80),0,1)","v":0},{"$f":"IF(ISBLANK(H80),0,3)","v":0},{"$f":"IF(ISBLANK(I80),0,5)","v":0}]
[null,null,null,"○","Fornecido aconselhamento pré e pós-teste",null,null,null,null,null,null,0,0,0]
[null,null,null,"○","Tratamento dado imediatamente e fornecimento ininterrupto",null,null,null,null,null,null,0,0,0]
[null,null,null,"○","Indivíduos com HIV ligados a redes de cuidados e apoio após o diagnóstico",null,null,null,null,null,null,0,0,0]
[null,null,null,"○","Acesso aos serviços distribuído equitativamente entre a comunidade e todas RAMJ",null,null,null,null,null,null,0,0,0]
[null,null,null,"○","Intervenções para garantir a adesão das RAMJ vivendo com HIV",null,null,null,null,null,null,0,0,0]
[null,null,null,"○","Monitoria regular da frequência dos cuidados entre RAMJ vivendo com HIV",null,null,null,null,null,null,0,0,0]
[null,null,null,"○","Fornecidas ligações para a prevenção e tratamento de co-morbilidades",null,null,null,null,null,null,0,0,0]
[null,null,null,"○","Carga viral e testes CD4 disponíveis e acessíveis para RAMJ vivendo com HIV",null,null,null,null,null,null,0,0,0]
[null,null,null,"○","Opções de auto-teste disponíveis e bastante distribuídas",null,null,null,null,null,null,0,0,0]
[null,null,null,"Apoiados com outros financiamentos relativos ao HIV",null,null,null,null,null,null,null,0,0,0]
[null,null,"PEP","RAMJ vítimas de agressão sexual e expostas ao HIV têm acesso a serviços abrangentes de violência baseada no género & cuidados pós violação, que: ",null,null,null,null,null,{"$f":"IFERROR(O91,\"-\")","v":"-"},null,null,null,null,{"$f":"IFERROR(ROUND(AVERAGEIF(L92:N97,\"<>0\",L92:N97),0),\"-\")","v":"-"}]
[null,null,null,"○","Estão integrados nos serviços de saúde existentes",null,null,null,null,null,null,0,0,0]
[null,null,null,"○","São prestados por profissionais de saúde formados para oferecer apoio às mulheres que sofreram violência baseada no género",null,null,null,null,null,null,0,0,0]
[null,null,null,"○","Incluem apoio de primeira linha de prestadores de cuidados de saúde formados (escutaam com empatia, agem sem julgar, respeitam a privacidade a confidencialidade e fazem ligação a outros serviços)",null,null,null,null,null,null,0,0,0]
[null,null,null,"○","Incluem contracepção de emergência, profilaxia de infecção de transmissão sexual, incluindo profilaxia pós-exposição (PEP) no prazo de 72 horas, e ligação ao apoio, aconselhamento e outras intervenções quando apropriado, conforme determinado por um historial completo",null,null,null,null,null,null,0,0,0]
[null,null,null,"○","Disponíveis centros de VBG de base comunitária e fazem referências de forma activa",null,null,null,null,null,null,0,0,0]
[null,null,null,"Apoiados com outros financiamentos relativos ao HIV",null,null,null,null,null,null,null,0,0,0]
[null,null,"Prevenção da transmissão vertical do HIV como parte da saúde materna","As mulheres (incluindo RAMJ) têm acesso a cuidados pré-natais abrangentes (CPN), que incluem a prevenção da transmissão vertical do HIV (PTV):",null,null,null,null,null,{"$f":"IFERROR(O98,\"-\")","v":"-"},null,null,null,null,{"$f":"IFERROR(ROUND(AVERAGEIF(L99:N103,\"<>0\",L99:N103),0),\"-\")","v":"-"}]
[null,null,null,"○","Mulheres grávidas seropositivas têm acesso a informações, tratamento e cuidados adequados para prevenir a transmissão vertical do HIV",null,null,null,null,null,null,0,0,0]
[null,null,null,"○","Repetição regular de testes para mulheres grávidas seronegativas",null,null,null,null,null,null,0,0,0]
[null,null,null,"○","Mulheres grávidas seronegativas de alto risco têm acesso à PrEP",null,null,null,null,null,null,0,0,0]
[null,null,null,"○","Informações fornecidas a casais sorodiscordantes que desejam engravidar",null,null,null,null,null,null,0,0,0]
[null,null,null,"Apoiado com outros financiamentos relativos ao HIV",null,null,null,null,null,null,null,0,0,0]
[null,null,"Acção para promover direitos e eliminar o estigma e discriminação relacionados com o HIV ","Políticas existentes e advocacia para mudança de políticas levam à melhoria na implementação de programas de HIV e resultados para de prevenção do HIV.",null,null,null,null,null,{"$f":"IFERROR(O104,\"-\")","v":"-"},null,null,null,null,{"$f":"IFERROR(ROUND(AVERAGEIF(L105:N110,\"<>0\",L105:N110),0),\"-\")","v":"-"}]
[null,null,null,"○","Claramente comunicadas e garantidas a privacidade, confidencialidade e não discriminação contra RAMJ no acesso aos serviços.",null,null,null,null,null,null,0,0,0]
[null,null,null,"○","Eliminadas barreiras relacionadas ao acesso a serviços relativas à idade.",null,null,null,null,null,null,0,0,0]
[null,null,null,"○","Descriminalizada a actividade sexual consensual de adolescentes.",null,null,null,null,null,null,0,0,0]
[null,null,null,"○","Eliminadas barreiras políticas e legais para as populações-chave (incluindo jovens profissionais do sexo, adolescentes explorados para o trabalho sexual, homens jovens que fazem sexo com homens, pessoas transexuais e pessoas que injectam drogas).",null,null,null,null,null,null,0,0,0]
[null,null,null,"○","Sociedade civil e parceiros comunitários activamente envolvidos em acções ligadas à promoção de direitos e eliminação de estigma e discriminação relacionados ao HIV.",null,null,null,null,null,null,0,0,0]
[null,null,null,"Apoiado com outros financiamentos relativos ao HIV",null,null,null,null,null,null,null,0,0,0]
[null,null,"\nPreservativos e lubrificantes masculinos e femininos","Todas as RAMJ e seus parceiros sexuais têm acesso a preservativos e lubrificantes, sabem onde obte-los e como usa-los:",null,null,null,null,null,{"$f":"IFERROR(O111,\"-\")","v":"-"},null,null,null,null,{"$f":"IFERROR(ROUND(AVERAGEIF(L112:N119,\"<>0\",L112:N119),0),\"-\")","v":"-"}]
[null,null,null,"○","Preservativos disponíveis de forma consistente e em quantidade suficiente",null,null,null,null,null,null,0,0,0]
[null,null,null,"○","Lubrificantes disponíveis de forma consistente e em quantidade suficiente",null,null,null,null,null,null,0,0,0]
[null,null,null,"○","Preservativos são largamente distribuídos e facilmente acessíveis nas escolas/instituições de ensino superior e em ambientes comunitários",null,null,null,null,null,null,0,0,0]
[null,null,null,"○","Workshops de demonstração regularmente agendados nas escolas e instituições de ensino superior, para complementar actividades de distribuição e criação de demanda",null,null,null,null,null,null,0,0,0]
[null,null,null,"○","Preservativos distribuídos como parte dos serviços móveis para adolescentes e distribuídos em grandes volumes",null,null,null,null,null,null,0,0,0]
[null,null,null,"○","Preservativos fornecidos junto com o material de comunicação interpessoal",null,null,null,null,null,null,0,0,0]
[null,null,null,"○","Preservativos fornecidos juntamente com todos os serviços relativos a ITSs e SSR",null,null,null,null,null,null,0,0,0]
[null,null,null,"Apoiado com outros financiamentos relativos ao HIV",null,null,null,null,null,null,null,0,0,0]
[null,null,"Circuncisão médica masculina voluntária para homens nos países prioritários relevantes","O programa de circuncisão médica masculina voluntária (CMMV) é apropriado para o desenvolvimento e estão disponíveis directrizes diferenciadas por idade para adolescentes e adultos do sexo masculino: ",null,null,null,null,null,{"$f":"IFERROR(O120,\"-\")","v":"-"},null,null,null,null,{"$f":"IFERROR(ROUND(AVERAGEIF(L121:N122,\"<>0\",L121:N122),0),\"-\")","v":"-"}]
[null,null,null,"○","O programa CMMV inclui ligações para avaliações de risco e encaminhamentos para prevenção e teste de SSR e HIV com idades diferenciadas",null,null,null,null,null,null,{"$f":"IF(ISBLANK(G121),0,1)","v":0},{"$f":"IF(ISBLANK(H121),0,3)","v":0},{"$f":"IF(ISBLANK(I121),0,5)","v":0}]
[null,null,null,"Apoiado com outros financiamentos relativos ao HIV",null,null,null,null,null,null,null,0,0,0]
[null,null,"Informações básicas nacionais sobre HIV, comunicações de redução de risco","Estão incluídas a programação e actividades de comunicação social para a mudança de comportamento (CSMC), que:  \n",null,null,null,null,null,{"$f":"IFERROR(O123,\"-\")","v":"-"},null,null,null,null,{"$f":"IFERROR(ROUND(AVERAGEIF(L124:N135,\"<>0\",L124:N135),0),\"-\")","v":"-"}]
[null,null,null,"○","Envolvem tanto os homens como as mulheres",null,null,null,null,null,null,0,0,0]
[null,null,null,"○","Incluem abordagens inovadoras de multimédia e novos meios de comunicação (incluindo rádio e televisão)",null,null,null,null,null,null,0,0,0]
[null,null,null,"○","Estão informados por evidências e têm uma teoria de mudança",null,null,null,null,null,null,0,0,0]
[null,null,null,"○","Têm material de informação, educação e comunicação (IEC) bem desenvolvido que muito divulgado em locais específicos",null,null,null,null,null,null,0,0,0]
[null,null,null,"○","Têm currículos bem definidos, forte participação comunitária, e abordagens transformativas de género que combatem as desigualdades de género ",null,null,null,null,null,null,0,0,0]
[null,null,null,"○","Têm objectivos claros e são avaliados quantitativa e qualitativamente",null,null,null,null,null,null,0,0,0]
[null,null,null,"○","Estão bem planificados e orçamentados de forma adequada",null,null,null,null,null,null,0,0,0]
[null,null,null,"○","São avaliados regularmente",null,null,null,null,null,null,0,0,0]
[null,null,null,"○","RAMJ são envolvidas na concepção e avaliação das intervenções",null,null,null,null,null,null,0,0,0]
[null,null,null,"○","Organizações e indivíduos que implementam estas intervenções têm experiência e formação em comunicação social para a mudança de comportamento",null,null,null,null,null,null,0,0,0]
[null,null,null,"○","Intervenções de comunicação social para a mudança de comportamento incluídas nos planos e actividades de monitoria e avaliação",null,null,null,null,null,null,0,0,0]
[null,null,null,"Apoiado com outros financiamentos de prevenção do HIV",null,null,null,null,null,null,null,0,0,0]
[null,null,"Pacotes abrangentes de prevenção do HIV para jovens chave e vulneráveis","Estratégias nacionais e programas de prevenção do HIV para grupos de populações chave consideram e abordam necessidades e estratégias específicas para as populações jovens chave e vulneráveis, incluindo:",null,null,null,null,null,{"$f":"IFERROR(O136,\"-\")","v":"-"},null,null,null,null,{"$f":"IFERROR(ROUND(AVERAGEIF(L137:N142,\"<>0\",L137:N141),0),\"-\")","v":"-"}]
[null,null,null,"○","Adolescentes que vendem sexo",null,null,null,null,null,null,0,0,0]
[null,null,null,"○","Adolescentes sexualmente explorados",null,null,null,null,null,null,0,0,0]
[null,null,null,"○","Jovens transexuais",null,null,null,null,null,null,0,0,0]
[null,null,null,"○","Jovens encarcerados",null,null,null,null,null,null,0,0,0]
[null,null,null,"○","Jovens que injectam drogas",null,null,null,null,null,null,{"$f":"IF(ISBLANK(G141),0,1)","v":0},0,0]
[null,null,null,"Apoiado com outros financiamentos de prevenção do HIV",null,null,null,null,null,null,null,{"$f":"IF(ISBLANK(G142),0,1)","v":0},{"$f":"IF(ISBLANK(H142),0,3)","v":0},{"$f":"IF(ISBLANK(I142),0,5)","v":0}]
[null,null,"COVID 19","○","Estão em vigor programas em para incentivar e rastrear a aceitação da vacina COVID-19 entre RAMJ",null,null,null,null,{"$f":"IFERROR(O143,\"-\")","v":"-"},null,{"$f":"IF(ISBLANK(G143),0,1)","v":0},{"$f":"IF(ISBLANK(H143),0,3)","v":0},0,{"$f":"IFERROR(ROUND(AVERAGEIF(L143:N144,\"<>0\",L143:N144),0),\"-\")","v":"-"}]
[null,null,null,"○","Estão em vigor programas para incentivar e rastrear a aceitação da vacina COVID-19 entre RAMJ",null,null,null,null,null,null,{"$f":"IF(ISBLANK(G144),0,1)","v":0},{"$f":"IF(ISBLANK(H144),0,3)","v":0},{"$f":"IF(ISBLANK(I144),0,5)","v":0}]
[null,null,null,null,null,null,null,null,null,null,null,null,{"$f":"COUNTIF(O6:O144,\"-\")","v":18}]
[null,null,null,null,null,null,null,null,null,null,null,null,{"$f":"COUNTIF(O6:O144,\">0\")","v":0}]
[null,null,null,null,null,null,null,null,null,null,null,"Preenchimento de folha",{"$f":"M146/(M145+M146)","v":0},{"$f":"1-M147","v":1}]

{"sheet":"Incidencia Moderada","index":8,"n_rows":61,"n_cols":15,"rows_kept":61,"cut":false,"hidden":false,"merged":[[46,5,46,8],[1,2,1,9],[3,3,3,4],[55,3,55,4],[51,2,52,2],[51,3,51,4],[51,9,52,9],[53,3,53,4],[53,2,54,2],[53,9,54,9],[37,2,39,2],[37,3,37,4],[40,2,42,2],[28,2,31,2],[28,3,28,4],[28,9,31,9],[32,2,34,2],[40,3,40,4],[40,9,42,9],[20,3,20,4],[20,2,23,2],[24,3,24,4],[32,3,32,4],[37,9,39,9],[35,2,36,2],[35,3,35,4],[35,9,36,9],[17,2,19,2],[32,9,34,9],[24,9,27,9],[17,3,17,4],[17,9,19,9],[20,9,23,9],[24,2,27,2],[5,2,8,2],[5,3,5,4],[5,9,8,9],[13,3,13,4],[9,2,12,2],[9,3,9,4],[9,9,12,9],[13,2,16,2],[13,9,16,9],[4,2,4,10],[56,3,56,4],[43,3,43,4],[43,9,45,9],[46,2,48,2],[46,3,46,4],[46,9,48,9],[49,2,50,2],[49,3,49,4],[49,9,50,9],[43,2,45,2]]}
[]
[null,null,"Implementação do Programa"]
[]
[null,null,"Elemento","Critérios",null,"N/A","Ausente","Presente mas não ideal","Presente e a funcionar bem","Média do elemento","Commentários (sew aplicável)","Absent","Present","Optimal","Average"]
[null,null,"Pacotes de prevenção do HIV para RAMJ em locais de incidência MODERADA"]
[null,null,"Perfil de avaliação de risco de HIV/ITS","Perfil de avaliação do risco de HIV/ITS oferecido:",null,null,null,null,null,{"$f":"IFERROR(O6,\"-\")","v":"-"},null,null,null,null,{"$f":"IFERROR(ROUND(AVERAGEIF(L7:N9,\"<>0\",L7:N9),0),\"-\")","v":"-"}]
[null,null,null,"○","Regularmente",null,null,null,null,null,null,{"$f":"IF(ISBLANK(G7),0,1)","v":0},{"$f":"IF(ISBLANK(H7),0,3)","v":0},{"$f":"IF(ISBLANK(I7),0,5)","v":0}]
[null,null,null,"○","Em todas as plataformas de saúde e baseadas na comunidade (pontos de prestação de serviços e unidades sanitárias)",null,null,null,null,null,null,0,0,0]
[null,null,null,null,"Utilizando financiamento de prevenção do HIV para RAMJ",null,null,null,null,null,null,0,0,0]
[null,null,"Aconselhamento e testagem para a redução do risco de HIV","Aconselhamento e testagem para a redução do risco de HIV oferecidos:",null,null,null,null,null,{"$f":"IFERROR(O10,\"-\")","v":"-"},null,null,null,null,{"$f":"IFERROR(ROUND(AVERAGEIF(L11:N13,\"<>0\",L11:N13),0),\"-\")","v":"-"}]
[null,null,null,"○","Regularmente",null,null,null,null,null,null,0,0,0]
[null,null,null,"○","Em todas as plataformas de saúde e baseadas na comunidade (pontos de prestação de serviços e unidades sanitárias)",null,null,null,null,null,null,0,0,0]
[null,null,null,null,"Utilizando financiamento de prevenção do HIV para RAMJ",null,null,null,null,null,null,0,0,0]
[null,null,"Promoção e distribuição activas de preservativos e lubrificantes iniciada pelo provedor","Distribuição e promoção activas de preservativos e lubrificantes iniciadas pelo provedor oferecidas: ",null,null,null,null,null,{"$f":"IFERROR(O14,\"-\")","v":"-"},null,null,null,null,{"$f":"IFERROR(ROUND(AVERAGEIF(L15:N17,\"<>0\",L15:N17),0),\"-\")","v":"-"}]
[null,null,null,"○","Regularmente",null,null,null,null,null,null,0,0,0]
[null,null,null,"○","Em todas as plataformas de saúde e baseadas na comunidade (pontos de prestação de serviços e unidades sanitárias)",null,null,null,null,null,null,0,0,0]
[null,null,null,null,"Utilizando financiamento de prevenção do HIV para RAMJ",null,null,null,null,null,null,0,0,0]
[null,null,"Diagnóstico e tratamento de ITS (incluindo como indicador do risco de HIV) ","Diagnóstico e tratamento de ITS (incluindo como indicador do risco de HIV) disponíveis: ",null,null,null,null,null,{"$f":"IFERROR(O18,\"-\")","v":"-"},null,null,null,null,{"$f":"IFERROR(ROUND(AVERAGEIF(L19:N20,\"<>0\",L19:N20),0),\"-\")","v":"-"}]
[null,null,null,"○","Em todas as plataformas de saúde e baseadas na comunidade (pontos de prestação de serviços e unidades sanitárias), conforme necessário",null,null,null,null,null,null,0,0,0]
[null,null,null,null,"Utilizando financiamento de prevenção do HIV para RAMJ",null,null,null,null,null,null,0,0,0]
[null,null,"Integração de serviços de HIV e ITS no planeamento familiar","Integração de serviços de HIV & ITS no Planeamento Familiar:",null,null,null,null,null,{"$f":"IFERROR(O21,\"-\")","v":"-"},null,null,null,null,{"$f":"IFERROR(ROUND(AVERAGEIF(L22:N24,\"<>0\",L22:N24),0),\"-\")","v":"-"}]
[null,null,null,"○","Em locais seleccionados",null,null,null,null,null,null,0,0,0]
[null,null,null,"○","Como oferta direccionada",null,null,null,null,null,null,0,0,0]
[null,null,null,null,"Utilizando financiamento de prevenção do HIV para RAMJ",null,null,null,null,null,null,0,0,0]
[null,null,"Testagem de parceiros masculinos (carta-convite + autoteste) com indicação de tratamento anti-retroviral","Disponíveis a testagem do parceiro masculino e serviços de referência para o tratamento anti-retroviral:",null,null,null,null,null,{"$f":"IFERROR(O25,\"-\")","v":"-"},null,null,null,null,{"$f":"IFERROR(ROUND(AVERAGEIF(L26:N28,\"<>0\",L26:N28),0),\"-\")","v":"-"}]
[null,null,null,"○","Em locais seleccionados",null,null,null,null,null,null,0,0,0]
[null,null,null,"○","Como oferta direccionada",null,null,null,null,null,null,0,0,0]
[null,null,null,null,"Utilizando financiamento de prevenção do HIV para RAMJ",null,null,null,null,null,null,0,0,0]
[null,null,"Serviços de PrEP","Disponíveis serviços de PrEP:",null,null,null,null,null,{"$f":"IFERROR(O29,\"-\")","v":"-"},null,null,null,null,{"$f":"IFERROR(ROUND(AVERAGEIF(L30:N32,\"<>0\",L30:N32),0),\"-\")","v":"-"}]
[null,null,null,"○","Em locais seleccionados",null,null,null,null,null,null,0,0,0]
[null,null,null,"○","Como oferta direccionada",null,null,null,null,null,null,0,0,0]
[null,null,null,null,"Utilizando financiamento de prevenção do HIV para RAMJ",null,null,null,null,null,null,0,0,0]
[null,null,"Campanhas de prevenção do HIV baseadas na escola (conhecimento, percepção de risco, métodos, habilidades, violência baseada no género) ligadas aos serviços\n","Implementadas campanhas de prevenção do HIV baseadas na escola e ligadas aos serviços:",null,null,null,null,null,{"$f":"IFERROR(O33,\"-\")","v":"-"},null,null,null,null,{"$f":"IFERROR(ROUND(AVERAGEIF(L34:N35,\"<>0\",L34:N35),0),\"-\")","v":"-"}]
[null,null,null,"○","Nas escolas seleccionadas e instituições terciárias",null,null,null,null,null,null,0,0,0]
[null,null,null,null,"Utilizando financiamento de prevenção do HIV para RAMJ",null,null,null,null,null,null,0,0,0]
[null,null,"Introdução acelerada de educação sexual abrangente","Acelerada a introdução da Educação Sexual Abrangente: ",null,null,null,null,null,{"$f":"IFERROR(O36,\"-\")","v":"-"},null,null,null,null,{"$f":"IFERROR(ROUND(AVERAGEIF(L37:N37,\"<>0\",L37:N37),0),\"-\")","v":"-"}]
[null,null,null,null,"Utilizando outros financiamentos (não de prevenção para RAMJ)",null,null,null,null,null,null,0,0,0]
[null,null,"Mobilização comunitária sobre o conhecimento básico de prevenção do HIV, percepção de risco e respectivas normas sociais","Implementada a mobilização comunitária sobre conhecimentos básicos de prevenção do HIV, percepção do risco e respectivas normas sociais:  ",null,null,null,null,null,{"$f":"IFERROR(O38,\"-\")","v":"-"},null,null,null,null,{"$f":"IFERROR(ROUND(AVERAGEIF(L39:N40,\"<>0\",L39:N40),0),\"-\")","v":"-"}]
[null,null,null,"○","Nas comunidades seleccionadas",null,null,null,null,null,null,0,0,0]
[null,null,null,null,"Utilizando financiamento de prevenção do HIV para RAMJ",null,null,null,null,null,null,0,0,0]
[null,null,"Criação de demanda baseada na comunidade e sensibilização sobre serviços de prevenção do HIV","Implementada a criação de demanda baseada na comunidade e sensibilização sobre serviços de prevenção do HIV (incluindo preservativos, auto-testes, referências...):  ",null,null,null,null,null,{"$f":"IFERROR(O41,\"-\")","v":"-"},null,null,null,null,{"$f":"IFERROR(ROUND(AVERAGEIF(L42:N43,\"<>0\",L42:N43),0),\"-\")","v":"-"}]
[null,null,null,"○","Tendo como alvo todas RAMJ e homens entre 20 a 39 anos em alto risco",null,null,null,null,null,null,0,0,0]
[null,null,null,null,"Utilizando financiamento de prevenção do HIV para RAMJ",null,null,null,null,null,null,0,0,0]
[null,null,"Criação activa de demanda de PrEP","Actividades activas de criação de demanda por PrEP implementadas através de plataformas comunitárias (ONG, OSCs):",null,null,null,null,null,{"$f":"IFERROR(O44,\"-\")","v":"-"},null,null,null,null,{"$f":"IFERROR(ROUND(AVERAGEIF(L45:N46,\"<>0\",L45:N46),0),\"-\")","v":"-"}]
[null,null,null,"○","Incluindo RAMJ como parte de populações chave",null,null,null,null,null,null,0,0,0]
[null,null,null,null,"Utilizando financiamento de prevenção do HIV para RAMJ",null,null,null,null,null,null,0,0,0]
[null,null,"Sensibilização estruturada sobre comunicação interpessoal (por exemplo, SASA! Etc.)","Actividades estruturadas de sensibilização sobre IPC implementadas atarvés de plataformas comunitárias (ONGs, OSCs):",null,null,null,null,null,{"$f":"IFERROR(O47,\"-\")","v":"-"},null,null,null,null,{"$f":"IFERROR(ROUND(AVERAGEIF(L48:N49,\"<>0\",L48:N49),0),\"-\")","v":"-"}]
[null,null,null,"○","Em comunidades seleccionadas",null,null,null,null,null,null,0,0,0]
[null,null,null,null,"Utilizando financiamento de prevenção do HIV para RAMJ",null,null,null,null,null,null,0,0,0]
[null,null,"Transferências de dinheiro, incentivos, empoderamento económico","Disponíveis transferências de dinheiro, incentivos, iniciativas de empoderamento económico: ",null,null,null,null,null,{"$f":"IFERROR(O50,\"-\")","v":"-"},null,null,null,null,{"$f":"IFERROR(ROUND(AVERAGEIF(L51:N51,\"<>0\",L51:N51),0),\"-\")","v":"-"}]
[null,null,null,null,"Utilizando outros financiamentos (não de prevenção para RAMJ)",null,null,null,null,null,null,0,0,0]
[null,null,"Construção de activos sociais, espaços seguros, programas para pais, mentoria","Estão disponíveis programas de criação de bens sociais, espaços seguros, programas para pais, mentoria:  ",null,null,null,null,null,{"$f":"IFERROR(O52,\"-\")","v":"-"},null,null,null,null,{"$f":"IFERROR(ROUND(AVERAGEIF(L53:N53,\"<>0\",L53:N53),0),\"-\")","v":"-"}]
[null,null,null,null,"Utilizando outros financiamentos (não de prevenção para RAMJ)",null,null,null,null,null,null,0,0,0]
[null,null,"Manutenção da rapariga na escola/assistência educativa","Estão disponíveis programas de assistência escolar/para manter as raparigas na escola:",null,null,null,null,null,{"$f":"IFERROR(O54,\"-\")","v":"-"},null,null,null,null,{"$f":"IFERROR(ROUND(AVERAGEIF(L55:N55,\"<>0\",L55:N55),0),\"-\")","v":"-"}]
[null,null,null,null,"Utilizando outros financiamentos (não de prevenção para RAMJ)",null,null,null,null,null,null,0,0,0]
[null,null,"Escritório local de SIDA lidera a avaliação e resolução regulares de problemas","O Escritório Local de SIDA lidera a avaliação e resolução regulares de problemas (conforme recomendado)  ",null,null,null,null,null,{"$f":"IFERROR(O56,\"-\")","v":"-"},null,0,0,0,{"$f":"IFERROR(ROUND(AVERAGEIF(L56:N56,\"<>0\",L56:N56),0),\"-\")","v":"-"}]
[null,null,"Líder de RAMJ dentro do Escritório local de SIDA","Líder de RAMJ presente no Escritório Local de SIDA (opcional)",null,null,null,null,null,{"$f":"IFERROR(O57,\"-\")","v":"-"},null,0,0,0,{"$f":"IFERROR(ROUND(AVERAGEIF(L57:N57,\"<>0\",L57:N57),0),\"-\")","v":"-"}]
[]
[null,null,null,null,null,null,null,null,null,null,null,null,{"$f":"COUNTIF(O6:O57,\"-\")","v":18}]
[null,null,null,null,null,null,null,null,null,null,null,null,{"$f":"COUNTIF(O6:O57,\">0\")","v":0}]
[null,null,null,null,null,null,null,null,null,null,null,"Preenchimento de folha",{"$f":"M60/(M59+M60)","v":0},{"$f":"1-M61","v":1}]

{"sheet":"Alta Incidencia","index":9,"n_rows":79,"n_cols":15,"rows_kept":79,"cut":false,"hidden":false,"merged":[[1,2,1,9],[3,3,3,4],[5,2,8,2],[5,3,5,4],[5,9,8,9],[4,2,4,10],[28,2,32,2],[28,3,28,4],[28,9,32,9],[13,2,17,2],[13,3,13,4],[13,9,17,9],[18,2,22,2],[18,9,22,9],[9,2,12,2],[9,3,9,4],[9,9,12,9],[23,2,27,2],[23,3,23,4],[23,9,27,9],[18,3,18,4],[57,2,60,2],[57,3,57,4],[57,9,60,9],[41,2,43,2],[41,3,41,4],[41,9,43,9],[44,2,46,2],[44,3,44,4],[44,9,46,9],[47,2,49,2],[47,3,47,4],[47,9,49,9],[50,2,53,2],[50,3,50,4],[33,2,37,2],[38,2,40,2],[50,9,53,9],[54,2,56,2],[54,3,54,4],[54,9,56,9],[38,3,38,4],[38,9,40,9],[33,9,37,9],[33,3,33,4],[69,3,69,4],[70,3,70,4],[61,2,64,2],[61,3,61,4],[61,9,64,9],[65,2,68,2],[65,3,65,4],[65,9,68,9]]}
[]
[null,null,"Implementação do Programa"]
[]
[null,null,"Elemento","Critérios ",null,"N/A","Ausente","Presente mas não ideal","Presente e a funcionar bem","Média do elemento","Commentários (se aplicável)","Absent","Present","Optimal","Average"]
[null,null,"Pacotes de prevenção do HIV para RAMJ em locais de incidência ELEVADA"]
[null,null,"Perfil de avaliação de risco de HIV/ITS","Perfil de avaliação do risco de HIV/ITS oferecido: ",null,null,null,null,null,{"$f":"IFERROR(O6,\"-\")","v":"-"},null,null,null,null,{"$f":"IFERROR(ROUND(AVERAGEIF(L7:N9,\"<>0\",L7:N9),0),\"-\")","v":"-"}]
[null,null,null,"○","Regularmente",null,null,null,null,null,null,{"$f":"IF(ISBLANK(G7),0,1)","v":0},{"$f":"IF(ISBLANK(H7),0,3)","v":0},{"$f":"IF(ISBLANK(I7),0,5)","v":0}]
[null,null,null,"○","Em todas as plataformas de saúde e comunitárias (pontos de prestação de serviços e unidades sanitárias)",null,null,null,null,null,null,0,0,0]
[null,null,null,null,"Utilizando financiamento de prevenção do HIV para RAMJ",null,null,null,null,null,null,0,0,0]
[null,null,"Aconselhamento e testagem para a redução do risco de HIV","Aconselhamento e testagem para a redução do risco de HIV oferecidos:  ",null,null,null,null,null,{"$f":"IFERROR(O10,\"-\")","v":"-"},null,null,null,null,{"$f":"IFERROR(ROUND(AVERAGEIF(L11:N13,\"<>0\",L11:N13),0),\"-\")","v":"-"}]
[null,null,null,"○","Regularmente",null,null,null,null,null,null,0,0,0]
[null,null,null,"○","Em todas as plataformas de saúde e comunitárias (pontos de prestação de serviços e unidades sanitárias)",null,null,null,null,null,null,0,0,0]
[null,null,null,null,"Utilizando financiamento de prevenção do HIV para RAMJ",null,null,null,null,null,null,0,0,0]
[null,null,"Promoção e distribuição activas de preservativos e lubrificantes iniciada pelo provedor\n","Distribuição e promoção activas de preservativos e lubrificantes iniciadas pelo provedor oferecidas: ",null,null,null,null,null,{"$f":"IFERROR(O14,\"-\")","v":"-"},null,null,null,null,{"$f":"IFERROR(ROUND(AVERAGEIF(L15:N18,\"<>0\",L15:N18),0),\"-\")","v":"-"}]
[null,null,null,"○","Regularmente",null,null,null,null,null,null,0,0,0]
[null,null,null,"○","Em todas as plataformas de saúde e comunitárias (pontos de prestação de serviços e unidades sanitárias)",null,null,null,null,null,null,0,0,0]
[null,null,null,"○","Para todas RAMJ em alto risco",null,null,null,null,null,null,0,0,0]
[null,null,null,null,"Utilizando financiamento de prevenção do HIV para RAMJ",null,null,null,null,null,null,0,0,0]
[null,null,"Diagnóstico e tratamento de ITS (incluindo como indicador do risco de HIV) ","Diagnóstico e tratamento de ITS (incluindo como indicador do risco de HIV) disponíveis:  ",null,null,null,null,null,{"$f":"IFERROR(O19,\"-\")","v":"-"},null,null,null,null,{"$f":"IFERROR(ROUND(AVERAGEIF(L20:N23,\"<>0\",L20:N23),0),\"-\")","v":"-"}]
[null,null,null,"○","Regularmente",null,null,null,null,null,null,{"$f":"IF(ISBLANK(G20),0,1)","v":0},{"$f":"IF(ISBLANK(H20),0,3)","v":0},{"$f":"IF(ISBLANK(I20),0,5)","v":0}]
[null,null,null,"○","Em todas as plataformas de saúde e comunitárias (pontos de prestação de serviços e unidades sanitárias)",null,null,null,null,null,null,0,0,0]
[null,null,null,"○","Para todas RAMJ em alto risco",null,null,null,null,null,null,0,0,0]
[null,null,null,null,"Utilizando financiamento de prevenção do HIV para RAMJ",null,null,null,null,null,null,0,0,0]
[null,null,"Integração de serviços de HIV e ITS no planeamento familiar","Integração de serviços de HIV & ITS no Planeamento Familiar:  ",null,null,null,null,null,{"$f":"IFERROR(O24,\"-\")","v":"-"},null,null,null,null,{"$f":"IFERROR(ROUND(AVERAGEIF(L25:N28,\"<>0\",L25:N28),0),\"-\")","v":"-"}]
[null,null,null,"○","Regularmente",null,null,null,null,null,null,0,0,0]
[null,null,null,"○","Em todas as plataformas de saúde e comunitárias (pontos de prestação de serviços e unidades sanitárias)",null,null,null,null,null,null,0,0,0]
[null,null,null,"○","Para todas RAMJ em alto risco",null,null,null,null,null,null,0,0,0]
[null,null,null,null,"Utilizando financiamento de prevenção do HIV para RAMJ",null,null,null,null,null,null,0,0,0]
[null,null,"Testagem de parceiros masculinos (carta-convite + autoteste) com indicação de tratamento anti-retroviral","Disponíveis a testagem do parceiro masculino e serviços de referência para o tratamento anti-retroviral:  ",null,null,null,null,null,{"$f":"IFERROR(O29,\"-\")","v":"-"},null,null,null,null,{"$f":"IFERROR(ROUND(AVERAGEIF(L30:N33,\"<>0\",L30:N33),0),\"-\")","v":"-"}]
[null,null,null,"○","Regularmente",null,null,null,null,null,null,0,0,0]
[null,null,null,"○","Em todas as plataformas de saúde e comunitárias (pontos de prestação de serviços e unidades sanitárias)",null,null,null,null,null,null,0,0,0]
[null,null,null,"○","Para todas RAMJ em alto risco",null,null,null,null,null,null,0,0,0]
[null,null,null,null,"Utilizando financiamento de prevenção do HIV para RAMJ",null,null,null,null,null,null,0,0,0]
[null,null,"Serviços de PrEP","Disponíveis serviços de PrEP: ",null,null,null,null,null,{"$f":"IFERROR(O34,\"-\")","v":"-"},null,null,null,null,{"$f":"IFERROR(ROUND(AVERAGEIF(L35:N38,\"<>0\",L35:N38),0),\"-\")","v":"-"}]
[null,null,null,"○","Regularmente",null,null,null,null,null,null,0,0,0]
[null,null,null,"○","Em todas as plataformas de saúde e comunitárias (pontos de prestação de serviços e unidades sanitárias)",null,null,null,null,null,null,0,0,0]
[null,null,null,"○","Para todas RAMJ em alto risco",null,null,null,null,null,null,0,0,0]
[null,null,null,null,"Utilizando financiamento de prevenção do HIV para RAMJ",null,null,null,null,null,null,0,0,0]
[null,null,"Campanhas de prevenção do HIV baseadas na escola (conhecimento, percepção de risco, métodos, habilidades, violência baseada no género) ligadas aos serviços ","Implementadas campanhas de prevenção do HIV baseadas na escola e ligadas aos serviços:",null,null,null,null,null,{"$f":"IFERROR(O39,\"-\")","v":"-"},null,null,null,null,{"$f":"IFERROR(ROUND(AVERAGEIF(L40:N41,\"<>0\",L40:N41),0),\"-\")","v":"-"}]
[null,null,null,"○","Em todas as escolas e instituições terciárias/universidades",null,null,null,null,null,null,0,0,0]
[null,null,null,null,"Utilizando financiamento de prevenção do HIV para RAMJ",null,null,null,null,null,null,0,0,0]
[null,null,"Introdução acelerada de educação sexual abrangente\n","Acelerada a introdução da Educação Sexual Abrangente: \n",null,null,null,null,null,{"$f":"IFERROR(O42,\"-\")","v":"-"},null,null,null,null,{"$f":"IFERROR(ROUND(AVERAGEIF(L43:N44,\"<>0\",L43:N44),0),\"-\")","v":"-"}]
[null,null,null,"○","Em todas as escolas e instituições terciárias/universidades",null,null,null,null,null,null,0,0,0]
[null,null,null,null,"Utilizando financiamento de prevenção do HIV para RAMJ",null,null,null,null,null,null,0,0,0]
[null,null,"Mobilização comunitária sobre o conhecimento básico de prevenção do HIV, percepção de risco e respectivas normas sociais","Implementada a mobilização comunitária sobre conhecimentos básicos de prevenção do HIV, percepção do risco e respectivas normas sociais:",null,null,null,null,null,{"$f":"IFERROR(O45,\"-\")","v":"-"},null,null,null,null,{"$f":"IFERROR(ROUND(AVERAGEIF(L46:N47,\"<>0\",L46:N47),0),\"-\")","v":"-"}]
[null,null,null,"○","Em todas as comunidades",null,null,null,null,null,null,0,0,0]
[null,null,null,null,"Utilizando financiamento de prevenção do HIV para RAMJ",null,null,null,null,null,null,0,0,0]
[null,null,"Criação de demanda baseada na comunidade e sensibilização sobre serviços de prevenção do HIV","Implementada a criação de demanda baseada na comunidade e sensibilização sobre serviços de prevenção do HIV (incluindo preservativos, auto-testes, referências...):",null,null,null,null,null,{"$f":"IFERROR(O48,\"-\")","v":"-"},null,null,null,null,{"$f":"IFERROR(ROUND(AVERAGEIF(L49:N50,\"<>0\",L49:N50),0),\"-\")","v":"-"}]
[null,null,null,"○","Tendo como alvo RAMJ e homens dos 20 a 39",null,null,null,null,null,null,0,0,0]
[null,null,null,null,"Utilizando financiamento de prevenção do HIV para RAMJ",null,null,null,null,null,null,0,0,0]
[null,null,"Criação activa de demanda por PrEP\n","Actividades activas de criação de demanda por PrEP implementadas através de plataformas comunitárias (ONG, OSCs):  ",null,null,null,null,null,{"$f":"IFERROR(O51,\"-\")","v":"-"},null,null,null,null,{"$f":"IFERROR(ROUND(AVERAGEIF(L52:N54,\"<>0\",L52:N54),0),\"-\")","v":"-"}]
[null,null,null,"○","Para toda a comunidade",null,null,null,null,null,null,0,0,0]
[null,null,null,"○","Tendo como alvo RAMJ em alto risco",null,null,null,null,null,null,0,0,0]
[null,null,null,null,"Utilizando financiamento de prevenção do HIV para RAMJ",null,null,null,null,null,null,0,0,0]
[null,null,"Sensibilização estruturada sobre comunicação interpessoal (por exemplo, SASA! Etc.)","Actividades estruturadas de sensibilização sobre IPC implementadas atarvés de plataformas comunitárias (ONGs, OSCs): ",null,null,null,null,null,{"$f":"IFERROR(O55,\"-\")","v":"-"},null,null,null,null,{"$f":"IFERROR(ROUND(AVERAGEIF(L56:N57,\"<>0\",L56:N57),0),\"-\")","v":"-"}]
[null,null,null,"○","Em todas as comunidades",null,null,null,null,null,null,0,0,0]
[null,null,null,null,"Utilizando financiamento de prevenção do HIV para RAMJ",null,null,null,null,null,null,0,0,0]
[null,null,"Transferências de dinheiro, incentivos, empoderamento económico","Disponíveis transferências de dinheiro, incentivos, iniciativas de empoderamento económico:  \n",null,null,null,null,null,{"$f":"IFERROR(O58,\"-\")","v":"-"},null,null,null,null,{"$f":"IFERROR(ROUND(AVERAGEIF(L59:N61,\"<>0\",L59:N61),0),\"-\")","v":"-"}]
[null,null,null,"○","Para RAMJ em alto risco",null,null,null,null,null,null,0,0,0]
[null,null,null,null,"Utilizando financiamento de prevenção do HIV para RAMJ",null,null,null,null,null,null,0,0,0]
[null,null,null,null,"Utilizando outros financiamentos (não de prevenção para RAMJ)",null,null,null,null,null,null,0,0,0]
[null,null,"Construção de activos sociais, espaços seguros, programas para pais, mentoria","Estão disponíveis programas de criação de bens sociais, espaços seguros, programas para pais, mentoria:   ",null,null,null,null,null,{"$f":"IFERROR(O62,\"-\")","v":"-"},null,null,null,null,{"$f":"IFERROR(ROUND(AVERAGEIF(L63:N65,\"<>0\",L63:N65),0),\"-\")","v":"-"}]
[null,null,null,"○","Para RAMJ em alto risco",null,null,null,null,null,null,0,0,0]
[null,null,null,null,"Utilizando financiamento de prevenção do HIV para RAMJ",null,null,null,null,null,null,0,0,0]
[null,null,null,null,"Utilizando outros financiamentos (não de prevenção para RAMJ)",null,null,null,null,null,null,0,0,0]
[null,null,"Manutenção da rapariga na escola/assistência educativa\n","Estão disponíveis programas de assistência escolar/para manter as raparigas na escola:  ",null,null,null,null,null,{"$f":"IFERROR(O66,\"-\")","v":"-"},null,null,null,null,{"$f":"IFERROR(ROUND(AVERAGEIF(L67:N69,\"<>0\",L67:N69),0),\"-\")","v":"-"}]
[null,null,null,"○","Para RAMJ em alto risco",null,null,null,null,null,null,0,0,0]
[null,null,null,null,"Utilizando financiamento de prevenção do HIV para RAMJ",null,null,null,null,null,null,0,0,0]
[null,null,null,null,"Utilizando outros financiamentos (não de prevenção para RAMJ)",null,null,null,null,null,null,0,0,0]
[null,null,"Escritório local de SIDA lidera a avaliação e resolução regulares de problemas","O Escritório Local de SIDA lidera a avaliação e resolução regulares de problemas (conforme recomendado)  ",null,null,null,null,null,{"$f":"IFERROR(O70,\"-\")","v":"-"},null,0,0,0,{"$f":"IFERROR(ROUND(AVERAGEIF(L70:N70,\"<>0\",L70:N70),0),\"-\")","v":"-"}]
[null,null,"Líder de RAMJ dentro do Escritório local de SIDA","Líder de RAMJ presente no Escritório Local de SIDA (conforme recomendado)",null,null,null,null,null,{"$f":"IFERROR(O71,\"-\")","v":"-"},null,0,0,0,{"$f":"IFERROR(ROUND(AVERAGEIF(L71:N71,\"<>0\",L71:N71),0),\"-\")","v":"-"}]
[]
[null,null,null,null,null,null,null,null,null,null,null,null,{"$f":"COUNTIF(O6:O71,\"-\")","v":18}]
[null,null,null,null,null,null,null,null,null,null,null,null,{"$f":"COUNTIF(O6:O71,\">0\")","v":0}]
[null,null,null,null,null,null,null,null,null,null,null,"Preenchimento de folha",{"$f":"M74/(M73+M74)","v":0},{"$f":"1-M75","v":1}]
[]
[null,null,null,null,null,null,null,null,null,null,null,null,18]
[null,null,null,null,null,null,null,null,null,null,null,null,{"$f":"M75+'Incidencia Moderada'!M60","v":0}]
[null,null,null,null,null,null,null,null,null,null,null,"Preenchimento de folha",{"$f":"M78/M77","v":0},{"$f":"1-M79","v":1}]

{"sheet":"Resultados do Programa","index":10,"n_rows":29,"n_cols":15,"rows_kept":29,"cut":false,"hidden":false,"merged":[[1,2,1,9],[3,3,3,4],[4,2,4,9],[6,2,6,4],[7,2,7,4],[8,2,8,4],[9,2,9,4],[15,2,15,4],[10,2,10,4],[11,2,11,4],[12,2,12,4],[13,2,13,4],[20,2,20,4],[22,2,22,4],[24,2,24,4],[16,2,16,4],[17,2,17,4],[18,2,18,4],[19,2,19,4],[21,2,21,4],[23,2,23,4]]}
[]
[null,null,"Resultados do Programa"]
[]
[null,null,"Elemento","Critérios",null,"N/A","Sem meta","Meta não alcançada ou no bom caminho","Meta alcançada ou no bom caminho","Média do elemento","Commentários (se aplicável)","Absent","Present","Optimal","Average"]
[null,null,"Resultados e indicadores"]
[null,null,"Indicadores chave"]
[null,null,"Número de novas infecções por HIV entre RAMJ ",null,null,null,null,null,null,{"$f":"IFERROR(O7,\"-\")","v":"-"},null,{"$f":"IF(ISBLANK(G7),0,1)","v":0},{"$f":"IF(ISBLANK(H7),0,3)","v":0},{"$f":"IF(ISBLANK(I7),0,5)","v":0},{"$f":"IFERROR(IF(ISBLANK(G7),ROUND(AVERAGEIF(L7:N7,\"<>0\",L7:N7),0),L7),\"-\")","v":"-"}]
[null,null,"Percentagem (estimativa) de RAMJ vivendo com HIV ",null,null,null,null,null,null,"-",null,0,0,0,{"$f":"IFERROR(IF(ISBLANK(G8),ROUND(AVERAGEIF(L8:N8,\"<>0\",L8:N8),0),L8),\"-\")","v":"-"}]
[null,null,"Percentagem de RAMJ vivendo com HIV e que testaram positivo para HIV ",null,null,null,null,null,null,{"$f":"IFERROR(O9,\"-\")","v":"-"},null,{"$f":"IF(ISBLANK(G9),0,1)","v":0},{"$f":"IF(ISBLANK(H9),0,3)","v":0},{"$f":"IF(ISBLANK(I9),0,5)","v":0},{"$f":"IFERROR(IF(ISBLANK(G9),ROUND(AVERAGEIF(L9:N9,\"<>0\",L9:N9),0),L9),\"-\")","v":"-"}]
[null,null,"Percentagem de parceiros do sexo masculino vivendo com HIV e em TARV com supressão virológica",null,null,null,null,null,null,"-",null,0,0,0,"-"]
[null,null,"Percentagem de distritos prioritários (áreas administrativas) com programas dedicados a mulheres jovens e parceiros masculinos (pacote completo)  ",null,null,null,null,null,null,"-",null,0,0,0,"-"]
[null,null,"Percentagem de AGYW com maior risco de HIV alcançada com programas de prevenção do HIV nos últimos 3 meses",null,null,null,null,null,null,"-",null,0,0,0,"-"]
[null,null,"Uso de preservativo com parceiros não regulares (mulheres jovens, 15-29)",null,null,null,null,null,null,{"$f":"IFERROR(O13,\"-\")","v":"-"},null,0,0,0,"-"]
[null,null,"Percentagem de uso de PrEP entre RAMJ (por categoria de risco)",null,null,null,null,null,null,{"$f":"IFERROR(O14,\"-\")","v":"-"},null,{"$f":"IF(ISBLANK(G14),0,1)","v":0},{"$f":"IF(ISBLANK(H14),0,3)","v":0},{"$f":"IF(ISBLANK(I14),0,5)","v":0},{"$f":"IFERROR(IF(ISBLANK(G14),ROUND(AVERAGEIF(L14:N14,\"<>0\",L14:N14),0),L14),\"-\")","v":"-"}]
[null,null,"Indicadores suplementares"]
[null,null,"Percentagem de mulheres alguma vez casadas ou em união de facto de 15-49 anos de idade que sofreram violência física ou sexual por parte de parceiro íntimo masculino nos últimos 12 meses ",null,null,null,null,null,null,"-",null,0,0,0,{"$f":"IFERROR(IF(ISBLANK(G16),ROUND(AVERAGEIF(L16:N16,\"<>0\",L16:N16),0),L16),\"-\")","v":"-"}]
[null,null,"Percentagem de RAMJ sexualmente activas que tiveram vários parceiros sexuais",null,null,null,null,null,null,"-",null,{"$f":"IF(ISBLANK(G17),0,1)","v":0},{"$f":"IF(ISBLANK(H17),0,3)","v":0},{"$f":"IF(ISBLANK(I17),0,5)","v":0},"-"]
[null,null,"Percentagem de homens sexualmente activos que tiveram várias parceiras sexuais (homens de 15-49)",null,null,null,null,null,null,"-",null,0,0,0,"-"]
[null,null,"Conhece uma fonte formal de preservativos (mulheres jovens de 15-29)",null,null,null,null,null,null,"-",null,0,0,0,"-"]
[null,null,"Conhece uma fonte formal de preservativos (homens jovens de 15-29)   ",null,null,null,null,null,null,"-",null,0,0,0,"-"]
[null,null,"Uso de preservativos com parceiros não-regulares (mulheres jovens de 15- 29) ",null,null,null,null,null,null,{"$f":"IFERROR(O21,\"-\")","v":"-"},null,0,0,0,"-"]
[null,null,"Uso de preservativos com parceiros não-regulares (homens jovens de 15-29)",null,null,null,null,null,null,{"$f":"IFERROR(O22,\"-\")","v":"-"},null,0,0,0,"-"]
[null,null,"Percentagem de jovens sem emprego, escolaridade ou formação (NEET) ",null,null,null,null,null,null,{"$f":"IFERROR(O23,\"-\")","v":"-"},null,0,0,0,"-"]
[null,null,"Acesso ao PEP como parte do pacote de avaliação de risco e suporte",null,null,null,null,null,null,{"$f":"IFERROR(O24,\"-\")","v":"-"},null,{"$f":"IF(ISBLANK(G24),0,1)","v":0},{"$f":"IF(ISBLANK(H24),0,3)","v":0},{"$f":"IF(ISBLANK(I24),0,5)","v":0},{"$f":"IFERROR(IF(ISBLANK(G24),ROUND(AVERAGEIF(L24:N24,\"<>0\",L24:N24),0),L24),\"-\")","v":"-"}]
[null,null,"Percentagem de RAMJ que concluiu o ensino secundário",null,null,null,null,null,null,{"$f":"IFERROR(O25,\"-\")","v":"-"},null,0,0,0,"-"]
[]
[null,null,null,null,null,null,null,null,null,null,null,null,{"$f":"COUNTIF(O7:O25,\"-\")","v":18}]
[null,null,null,null,null,null,null,null,null,null,null,null,{"$f":"COUNTIF(O7:O25,\">0\")","v":0}]
[null,null,null,null,null,null,null,null,null,null,null,"Preenchimento de folha",{"$f":"M28/(M27+M28)","v":0},{"$f":"1-M29","v":1}]

{"sheet":"Resumo da Pontuação","index":11,"n_rows":102,"n_cols":11,"rows_kept":102,"cut":false,"hidden":false,"merged":[[1,2,1,6],[8,3,9,3],[10,3,14,3],[2,3,7,3],[2,2,14,2],[79,2,95,2],[47,3,60,3],[61,3,78,3],[47,2,78,2],[79,3,85,3],[86,3,94,3],[15,2,46,2],[15,3,18,3],[19,3,20,3],[21,3,24,3],[25,3,27,3],[28,3,35,3],[37,3,38,3],[39,3,46,3]]}
[]
[null,null,"Resumo da Pontuação"]
[null,null,"Gestão do Programa","Liderança e coordenação",null,"Estratégia Nacional e Plano Estratégico\nAvaliação das necessidades",{"$f":"'Gestão do Programa'!O6","v":"-"}]
[null,null,null,null,null,"Planos Nacional, Provincial e Distrital",{"$f":"'Gestão do Programa'!O19","v":"-"}]
[null,null,null,null,null,"Grupo Técnico Nacional de Trabalho (GTT) para a Prevenção de RAMJ/Jovens",{"$f":"'Gestão do Programa'!O20","v":"-"}]
[null,null,null,null,null,"Prestação de contas",{"$f":"'Gestão do Programa'!O31","v":"-"}]
[null,null,null,null,null,"Plano de reforço da capacidade e assistência técnica",{"$f":"'Gestão do Programa'!O40","v":"-"}]
[null,null,null,null,null,"Plano de sustentabilidade e roteiro de transição",{"$f":"'Gestão do Programa'!O48","v":"-"}]
[null,null,null,"Estratégia, política e regulamento",null,"Políticas e leis",{"$f":"'Gestão do Programa'!O53","v":"-"}]
[null,null,null,null,null,"Directrizes",{"$f":"'Gestão do Programa'!O65","v":"-"}]
[null,null,null,"Finanças",null,"Orçamentação",{"$f":"'Gestão do Programa'!O76","v":"-"}]
[null,null,null,null,null,"Mobilização de recursos e financiamento",{"$f":"'Gestão do Programa'!O79","v":"-"}]
[null,null,null,null,null,"Reabastecimento doméstico",{"$f":"'Gestão do Programa'!O80","v":"-"}]
[null,null,null,null,null,"Contratação social",{"$f":"'Gestão do Programa'!O81","v":"-"}]
[null,null,null,null,null,"Planificação orçamental",{"$f":"'Gestão do Programa'!O83","v":"-"}]
[null,null,"Implementação do Programa","Definição objectivos e planificação",null,"Avaliação demográfica e desagregação",{"$f":"'Implementação do Programa'!O6","v":"-"}]
[null,null,null,null,null,"Avaliação de necessidades",{"$f":"'Implementação do Programa'!O12","v":"-"}]
[null,null,null,null,null,"Caracterização de parceiros masculinos das RAMJ",{"$f":"'Implementação do Programa'!O16","v":"-"}]
[null,null,null,null,null,"Definição de objectivos",{"$f":"'Implementação do Programa'!O20","v":"-"}]
[null,null,null,"Estimativa do tamanho da população por nível de incidência do HIV",null,"Estimativa do tamanho da população - incidência moderada",{"$f":"'Implementação do Programa'!O29","v":"-"}]
[null,null,null,null,null,"Estimativa do tamanho da população - incidência elevada",{"$f":"'Implementação do Programa'!O33","v":"-"}]
[null,null,null,"Identifique os grupos \"mais vulneráveis\" ou \"mais necessit",null,"Avaliação epidemiológica (inquérito de sero-prevalência e factores de risco)",{"$f":"'Implementação do Programa'!O38","v":"-"}]
[null,null,null,null,null,"Factores comportamentais de risco",{"$f":"'Implementação do Programa'!O48","v":"-"}]
[null,null,null,null,null,"Factores biológicos de risco",{"$f":"'Implementação do Programa'!O59","v":"-"}]
[null,null,null,null,null,"Factores estruturais de risco",{"$f":"'Implementação do Programa'!O64","v":"-"}]
[null,null,null,"Desenvolva uma Quadro de Resultados (Teoria da Mudança)",null,"Definir e priorizar pacotes de prevenção do HIV por categoria de incidência aplicável",{"$f":"'Implementação do Programa'!O77","v":"-"}]
[null,null,null,null,null,"Quadro de Resultados/ Teoria da Mudança Inclui Metas de Cobertura Programática",{"$f":"'Implementação do Programa'!O78","v":"-"}]
[null,null,null,null,null,"Quadro de Resultados/ Teoria da Mudança Inclui Actividades Transversais & Acção Complementar",{"$f":"'Implementação do Programa'!O83","v":"-"}]
[null,null,null,"Definir/Desenvolver Sistemas de Prestação de Serviços",null,"Desenvolver/garantir plataformas de saúde",{"$f":"'Implementação do Programa'!O93","v":"-"}]
[null,null,null,null,null,"Desenvolver/garantir plataformas de educação",{"$f":"'Implementação do Programa'!O102","v":"-"}]
[null,null,null,null,null,"Desenvolver/garantir plataformas comunitárias (principais organizações não governamentais (ONGs)/organizações da sociedade civil (OSCs)) ",{"$f":"'Implementação do Programa'!O107","v":"-"}]
[null,null,null,null,null,"Accessible services",{"$f":"'Implementação do Programa'!O118","v":"-"}]
[null,null,null,null,null,"Serviços amigos do jovem/aceitáveis",{"$f":"'Implementação do Programa'!O126","v":"-"}]
[null,null,null,null,null,"Serviços personalizados/adequados",{"$f":"'Implementação do Programa'!O134","v":"-"}]
[null,null,null,null,null,"Educadores de pares (POE), Avaliadores de pares e Agentes Comunitários de Saúde (ACSs)",{"$f":"'Implementação do Programa'!O138","v":"-"}]
[null,null,null,null,null,"Envolvimento significativo das comunidades afectadas na liderança e coordenação",{"$f":"'Implementação do Programa'!O147","v":"-"}]
[null,null,null,"Definir Mecanismo de Gestão",null,"Sistemas de Gestão Nacionais, Provinciais e Distritais",{"$f":"'Implementação do Programa'!O152","v":"-"}]
[null,null,null,"Desenvolver Plano Orçamental e Operacional",null,"Plano Operacional",{"$f":"'Implementação do Programa'!O167","v":"-"}]
[null,null,null,null,null,"Recursos Disponíveis",{"$f":"'Implementação do Programa'!O171","v":"-"}]
[null,null,null,"Desenvolver Plano de M&A",null,"Monitoria regular",{"$f":"'Implementação do Programa'!O179","v":"-"}]
[null,null,null,null,null,"Sistema de rastreio de referências",{"$f":"'Implementação do Programa'!O189","v":"-"}]
[null,null,null,null,null,"Avaliação de qualidade",{"$f":"'Implementação do Programa'!O196","v":"-"}]
[null,null,null,null,null,"Vigilância",{"$f":"'Implementação do Programa'!O202","v":"-"}]
[null,null,null,null,null,"Fluxo de dados",{"$f":"'Implementação do Programa'!O207","v":"-"}]
[null,null,null,null,null,"Dados para tomada de decisão",{"$f":"'Implementação do Programa'!O213","v":"-"}]
[null,null,null,null,null,"Utilização do Código Identificador Exclusivo",{"$f":"'Implementação do Programa'!O222","v":"-"}]
[null,null,null,null,null,"Monitoria do orçamento",{"$f":"'Implementação do Programa'!O227","v":"-"}]
[null,null,"Pacote do Programa de Prevenção para RAMJ","Facilitadores do Programa Nacional de Prevenção do HIV em TODOS locais",null,"Accesso à educação primária e secundária",{"$f":"'Todos -Independ. da Incidencia'!O6","v":"-"}]
[null,null,null,null,null,"Introdução universal de programas abrangentes de educação sexual e saúde escolar ",{"$f":"'Todos -Independ. da Incidencia'!O15","v":"-"}]
[null,null,null,null,null,"Apoio social e empoderamento económico de adolescentes vulneráveis",{"$f":"'Todos -Independ. da Incidencia'!O32","v":"-"}]
[null,null,null,null,null,"Acesso à saúde sexual e reprodutiva integrada",{"$f":"'Todos -Independ. da Incidencia'!O38","v":"-"}]
[null,null,null,null,null,"Acesso à SSR e direitos, incluindo apoio jurídico e político ",{"$f":"'Todos -Independ. da Incidencia'!O51","v":"-"}]
[null,null,null,null,null,"Sistemas de saúde amigos do jovem",{"$f":"'Todos -Independ. da Incidencia'!O69","v":"-"}]
[null,null,null,null,null,"Serviços de testagem e tratamento do HIV",{"$f":"'Todos -Independ. da Incidencia'!O79","v":"-"}]
[null,null,null,null,null,"PEP",{"$f":"'Todos -Independ. da Incidencia'!O91","v":"-"}]
[null,null,null,null,null,"Prevenção da transmissão vertical do HIV como parte da saúde materna",{"$f":"'Todos -Independ. da Incidencia'!O98","v":"-"}]
[null,null,null,null,null,"Acção para promover direitos e eliminar o estigma e discriminação relacionados com o HIV ",{"$f":"'Todos -Independ. da Incidencia'!O104","v":"-"}]
[null,null,null,null,null,"Preservativos e lubrificantes masculinos e femininos",{"$f":"'Todos -Independ. da Incidencia'!O111","v":"-"}]
[null,null,null,null,null,"Circuncisão médica masculina voluntária para homens nos países prioritários relevantes",{"$f":"'Todos -Independ. da Incidencia'!O120","v":"-"}]
[null,null,null,null,null,"Informações básicas nacionais sobre HIV, comunicações de redução de risco",{"$f":"'Todos -Independ. da Incidencia'!O123","v":"-"}]
[null,null,null,null,null,"Pacotes abrangentes de prevenção do HIV para jovens chave e vulneráveis ",{"$f":"'Todos -Independ. da Incidencia'!O136","v":"-"}]
[null,null,null,"Pacotes de prevenção do HIV para RAMJ em locais de incidência MODERADA e ELEVADA",null,"Perfil de avaliação do risco de HIV/ITS oferecido",{"$f":"IF('Incidencia Moderada'!O6<>\"-\",'Incidencia Moderada'!O6,'Alta Incidencia'!O6)","v":"-"}]
[null,null,null,null,null,"Aconselhamento e testagem para a redução do risco de HIV oferecidos",{"$f":"IF('Incidencia Moderada'!O10<>\"-\",'Incidencia Moderada'!O10,'Alta Incidencia'!O10)","v":"-"}]
[null,null,null,null,null,"Distribuição e promoção activas de preservativos e lubrificantes iniciadas pelo provedor oferecidas",{"$f":"IF('Incidencia Moderada'!O14<>\"-\",'Incidencia Moderada'!O14,'Alta Incidencia'!O14)","v":"-"}]
[null,null,null,null,null,"Diagnóstico e tratamento de ITS (incluindo como indicador do risco de HIV) disponíveis",{"$f":"IF('Incidencia Moderada'!O18<>\"-\",'Incidencia Moderada'!O18,'Alta Incidencia'!O19)","v":"-"}]
[null,null,null,null,null,"Integração de serviços de HIV & ITS no Planeamento Familiar",{"$f":"IF('Incidencia Moderada'!O21<>\"-\",'Incidencia Moderada'!O21,'Alta Incidencia'!O24)","v":"-"}]
[null,null,null,null,null,"Disponíveis a testagem do parceiro masculino e serviços de referência para o tratamento anti-retroviral",{"$f":"IF('Incidencia Moderada'!O25<>\"-\",'Incidencia Moderada'!O25,'Alta Incidencia'!O29)","v":"-"}]
[null,null,null,null,null,"Disponíveis serviços de PrEP",{"$f":"IF('Incidencia Moderada'!O29<>\"-\",'Incidencia Moderada'!O29,'Alta Incidencia'!O34)","v":"-"}]
[null,null,null,null,null,"Implementadas campanhas de prevenção do HIV baseadas na escola e ligadas aos serviços",{"$f":"IF('Incidencia Moderada'!O33<>\"-\",'Incidencia Moderada'!O33,'Alta Incidencia'!O39)","v":"-"}]
[null,null,null,null,null,"Acelerada a introdução da Educação Sexual Abrangente",{"$f":"IF('Incidencia Moderada'!O36<>\"-\",'Incidencia Moderada'!O36,'Alta Incidencia'!O42)","v":"-"}]
[null,null,null,null,null,"Implementada a mobilização comunitária sobre conhecimentos básicos de prevenção do HIV, percepção do risco e respectivas normas sociais ",{"$f":"IF('Incidencia Moderada'!O38<>\"-\",'Incidencia Moderada'!O38,'Alta Incidencia'!O45)","v":"-"}]
[null,null,null,null,null,"Implementada a criação de demanda baseada na comunidade e sensibilização sobre serviços de prevenção do HIV (incluindo preservativos, auto-testes, referências...)",{"$f":"IF('Incidencia Moderada'!O41<>\"-\",'Incidencia Moderada'!O41,'Alta Incidencia'!O48)","v":"-"}]
[null,null,null,null,null,"Actividades activas de criação de demanda por PrEP implementadas através de plataformas comunitárias (ONG, OSCs)  ",{"$f":"IF('Incidencia Moderada'!O44<>\"-\",'Incidencia Moderada'!O44,'Alta Incidencia'!O51)","v":"-"}]
[null,null,null,null,null,"Actividades estruturadas de sensibilização sobre IPC implementadas atarvés de plataformas comunitárias (ONGs, OSCs)",{"$f":"IF('Incidencia Moderada'!O47<>\"-\",'Incidencia Moderada'!O47,'Alta Incidencia'!O55)","v":"-"}]
[null,null,null,null,null,"Disponíveis transferências de dinheiro, incentivos, iniciativas de empoderamento económico  ",{"$f":"IF('Incidencia Moderada'!O50<>\"-\",'Incidencia Moderada'!O50,'Alta Incidencia'!O58)","v":"-"}]
[null,null,null,null,null,"Estão disponíveis programas de criação de bens sociais, espaços seguros, programas para pais, mentoria",{"$f":"IF('Incidencia Moderada'!O52<>\"-\",'Incidencia Moderada'!O52,'Alta Incidencia'!O62)","v":"-"}]
[null,null,null,null,null,"Estão disponíveis programas de assistência escolar/para manter as raparigas na escola ",{"$f":"IF('Incidencia Moderada'!O54<>\"-\",'Incidencia Moderada'!O54,'Alta Incidencia'!O66)","v":"-"}]
[null,null,null,null,null,"O Escritório Local de SIDA lidera a avaliação e resolução regulares de problemas ",{"$f":"IF('Incidencia Moderada'!O56<>\"-\",'Incidencia Moderada'!O56,'Alta Incidencia'!O70)","v":"-"}]
[null,null,null,null,null,"Líder de RAMJ presente no Escritório Local de SIDA",{"$f":"IF('Incidencia Moderada'!O57<>\"-\",'Incidencia Moderada'!O57,'Alta Incidencia'!O71)","v":"-"}]
[null,null,"Resultados do Programa","Indicadores chave",null,"Número de novas infecções por HIV entre RAMJ   ",{"$f":"'Resultados do Programa'!O7","v":"-"}]
[null,null,null,null,null,"Número e % de RAMJ vivendo com HIV  ",{"$f":"'Resultados do Programa'!O8","v":"-"}]
[null,null,null,null,null,"Percentagem (estimativa) de RAMJ vivendo com HIV e que testaram positivo para HIV   ",{"$f":"'Resultados do Programa'!O9","v":"-"}]
[null,null,null,null,null,"Percentagem de RAMJ que se sabe estar em tratamento 12 meses após o início do tratamento anti-retroviral    ",{"$f":"'Resultados do Programa'!O10","v":"-"}]
[null,null,null,null,null,"Percentagem de RAMJ vivendo com HIV e em TARV que registam supressão viral",{"$f":"'Resultados do Programa'!O11","v":"-"}]
[null,null,null,null,null,"Percentagem de distritos prioritários (áreas administrativas) com programas dedicados a mulheres jovens e parceiros masculinos (pacote completo)",{"$f":"'Resultados do Programa'!O12","v":"-"}]
[null,null,null,null,null,"Percentagem de RAMJ alcançada com duas intervenções nos últimos três meses ",{"$f":"'Resultados do Programa'!O13","v":"-"}]
[null,null,null,"Indicadores suplementares",null,"Percentagem de mulheres casadas ou em união de facto de 15-49 anos de idade que sofreram violência física ou sexual por parte de parceiro íntimo masculino nos últimos 12 meses   ",{"$f":"'Resultados do Programa'!O16","v":"-"}]
[null,null,null,null,null,"Percentagem de RAMJ sexualmente activas que tiveram vários parceiros sexuais",{"$f":"'Resultados do Programa'!O17","v":"-"}]
[null,null,null,null,null,"Percentagem de homens sexualmente activos que tiveram várias parceiras sexuais (homens de 15-49)  ",{"$f":"'Resultados do Programa'!O18","v":"-"}]
[null,null,null,null,null,"Conhece uma fonte formal de preservativos (mulheres jovens de 15-29) ",{"$f":"'Resultados do Programa'!O19","v":"-"}]
[null,null,null,null,null,"Conhece uma fonte formal de preservativos (homens jovens de 15-29) ",{"$f":"'Resultados do Programa'!O20","v":"-"}]
[null,null,null,null,null,"Uso de preservativos com parceiros não-regulares (mulheres jovens de 15- 29)   ",{"$f":"'Resultados do Programa'!O21","v":"-"}]
[null,null,null,null,null,"Uso de preservativos com parceiros não-regulares (homens jovens de 15-29) ",{"$f":"'Resultados do Programa'!O22","v":"-"}]
[null,null,null,null,null,"Percentagem de jovens sem emprego, escolaridade ou formação (NEET)  ",{"$f":"'Resultados do Programa'!O23","v":"-"}]
[null,null,null,null,null,"Percentagem de RAMJ que concluiu o ensino secundário",{"$f":"'Resultados do Programa'!O24","v":"-"}]
[null,null,null,"Indicadores de sustentabilidade",null,null,{"$f":"IFERROR(ROUND(AVERAGE('Gestão do Programa'!P6:P86,'Implementação do Programa'!P190),0),\"-\")","v":"-"}]
[null,null,null,"Indicadores da COVID-19 (e outras pandemias)",null,null,{"$f":" IF((SUM('Gestão do Programa'!L74:N74)+SUM('Todos -Independ. da Incidencia'!L143:N143)+SUM('Todos -Independ. da Incidencia'!L144:N144))/3=0,\"-\", ROUND((SUM('Gestão do Programa'!L74:N74)+SUM('Todos -Independ. da Incidencia'!L143:N143)+SUM('Todos -Independ. da Incidencia'!L144:N144))/3,0))","v":"-"}]
[]
[]
[null,null,null,null,null,null,null,null,null,{"$f":"COUNTIF(G3:G97,\"-\")","v":95}]
[null,null,null,null,null,null,null,null,null,{"$f":"COUNTIF(G3:G97,\">0\")","v":0}]
[null,null,null,null,null,null,null,null,"Conclusão PSAT",{"$f":"J101/(J100+J101)","v":0},{"$f":"1-J102","v":1}]

{"sheet":"Próximos Passos","index":12,"n_rows":54,"n_cols":8,"rows_kept":54,"cut":false,"hidden":false,"merged":[[1,2,1,8],[11,2,11,3]]}
[]
[null,null,"Próximos Passos"]
[]
[null,null,null,null,null,"Elemento que precisa de atenção","Razão do fraco desempenho","Acções propostas (ex: apoio ou acções correctivas necessárias). Por favor, certifique-se de que as acções propostas sejam desagregadas, quando apropriado, por categoria de idade: 15-19; 20-24 e 25-29."]
[null,null,null,null,1,{"$f":"IFERROR(INDEX('Resumo da Pontuação'!$F$1:$F$97,SMALL(IF('Resumo da Pontuação'!$G$1:$G$97<=$C$12,ROW('Resumo da Pontuação'!$G$1:$G$97)),ROW(3:3))),\"\")","v":""}]
[null,null,null,null,2,{"$f":"IFERROR(INDEX('Resumo da Pontuação'!$F$1:$F$97,SMALL(IF('Resumo da Pontuação'!$G$1:$G$97<=$C$12,ROW('Resumo da Pontuação'!$G$1:$G$97)),ROW(4:4))),\"\")","v":""}]
[null,null,null,null,3,{"$f":"IFERROR(INDEX('Resumo da Pontuação'!$F$1:$F$97,SMALL(IF('Resumo da Pontuação'!$G$1:$G$97<=$C$12,ROW('Resumo da Pontuação'!$G$1:$G$97)),ROW(5:5))),\"\")","v":""}]
[null,null,null,null,4,{"$f":"IFERROR(INDEX('Resumo da Pontuação'!$F$1:$F$97,SMALL(IF('Resumo da Pontuação'!$G$1:$G$97<=$C$12,ROW('Resumo da Pontuação'!$G$1:$G$97)),ROW(6:6))),\"\")","v":""}]
[null,null,null,null,5,{"$f":"IFERROR(INDEX('Resumo da Pontuação'!$F$1:$F$97,SMALL(IF('Resumo da Pontuação'!$G$1:$G$97<=$C$12,ROW('Resumo da Pontuação'!$G$1:$G$97)),ROW(7:7))),\"\")","v":""}]
[null,null,null,null,6,{"$f":"IFERROR(INDEX('Resumo da Pontuação'!$F$1:$F$97,SMALL(IF('Resumo da Pontuação'!$G$1:$G$97<=$C$12,ROW('Resumo da Pontuação'!$G$1:$G$97)),ROW(8:8))),\"\")","v":""}]
[null,null,null,null,7,{"$f":"IFERROR(INDEX('Resumo da Pontuação'!$F$1:$F$97,SMALL(IF('Resumo da Pontuação'!$G$1:$G$97<=$C$12,ROW('Resumo da Pontuação'!$G$1:$G$97)),ROW(9:9))),\"\")","v":""}]
[null,null,1,null,8,{"$f":"IFERROR(INDEX('Resumo da Pontuação'!$F$1:$F$97,SMALL(IF('Resumo da Pontuação'!$G$1:$G$97<=$C$12,ROW('Resumo da Pontuação'!$G$1:$G$97)),ROW(10:10))),\"\")","v":""}]
[null,null,null,null,9,{"$f":"IFERROR(INDEX('Resumo da Pontuação'!$F$1:$F$97,SMALL(IF('Resumo da Pontuação'!$G$1:$G$97<=$C$12,ROW('Resumo da Pontuação'!$G$1:$G$97)),ROW(11:11))),\"\")","v":""}]
[null,null,null,null,10,{"$f":"IFERROR(INDEX('Resumo da Pontuação'!$F$1:$F$97,SMALL(IF('Resumo da Pontuação'!$G$1:$G$97<=$C$12,ROW('Resumo da Pontuação'!$G$1:$G$97)),ROW(12:12))),\"\")","v":""}]
[null,null,null,null,11,{"$f":"IFERROR(INDEX('Resumo da Pontuação'!$F$1:$F$97,SMALL(IF('Resumo da Pontuação'!$G$1:$G$97<=$C$12,ROW('Resumo da Pontuação'!$G$1:$G$97)),ROW(13:13))),\"\")","v":""}]
[null,null,null,null,12,{"$f":"IFERROR(INDEX('Resumo da Pontuação'!$F$1:$F$97,SMALL(IF('Resumo da Pontuação'!$G$1:$G$97<=$C$12,ROW('Resumo da Pontuação'!$G$1:$G$97)),ROW(14:14))),\"\")","v":""}]
[null,null,null,null,13,{"$f":"IFERROR(INDEX('Resumo da Pontuação'!$F$1:$F$97,SMALL(IF('Resumo da Pontuação'!$G$1:$G$97<=$C$12,ROW('Resumo da Pontuação'!$G$1:$G$97)),ROW(15:15))),\"\")","v":""}]
[null,null,null,null,14,{"$f":"IFERROR(INDEX('Resumo da Pontuação'!$F$1:$F$97,SMALL(IF('Resumo da Pontuação'!$G$1:$G$97<=$C$12,ROW('Resumo da Pontuação'!$G$1:$G$97)),ROW(16:16))),\"\")","v":""}]
[null,null,null,null,15,{"$f":"IFERROR(INDEX('Resumo da Pontuação'!$F$1:$F$97,SMALL(IF('Resumo da Pontuação'!$G$1:$G$97<=$C$12,ROW('Resumo da Pontuação'!$G$1:$G$97)),ROW(17:17))),\"\")","v":""}]
[null,null,null,null,16,{"$f":"IFERROR(INDEX('Resumo da Pontuação'!$F$1:$F$97,SMALL(IF('Resumo da Pontuação'!$G$1:$G$97<=$C$12,ROW('Resumo da Pontuação'!$G$1:$G$97)),ROW(18:18))),\"\")","v":""}]
[null,null,null,null,17,{"$f":"IFERROR(INDEX('Resumo da Pontuação'!$F$1:$F$97,SMALL(IF('Resumo da Pontuação'!$G$1:$G$97<=$C$12,ROW('Resumo da Pontuação'!$G$1:$G$97)),ROW(19:19))),\"\")","v":""}]
[null,null,null,null,18,{"$f":"IFERROR(INDEX('Resumo da Pontuação'!$F$1:$F$97,SMALL(IF('Resumo da Pontuação'!$G$1:$G$97<=$C$12,ROW('Resumo da Pontuação'!$G$1:$G$97)),ROW(20:20))),\"\")","v":""}]
[null,null,null,null,19,{"$f":"IFERROR(INDEX('Resumo da Pontuação'!$F$1:$F$97,SMALL(IF('Resumo da Pontuação'!$G$1:$G$97<=$C$12,ROW('Resumo da Pontuação'!$G$1:$G$97)),ROW(21:21))),\"\")","v":""}]
[null,null,null,null,20,{"$f":"IFERROR(INDEX('Resumo da Pontuação'!$F$1:$F$97,SMALL(IF('Resumo da Pontuação'!$G$1:$G$97<=$C$12,ROW('Resumo da Pontuação'!$G$1:$G$97)),ROW(22:22))),\"\")","v":""}]
[null,null,null,null,21,{"$f":"IFERROR(INDEX('Resumo da Pontuação'!$F$1:$F$97,SMALL(IF('Resumo da Pontuação'!$G$1:$G$97<=$C$12,ROW('Resumo da Pontuação'!$G$1:$G$97)),ROW(23:23))),\"\")","v":""}]
[null,null,null,null,22,{"$f":"IFERROR(INDEX('Resumo da Pontuação'!$F$1:$F$97,SMALL(IF('Resumo da Pontuação'!$G$1:$G$97<=$C$12,ROW('Resumo da Pontuação'!$G$1:$G$97)),ROW(24:24))),\"\")","v":""}]
[null,null,null,null,23,{"$f":"IFERROR(INDEX('Resumo da Pontuação'!$F$1:$F$97,SMALL(IF('Resumo da Pontuação'!$G$1:$G$97<=$C$12,ROW('Resumo da Pontuação'!$G$1:$G$97)),ROW(25:25))),\"\")","v":""}]
[null,null,null,null,24,{"$f":"IFERROR(INDEX('Resumo da Pontuação'!$F$1:$F$97,SMALL(IF('Resumo da Pontuação'!$G$1:$G$97<=$C$12,ROW('Resumo da Pontuação'!$G$1:$G$97)),ROW(26:26))),\"\")","v":""}]
[null,null,null,null,25,{"$f":"IFERROR(INDEX('Resumo da Pontuação'!$F$1:$F$97,SMALL(IF('Resumo da Pontuação'!$G$1:$G$97<=$C$12,ROW('Resumo da Pontuação'!$G$1:$G$97)),ROW(27:27))),\"\")","v":""}]
[null,null,null,null,26,{"$f":"IFERROR(INDEX('Resumo da Pontuação'!$F$1:$F$97,SMALL(IF('Resumo da Pontuação'!$G$1:$G$97<=$C$12,ROW('Resumo da Pontuação'!$G$1:$G$97)),ROW(28:28))),\"\")","v":""}]
[null,null,null,null,27,{"$f":"IFERROR(INDEX('Resumo da Pontuação'!$F$1:$F$97,SMALL(IF('Resumo da Pontuação'!$G$1:$G$97<=$C$12,ROW('Resumo da Pontuação'!$G$1:$G$97)),ROW(29:29))),\"\")","v":""}]
[null,null,null,null,28,{"$f":"IFERROR(INDEX('Resumo da Pontuação'!$F$1:$F$97,SMALL(IF('Resumo da Pontuação'!$G$1:$G$97<=$C$12,ROW('Resumo da Pontuação'!$G$1:$G$97)),ROW(30:30))),\"\")","v":""}]
[null,null,null,null,29,{"$f":"IFERROR(INDEX('Resumo da Pontuação'!$F$1:$F$97,SMALL(IF('Resumo da Pontuação'!$G$1:$G$97<=$C$12,ROW('Resumo da Pontuação'!$G$1:$G$97)),ROW(31:31))),\"\")","v":""}]
[null,null,null,null,30,{"$f":"IFERROR(INDEX('Resumo da Pontuação'!$F$1:$F$97,SMALL(IF('Resumo da Pontuação'!$G$1:$G$97<=$C$12,ROW('Resumo da Pontuação'!$G$1:$G$97)),ROW(32:32))),\"\")","v":""}]
[null,null,null,null,31,{"$f":"IFERROR(INDEX('Resumo da Pontuação'!$F$1:$F$97,SMALL(IF('Resumo da Pontuação'!$G$1:$G$97<=$C$12,ROW('Resumo da Pontuação'!$G$1:$G$97)),ROW(33:33))),\"\")","v":""}]
[null,null,null,null,32,{"$f":"IFERROR(INDEX('Resumo da Pontuação'!$F$1:$F$97,SMALL(IF('Resumo da Pontuação'!$G$1:$G$97<=$C$12,ROW('Resumo da Pontuação'!$G$1:$G$97)),ROW(34:34))),\"\")","v":""}]
[null,null,null,null,33,{"$f":"IFERROR(INDEX('Resumo da Pontuação'!$F$1:$F$97,SMALL(IF('Resumo da Pontuação'!$G$1:$G$97<=$C$12,ROW('Resumo da Pontuação'!$G$1:$G$97)),ROW(35:35))),\"\")","v":""}]
[null,null,null,null,34,{"$f":"IFERROR(INDEX('Resumo da Pontuação'!$F$1:$F$97,SMALL(IF('Resumo da Pontuação'!$G$1:$G$97<=$C$12,ROW('Resumo da Pontuação'!$G$1:$G$97)),ROW(36:36))),\"\")","v":""}]
[null,null,null,null,35,{"$f":"IFERROR(INDEX('Resumo da Pontuação'!$F$1:$F$97,SMALL(IF('Resumo da Pontuação'!$G$1:$G$97<=$C$12,ROW('Resumo da Pontuação'!$G$1:$G$97)),ROW(37:37))),\"\")","v":""}]
[null,null,null,null,36,{"$f":"IFERROR(INDEX('Resumo da Pontuação'!$F$1:$F$97,SMALL(IF('Resumo da Pontuação'!$G$1:$G$97<=$C$12,ROW('Resumo da Pontuação'!$G$1:$G$97)),ROW(38:38))),\"\")","v":""}]
[null,null,null,null,37,{"$f":"IFERROR(INDEX('Resumo da Pontuação'!$F$1:$F$97,SMALL(IF('Resumo da Pontuação'!$G$1:$G$97<=$C$12,ROW('Resumo da Pontuação'!$G$1:$G$97)),ROW(39:39))),\"\")","v":""}]
[null,null,null,null,38,{"$f":"IFERROR(INDEX('Resumo da Pontuação'!$F$1:$F$97,SMALL(IF('Resumo da Pontuação'!$G$1:$G$97<=$C$12,ROW('Resumo da Pontuação'!$G$1:$G$97)),ROW(40:40))),\"\")","v":""}]
[null,null,null,null,39,{"$f":"IFERROR(INDEX('Resumo da Pontuação'!$F$1:$F$97,SMALL(IF('Resumo da Pontuação'!$G$1:$G$97<=$C$12,ROW('Resumo da Pontuação'!$G$1:$G$97)),ROW(41:41))),\"\")","v":""}]
[null,null,null,null,40,{"$f":"IFERROR(INDEX('Resumo da Pontuação'!$F$1:$F$97,SMALL(IF('Resumo da Pontuação'!$G$1:$G$97<=$C$12,ROW('Resumo da Pontuação'!$G$1:$G$97)),ROW(42:42))),\"\")","v":""}]
[null,null,null,null,41,{"$f":"IFERROR(INDEX('Resumo da Pontuação'!$F$1:$F$97,SMALL(IF('Resumo da Pontuação'!$G$1:$G$97<=$C$12,ROW('Resumo da Pontuação'!$G$1:$G$97)),ROW(43:43))),\"\")","v":""}]
[null,null,null,null,42,{"$f":"IFERROR(INDEX('Resumo da Pontuação'!$F$1:$F$97,SMALL(IF('Resumo da Pontuação'!$G$1:$G$97<=$C$12,ROW('Resumo da Pontuação'!$G$1:$G$97)),ROW(44:44))),\"\")","v":""}]
[null,null,null,null,43,{"$f":"IFERROR(INDEX('Resumo da Pontuação'!$F$1:$F$97,SMALL(IF('Resumo da Pontuação'!$G$1:$G$97<=$C$12,ROW('Resumo da Pontuação'!$G$1:$G$97)),ROW(45:45))),\"\")","v":""}]
[null,null,null,null,44,{"$f":"IFERROR(INDEX('Resumo da Pontuação'!$F$1:$F$97,SMALL(IF('Resumo da Pontuação'!$G$1:$G$97<=$C$12,ROW('Resumo da Pontuação'!$G$1:$G$97)),ROW(46:46))),\"\")","v":""}]
[null,null,null,null,45,{"$f":"IFERROR(INDEX('Resumo da Pontuação'!$F$1:$F$97,SMALL(IF('Resumo da Pontuação'!$G$1:$G$97<=$C$12,ROW('Resumo da Pontuação'!$G$1:$G$97)),ROW(47:47))),\"\")","v":""}]
[null,null,null,null,46,{"$f":"IFERROR(INDEX('Resumo da Pontuação'!$F$1:$F$97,SMALL(IF('Resumo da Pontuação'!$G$1:$G$97<=$C$12,ROW('Resumo da Pontuação'!$G$1:$G$97)),ROW(48:48))),\"\")","v":""}]
[null,null,null,null,47,{"$f":"IFERROR(INDEX('Resumo da Pontuação'!$F$1:$F$97,SMALL(IF('Resumo da Pontuação'!$G$1:$G$97<=$C$12,ROW('Resumo da Pontuação'!$G$1:$G$97)),ROW(49:49))),\"\")","v":""}]
[null,null,null,null,48,{"$f":"IFERROR(INDEX('Resumo da Pontuação'!$F$1:$F$97,SMALL(IF('Resumo da Pontuação'!$G$1:$G$97<=$C$12,ROW('Resumo da Pontuação'!$G$1:$G$97)),ROW(51:51))),\"\")","v":""}]
[null,null,null,null,49,{"$f":"IFERROR(INDEX('Resumo da Pontuação'!$F$1:$F$97,SMALL(IF('Resumo da Pontuação'!$G$1:$G$97<=$C$12,ROW('Resumo da Pontuação'!$G$1:$G$97)),ROW(#REF!))),\"\")","v":""}]
[null,null,null,null,50]

{"sheet":"Bibliografia","index":13,"n_rows":53,"n_cols":4,"rows_kept":53,"cut":false,"hidden":false,"merged":[[1,2,1,3]]}
[]
[null,null,"Bibliografia"]
[null,null,1,"Global Fund. (2018). Measurement framework for adolescent girls and young women"]
[null,null,2,"Global HIV Prevention Coalition (2020). Decision-making Aide for Investments into HIV Prevention Programmes among Adolescent Girls and Young Women "]
[null,null,3,"International AIDS Society. (2018). Differentiated service delivery for HIV: A decision framework for HIV testing services"]
[null,null,4,"International AIDS Society. (2018). Differentiated service delivery: A decision framework for differentiated antiretroviral therapy for key populations"]
[null,null,5,"Joint United Nations Programme on HIV/AIDS (UNAIDS). (2016). HIV prevention among adolescent girls and young women. Geneva, Switzerland"]
[null,null,6,"Joint United Nations Programme on HIV/AIDS. (2008). A framework for monitoring and evaluating HIV prevention programmes for most-at-risk populations. Geneva: UNAIDS"]
[null,null,7,"Joint United Nations Programme on HIV/AIDS. (2012). Key programmes to reduce stigma and discrimination and increase access to justice in national HIV responses. Guidance Note"]
[null,null,8,"Joint United Nations Programme on HIV/AIDS. (2016). HIV prevention among adolescent girls and young women: Putting HIV prevention among adolescent girls and young women on the fast-track and engaging men and boys"]
[null,null,9,"Joint United Nations Programme on HIV/AIDS. (2017). HIV prevention 2020 road map—accelerating HIV prevention to reduce new infections by 75%. Geneva: UNAIDS"]
[null,null,10,"Joint United Nations Programme on HIV/AIDS. (2018). Global AIDS Monitoring 2019: Indicators for Monitoring the 2016 Political Declaration on Ending AIDS. Geneva: UNAIDS"]
[null,null,11,"Joint United Nations Programme on HIV/AIDS. (2018). Implementation of the HIV Prevention 2020 Road Map - First progress report, March 2018. Geneva: UNAIDS"]
[null,null,12,"Joint United Nations Programme on HIV/AIDS. (2018.) Miles To Go: Closing the gaps, breaking barriers, righting injustices"]
[null,null,13,"Joint United Nations Programme on HIV/AIDS. (2019). Gender Assessment Tool — Towards a gender-transformative HIV response"]
[null,null,14,"Joint United Nations Programme on HIV/AIDS. (2019) Communities at the centre: Defending rights breaking barriers, reaching people with HIV services"]
[null,null,15,"Joint United Nations Programme on HIV/AIDS. (2020). HIV Prevention Scorecard for AGYW. Geneva: UNAIDS"]
[null,null,16,"Joint United Nations Programme on HIV/AIDS. (2020). HIV Prevention Scorecard for Key Populations. Geneva: UNAIDS"]
[null,null,17,"Joint United Nations Programme on HIV/AIDS. (2020) Fourth progress report of the GPC"]
[null,null,18,"Joint United Nations Programme on HIV/AIDS. (2020). Maintaining and prioritizing HIV prevention services in the time of COVID-19"]
[null,null,19,"Joint United Nations Programme on HIV/AIDS. (2020). Condoms and lubricants in the time of COVID-19. Sustaining supplies and people-centred approaches to meet the need in low- and middle-income countries"]
[null,null,20,"Joint United Nations Programme on HIV/AIDS. (2020). UNAIDS highlights six critical actions to put gender equality at the centre of COVID-19 responses"]
[null,null,21,"Joint United Nations Programme on HIV/AIDS. (2020). Strategic Considerations for Mitigating the Impact of COVID-19 on Key-Population-Focused HIV Programs"]
[null,null,22,"Joint United Nations Programme on HIV/AIDS. (2020). Preventing HIV and other STIs among women and girls using contraceptive services in contexts with high HIV incidence"]
[null,null,23,"Joint United Nations Programme on HIV/AIDS. (2021). Going Online: A Budgeting and Programming Aid for Virtual HIV Interventions "]
[null,null,24,"Kageni, A., Mwangi, L., Mugyenyi, C., & Macintyre, K. (2015). Representation and participation of key populations on country coordinating mechanisms (CCMs) in sex countries in Southern Africa. Final report"]
[null,null,25,"LINKAGES. (2015). HIV cascade framework for Key Populations"]
[null,null,26,"LINKAGES. (2016). Annex 2: Acceleration Technical Assistance Checklist of Accelerating the Implementation and Scale-up of Comprehensive Programs for HIV Prevention, Diagnosis, Treatment and Care for Key Populations"]
[null,null,27,"LINKAGES. (2017). Key Population Programme Implementation Guide"]
[null,null,28,"NASCOP. (2014). Ministry of Health National Guidelines of HIV and STI Programming with Key Populations. Kenya"]
[null,null,29,"SANAC. (2016). South African National Strategic Plan 2017-2020"]
[null,null,30,"Saul. (2018). The DREAMS core package of interventions: A comprehensive approach to preventing HIV among adolescent girls and young women"]
[null,null,31,"The Global Fund. (2018). Measurement framework for adolescent girls and young women"]
[null,null,32,"The Global Fund. (2019). Adolescent Girls and Young Women in high-HIV burden settings: Technical Brief"]
[null,null,33,"United Nations Office on Drugs and Crime, International Network of People Who Use Drugs, Joint United Nations Programme on HIV/AIDS, United Nations Development Programme, United Nations Population Fund, World Health Organization, United States Agency for International Development. (2017). Implementing comprehensive HIV and HCV programmes with people who inject drugs: practical guidance for collaborative interventions. Vienna: United Nations Office on Drugs and Crime"]
[null,null,34,"United Nations Population Fund. (2019). Rights and choices for all adolescents and youth: a UNFPA global strategy"]
[null,null,35,"World Health Organization. (2007). Guide to starting and managing needle and syringe programmes"]
[null,null,36,"World Health Organization. (2009). Toolkit for Monitoring and Evaluation of interventions for sex workers"]
[null,null,37,"World Health Organization. (2010). Delivering HIV test results and messages for re-testing and counselling in adults"]
[null,null,38,"World Health Organization. (2011). Guidelines on surveillance among populations most at risk for HIV"]
[null,null,39,"World Health Organization. (2011). Preventing HIV in Sex Work in Sub-Saharan Africa"]
[null,null,40,"World Health Organization. (2012). Guidance on Pre-Exposure Prophylaxis (PrEP) for serodiscordant couples, men and transgender women who have sex with men at high risk of HIV"]
[null,null,41,"World Health Organization. (2012). Prevention and treatment of HIV and other sexually transmitted infections for sex workers in low-and middle-income countries: recommendations for a public health approach. World Health Organization"]
[null,null,42,"World Health Organization. (2012). Responding to intimate partner violence and sexual violence against women"]
[null,null,43,"World Health Organization. (2012). Service delivery approaches to HIV testing and counselling (HTC): A strategic HTC programme framework"]
[null,null,44,"World Health Organization. (2015). Tool to set and monitor targets for HIV prevention, diagnosis, treatment and care for key populations: supplement to the 2014 consolidated guidelines for HIV prevention, diagnosis, treatment and care for key populations. World Health Organization"]
[null,null,45,"World Health Organization. (2016). Consolidated guideline on HIV prevention diagnosis, treatment and care for Key Populations - 2016 update"]
[null,null,46,"World Health Organization. (2016). Global standards for quality health-care services for adolescents - a guide to implement a standards-driven approach to improve the quality of health-care services for adolescents"]
[null,null,47,"World Health Organization. (2017). Consolidated guidelines on person-centred HIV patient monitoring and case surveillance"]
[null,null,48,"World Health Organization (2017). Global Accelerated Action for the Health of Adolescents (AA-HA!): guidance to support country implementation"]
[null,null,49,"World Health Organization. (2018). mhGAP operations manual"]
[null,null,50,"World Health Organisation and UNICEF (2019): Adolescent-friendly health services for adolescents living with HIV: From Theory to Practice"]
[null,null,51,"YIELD. (2019). Young People Advancing Sexual and Reproductive Health: Toward a New Normal. Report of working group, CCM assessment"]

{"sheet":"Acrónimos","index":14,"n_rows":36,"n_cols":4,"rows_kept":36,"cut":false,"hidden":false,"merged":[[1,2,1,3]]}
[]
[null,null,"Acrónimos"]
[null,null,"Raparigas adolescentes e mulheres jovens","RAMJ"]
[null,null,"Cuidados Pré-natais","CPN"]
[null,null,"Tratamento anti-retroviral","TARV"]
[null,null,"Educação sexual abrangente","CSE"]
[null,null,"Organizações da sociedade civil","OSC"]
[null,null,"Organizações de base comunitária","OBC"]
[null,null,"Sistema Distrital de Informação de Saúde","DHIS"]
[null,null,"Planeamento Familiar","PF"]
[null,null,"Violência baseada no género","VBG"]
[null,null,"Aconselhamento e Testagem em Saúde","ATS"]
[null,null,"Programa Conjunto das Nações Unidas sobre HIV/SIDA ","ONUSIDA"]
[null,null,"Monitoria e Avaliação","M&A"]
[null,null,"Sem emprego, escolaridade ou formação","NEET"]
[null,null,"Organização não-governamental","ONG"]
[null,null,"Livre Acesso","OA"]
[null,null,"Educadores de pares","POE"]
[null,null,"Estimativa do tamanho da população","PSE"]
[null,null,"Profilaxia pré-exposição","PrEP"]
[null,null,"Prevenção da transmissão vertical","PTV"]
[null,null,"Ferramenta de Auto-avaliação para a Prevenção do HIV","PSAT"]
[null,null,"Pessoas vivendo com HIV","PVHIV"]
[null,null,"Profilaxia pós-exposição","PEP"]
[null,null,"Mulher trabalhadora de sexo","MTS"]
[null,null,"Saúde sexual e reprodutiva","SSR"]
[null,null,"Comunicação para a mudança social e de comportamento","CMSC"]
[null,null,"Infecção sexualmente transmissivel","ITS"]
[null,null,"Procedimentos Operacionais Padrão","POP"]
[null,null,"Assistência técnica","AT"]
[null,null,"Grupo técnico de trabalho","GTT"]
[null,null,"Termos de Referência","TdR"]
[null,null,"Teoria da Mudança","TOC"]
[null,null,"Tuberculose","TB"]
[null,null,"Código Identificador Exclusivo","UIC"]
[null,null,"Circuncisão Médica Masculina Voluntária","CMMV"]